Workbook

Sheet Προσομοίωση
J1: Ctrl + g για να "τρέξει"
F3: n | G3: 50 | J3: t | K3: =E4/2 -> 0
E4: 0 | F4: ω | G4: 30
F5: δω | G5: 0.2 | H5: 0.1 | I5: 0.04 | J5: 0.4
F6: T | G6: =2*3.1416/δω -> 31.416 | K6: Ctrl-g για να "τρέξει", πατήστε μία φορά
F7: c | G7: 4
E9: Διασπορά | F9: δu | G9: 0 | H9: 0.001
AI10: 14

Sheet Υπολογισμοί
D3: 1 | E3: 2 | F3: 3 | G3: 4 | H3: 5 | I3: 6 | J3: 7 | K3: 8 | L3: 9 | M3: 10 | N3: 11 | O3: 12 | P3: 13 | Q3: 14 | R3: 15 | S3: 16 | T3: 17 | U3: 18 | V3: 19 | W3: 20 | X3: 21 | Y3: 22 | Z3: 23 | AA3: 24 | AB3: 25 | AC3: 26 | AD3: 27 | AE3: 28 | AF3: 29 | AG3: 30 | AH3: 31 | AI3: 32 | AJ3: 33 | AK3: 34 | AL3: 35 | AM3: 36 | AN3: 37 | AO3: 38 | AP3: 39 | AQ3: 40 | AR3: 41 | AS3: 42 | AT3: 43 | AU3: 44 | AV3: 45 | AW3: 46 | AX3: 47 | AY3: 48 | AZ3: 49 | BA3: 50 | BB3: SUMS
C4: =Προσομοίωση!I8 -> 0 | D4: =COS((ω+D$3*δω)*t-(ω+D$3*δω)/(c_*(1-D$3*δc))*$C4) -> 1 | E4: =COS((ω+E$3*δω)*t-(ω+E$3*δω)/(c_*(1-E$3*δc))*$C4) -> 1 | F4: 1 | G4: 1 | H4: 1 | I4: 1 | J4: 1 | K4: 1 | L4: 1 | M4: 1 | N4: =COS((ω+N$3*δω)*t-(ω+N$3*δω)/(c_*(1-N$3*δc))*$C4) -> 1 | O4: 1 | P4: 1 | Q4: 1 | R4: 1 | S4: 1 | T4: 1 | U4: 1 | V4: 1 | W4: 1 | X4: =COS((ω+X$3*δω)*t-(ω+X$3*δω)/(c_*(1-X$3*δc))*$C4) -> 1 | Y4: 1 | Z4: 1 | AA4: 1 | AB4: 1 | AC4: 1 | AD4: 1 | AE4: 1 | AF4: 1 | AG4: 1 | AH4: =COS((ω+AH$3*δω)*t-(ω+AH$3*δω)/(c_*(1-AH$3*δc))*$C4) -> 1 | AI4: 1 | AJ4: 1 | AK4: 1 | AL4: 1 | AM4: 1 | AN4: 1 | AO4: 1 | AP4: 1 | AQ4: 1 | AR4: =COS((ω+AR$3*δω)*t-(ω+AR$3*δω)/(c_*(1-AR$3*δc))*$C4) -> 1 | AS4: 1 | AT4: 1 | AU4: 1 | AV4: 1 | AW4: 1 | AX4: 1 | AY4: 1 | AZ4: 1 | BA4: 1 | BB4: =SUM(D4:BA4) -> 50
C5: 0.05 | D5: 0.9295890337 | E5: 0.9286646356 | F5: 0.9277344333 | G5: 0.9267984327 | H5: 0.9258566396 | I5: 0.9249090599 | J5: 0.9239556995 | K5: 0.9229965644 | L5: 0.9220316605 | M5: 0.921060994 | N5: 0.9200845708 | O5: 0.9191023972 | P5: 0.9181144791 | Q5: 0.9171208228 | R5: 0.9161214345 | S5: 0.9151163205 | T5: 0.914105487 | U5: 0.9130889403 | V5: 0.9120666868 | W5: 0.911038733 | X5: 0.9100050851 | Y5: 0.9089657497 | Z5: 0.9079207332 | AA5: 0.9068700423 | AB5: 0.9058136834 | AC5: 0.9047516632 | AD5: 0.9036839883 | AE5: 0.9026106654 | AF5: 0.9015317012 | AG5: 0.9004471024 | AH5: 0.8993568758 | AI5: 0.8982610282 | AJ5: 0.8971595665 | AK5: 0.8960524975 | AL5: 0.8949398283 | AM5: 0.8938215656 | AN5: 0.8926977166 | AO5: 0.8915682882 | AP5: 0.8904332875 | AQ5: 0.8892927216 | AR5: 0.8881465977 | AS5: 0.8869949228 | AT5: 0.8858377042 | AU5: 0.8846749491 | AV5: 0.8835066648 | AW5: 0.8823328586 | AX5: 0.8811535378 | AY5: 0.8799687098 | AZ5: 0.878778382 | BA5: 0.8775825619 | BB5: 45.2347177
C6: 0.1 | D6: 0.7282715432 | E6: 0.7248360107 | F6: 0.7213823574 | G6: 0.7179106696 | H6: 0.7144210341 | I6: 0.710913538 | J6: 0.7073882692 | K6: 0.7038453157 | L6: 0.700284766 | M6: 0.6967067093 | N6: 0.693111235 | O6: 0.689498433 | P6: 0.6858683935 | Q6: 0.6822212073 | R6: 0.6785569656 | S6: 0.6748757601 | T6: 0.6711776827 | U6: 0.6674628258 | V6: 0.6637312825 | W6: 0.6599831459 | X6: 0.6562185097 | Y6: 0.6524374682 | Z6: 0.6486401157 | AA6: 0.6448265472 | AB6: 0.6409968582 | AC6: 0.6371511442 | AD6: 0.6332895015 | AE6: 0.6294120266 | AF6: 0.6255188164 | AG6: 0.6216099683 | AH6: 0.6176855799 | AI6: 0.6137457495 | AJ6: 0.6097905754 | AK6: 0.6058201566 | AL6: 0.6018345924 | AM6: 0.5978339823 | AN6: 0.5938184264 | AO6: 0.589788025 | AP6: 0.585742879 | AQ6: 0.5816830895 | AR6: 0.5776087579 | AS6: 0.5735199861 | AT6: 0.5694168763 | AU6: 0.5652995312 | AV6: 0.5611680535 | AW6: 0.5570225468 | AX6: 0.5528631144 | AY6: 0.5486898606 | AZ6: 0.5445028895 | BA6: 0.5403023059 | BB6: 31.87068508
C7: 0.3 | D7: -0.6397736148 | E7: -0.6512296605 | F7: -0.6625391823 | G7: -0.6736996356 | H7: -0.6847085093 | I7: -0.6955633265 | J7: -0.7062616448 | K7: -0.7168010573 | L7: -0.7271791925 | M7: -0.7373937155 | N7: -0.7474423281 | O7: -0.7573227692 | P7: -0.767032816 | Q7: -0.7765702835 | R7: -0.7859330261 | S7: -0.795118937 | T7: -0.8041259495 | U7: -0.8129520371 | V7: -0.8215952139 | W7: -0.8300535352 | X7: -0.838325098 | Y7: -0.8464080412 | Z7: -0.8543005462 | AA7: -0.8620008371 | AB7: -0.8695071815 | AC7: -0.8768178904 | AD7: -0.883931319 | AE7: -0.8908458668 | AF7: -0.897559978 | AG7: -0.904072142 | AH7: -0.9103808936 | AI7: -0.9164848133 | AJ7: -0.9223825279 | AK7: -0.9280727102 | AL7: -0.9335540801 | AM7: -0.9388254043 | AN7: -0.9438854967 | AO7: -0.9487332188 | AP7: -0.95336748 | AQ7: -0.9577872376 | AR7: -0.961991497 | AS7: -0.9659793124 | AT7: -0.9697497865 | AU7: -0.9733020711 | AV7: -0.9766353667 | AW7: -0.9797489236 | AX7: -0.982642041 | AY7: -0.9853140682 | AZ7: -0.9877644038 | BA7: -0.9899924966 | BB7: -42.64365916
C8: 0.4 | D8: -0.9926167167 | E8: -0.9948439034 | F8: -0.9966731657 | G8: -0.9981037721 | H8: -0.9991351503 | I8: -0.9997668877 | J8: -0.9999987317 | K8: -0.9998305896 | L8: -0.9992625285 | M8: -0.9982947758 | N8: -0.9969277185 | O8: -0.9951619033 | P8: -0.9929980367 | Q8: -0.9904369841 | R8: -0.9874797699 | S8: -0.984127577 | T8: -0.9803817461 | U8: -0.9762437757 | V8: -0.9717153207 | W8: -0.9667981926 | X8: -0.9614943581 | Y8: -0.9558059386 | Z8: -0.9497352095 | AA8: -0.943284599 | AB8: -0.9364566873 | AC8: -0.9292542053 | AD8: -0.9216800341 | AE8: -0.9137372031 | AF8: -0.9054288895 | AG8: -0.8967584163 | AH8: -0.8877292518 | AI8: -0.8783450074 | AJ8: -0.8686094366 | AK8: -0.8585264337 | AL8: -0.8481000317 | AM8: -0.837334401 | AN8: -0.8262338476 | AO8: -0.8148028118 | AP8: -0.8030458657 | AQ8: -0.7909677119 | AR8: -0.7785731816 | AS8: -0.7658672324 | AT8: -0.7528549466 | AU8: -0.7395415288 | AV8: -0.7259323042 | AW8: -0.7120327164 | AX8: -0.697848325 | AY8: -0.6833848036 | AZ8: -0.6686479374 | BA8: -0.6536436209 | BB8: -44.72645418
C9: 0.5 | D9: -0.8060154013 | E9: -0.7909677119 | F9: -0.7754256934 | G9: -0.7593990591 | H9: -0.7428978251 | I9: -0.7259323042 | J9: -0.7085130992 | K9: -0.6906510966 | L9: -0.6723574595 | M9: -0.6536436209 | N9: -0.6345212763 | O9: -0.6150023765 | P9: -0.5950991203 | Q9: -0.5748239465 | R9: -0.5541895265 | S9: -0.533208756 | T9: -0.5118947475 | U9: -0.4902608213 | V9: -0.4683204982 | W9: -0.4460874899 | X9: -0.4235756915 | Y9: -0.4007991721 | Z9: -0.3777721662 | AA9: -0.354509065 | AB9: -0.3310244073 | AC9: -0.30733287 | AD9: -0.2834492597 | AE9: -0.2593885028 | AF9: -0.2351656365 | AG9: -0.2107957994 | AH9: -0.1862942218 | AI9: -0.1616762164 | AJ9: -0.1369571685 | AK9: -0.1121525269 | AL9: -0.08727779366 | AM9: -0.06234851461 | AN9: -0.03738026976 | AO9: -0.01238866346 | AP9: 0.01261068535 | AQ9: 0.03760215289 | AR9: 0.06257012031 | AS9: 0.08749898344 | AT9: 0.1123731626 | AU9: 0.1371771121 | AV9: 0.1618953304 | AW9: 0.1865123694 | AX9: 0.2110128443 | AY9: 0.235381443 | AZ9: 0.2596029359 | BA9: 0.2836621855 | BB9: -14.94160045
C10: 0.6 | D10: -0.1813794436 | E10: -0.1517998585 | F10: -0.1220836638 | G10: -0.092257602 | H10: -0.06234851461 | I10: -0.03238331776 | J10: -0.002388978112 | K10: 0.02760751145 | L10: 0.05757915612 | M10: 0.08749898344 | N10: 0.1173400676 | O10: 0.1470755536 | P10: 0.1766786815 | Q10: 0.2061228105 | R10: 0.235381443 | S10: 0.264428248 | T10: 0.2932370854 | U10: 0.3217820292 | V10: 0.350037391 | W10: 0.3779777427 | X10: 0.40557794 | Y10: 0.4328131445 | Z10: 0.4596588463 | AA10: 0.4860908863 | AB10: 0.5120854772 | AC10: 0.5376192258 | AD10: 0.5626691534 | AE10: 0.5872127167 | AF10: 0.6112278282 | AG10: 0.6346928759 | AH10: 0.6575867429 | AI10: 0.6798888262 | AJ10: 0.7015790554 | AK10: 0.7226379109 | AL10: 0.743046441 | AM10: 0.7627862794 | AN10: 0.7818396617 | AO10: 0.8001894411 | AP10: 0.817819104 | AQ10: 0.8347127848 | AR10: 0.8508552806 | AS10: 0.866232064 | AT10: 0.880829297 | AU10: 0.8946338431 | AV10: 0.9076332791 | AW10: 0.9198159064 | AX10: 0.9311707615 | AY10: 0.9416876258 | AZ10: 0.9513570348 | BA10: 0.9601702867 | BB10: 23.85422505
C11: 0.7 | D11: 0.5418284267 | E11: 0.5709077042 | F11: 0.5992876911 | G11: 0.6269336255 | H11: 0.6538116446 | I11: 0.6798888262 | J11: 0.705133229 | K11: 0.7295139318 | L11: 0.7530010712 | M11: 0.7755658785 | N11: 0.7971807146 | O11: 0.817819104 | P11: 0.8374557672 | Q11: 0.8560666518 | R11: 0.8736289619 | S11: 0.8901211857 | T11: 0.9055231224 | U11: 0.9198159064 | V11: 0.932982031 | W11: 0.9450053693 | X11: 0.9558711942 | Y11: 0.9655661964 | Z11: 0.9740785008 | AA11: 0.9813976807 | AB11: 0.9875147713 | AC11: 0.9924222797 | AD11: 0.996114195 | AE11: 0.9985859949 | AF11: 0.9998346519 | AG11: 0.9998586364 | AH11: 0.9986579191 | AI11: 0.9962339708 | AJ11: 0.9925897604 | AK11: 0.9877297517 | AL11: 0.9816598975 | AM11: 0.9743876327 | AN11: 0.9659218649 | AO11: 0.9562729637 | AP11: 0.9454527476 | AQ11: 0.9334744701 | AR11: 0.9203528031 | AS11: 0.9061038191 | AT11: 0.8907449711 | AU11: 0.874295072 | AV11: 0.8567742707 | AW11: 0.8382040281 | AX11: 0.8186070904 | AY11: 0.7980074613 | AZ11: 0.7764303729 | BA11: 0.7539022543 | BB11: 43.42851807
C12: 0.8 | D12: 0.9705758926 | E12: 0.9794287841 | F12: 0.9867147985 | G12: 0.9924222797 | H12: 0.996542097 | I12: 0.9990676595 | J12: 0.9999949269 | K12: 0.9993224157 | L12: 0.9970512019 | M12: 0.9931849188 | N12: 0.9877297517 | O12: 0.9806944277 | P12: 0.9720902018 | Q12: 0.9619308389 | R12: 0.950232592 | S12: 0.9370141755 | T12: 0.9222967363 | U12: 0.9061038191 | V12: 0.888461329 | W12: 0.8693974903 | X12: 0.8489428012 | Y12: 0.8271299846 | Z12: 0.8039939365 | AA12: 0.7795716696 | AB12: 0.7539022543 | AC12: 0.7270267563 | AD12: 0.6989881705 | AE12: 0.6698313528 | AF12: 0.6396029478 | AG12: 0.6083513145 | AH12: 0.5761264489 | AI12: 0.5429799039 | AJ12: 0.5089647069 | AK12: 0.4741352749 | AL12: 0.4385473276 | AM12: 0.4022577981 | AN12: 0.365324742 | AO12: 0.3278072442 | AP12: 0.2897653247 | AQ12: 0.2512598426 | AR12: 0.2123523983 | AS12: 0.1731052354 | AT12: 0.1335811411 | AU12: 0.09384334552 | AV12: 0.05395542056 | AW12: 0.01398117844 | AX12: -0.02601543058 | AY12: -0.06597042046 | AZ12: -0.1058198717 | BA12: -0.1455000338 | BB12: 31.1622791
C13: 0.9 | D13: 0.8718571794 | E13: 0.8489428012 | F13: 0.8243096039 | G13: 0.7980074613 | H13: 0.7700896263 | I13: 0.7406126229 | J13: 0.709636132 | K13: 0.6772228705 | L13: 0.643438464 | M13: 0.6083513145 | N13: 0.5720324615 | O13: 0.5345554382 | P13: 0.4959961228 | Q13: 0.4564325847 | R13: 0.4159449266 | S13: 0.3746151221 | T13: 0.3325268501 | U13: 0.2897653247 | V13: 0.2464171236 | W13: 0.2025700121 | X13: 0.1583127655 | Y13: 0.1137349896 | Z13: 0.0689269392 | AA13: 0.02397933533 | AB13: -0.02101681851 | AC13: -0.06597042046 | AD13: -0.1107904549 | AE13: -0.1553861764 | AF13: -0.1996672941 | AG13: -0.2435441537 | AH13: -0.2869279197 | AI13: -0.3297307546 | AJ13: -0.3718659974 | AK13: -0.4132483387 | AL13: -0.4537939932 | AM13: -0.49342087 | AN13: -0.5320487382 | AO13: -0.5695993894 | AP13: -0.6059967965 | AQ13: -0.6411672671 | AR13: -0.6750395931 | AS13: -0.7075451946 | AT13: -0.7386182589 | AU13: -0.7681958735 | AV13: -0.796218154 | AW13: -0.8226283648 | AX13: -0.8473730343 | AY13: -0.8704020629 | AZ13: -0.8916688247 | BA13: -0.9111302619 | BB13: -1.744716934
C14: 1 | D14: =COS((ω+D$3*δω)*t-(ω+D$3*δω)/(c_*(1-D$3*δc))*$C14) -> 0.2993216543 | E14: 0.2512598426 | F14: 0.2025700121 | G14: 0.153373862 | H14: 0.1037943572 | I14: 0.05395542056 | J14: 0.003981623454 | K14: -0.04600212564 | L14: -0.09587089338 | M14: -0.1455000338 | N14: =COS((ω+N$3*δω)*t-(ω+N$3*δω)/(c_*(1-N$3*δc))*$C14) -> -0.1947654999 | O14: -0.2435441537 | P14: -0.291714074 | Q14: -0.339154861 | R14: -0.3857479375 | S14: -0.431376845 | T14: -0.475927535 | U14: -0.5192886541 | V14: -0.561351822 | W14: -0.6020119027 | X14: =COS((ω+X$3*δω)*t-(ω+X$3*δω)/(c_*(1-X$3*δc))*$C14) -> -0.6411672671 | Y14: -0.6787200473 | Z14: -0.7145763809 | AA14: -0.7486466456 | AB14: -0.7808456836 | AC14: -0.8110930141 | AD14: -0.8393130344 | AE14: -0.8654352092 | AF14: -0.8893942468 | AG14: -0.9111302619 | AH14: =COS((ω+AH$3*δω)*t-(ω+AH$3*δω)/(c_*(1-AH$3*δc))*$C14) -> -0.9305889258 | AI14: -0.9477216021 | AJ14: -0.962485468 | AK14: -0.9748436214 | AL14: -0.9847651735 | AM14: -0.9922253255 | AN14: -0.9972054309 | AO14: -0.999693042 | AP14: -0.9996819412 | AQ14: -0.9971721562 | AR14: =COS((ω+AR$3*δω)*t-(ω+AR$3*δω)/(c_*(1-AR$3*δc))*$C14) -> -0.9921699601 | AS14: -0.9846878558 | AT14: -0.9747445447 | AU14: -0.9623648798 | AV14: -0.947579804 | AW14: -0.9304262721 | AX14: -0.9109471591 | AY14: -0.8891911526 | AZ14: -0.8652126313 | BA14: -0.8390715291 | BB14: -30.22709983
C15: 1.1 | D15: -0.4358822931 | E15: -0.4846984373 | F15: -0.5320487382 | G15: -0.5777899973 | H15: -0.6217838823 | I15: -0.6638973451 | J15: -0.7040030246 | K15: -0.7419796318 | L15: -0.7777123163 | M15: -0.8110930141 | N15: -0.8420207739 | O15: -0.8704020629 | P15: -0.8961510493 | Q15: -0.9191898621 | R15: -0.9394488265 | S15: -0.9568666744 | T15: -0.9713907302 | U15: -0.9829770697 | V15: -0.9915906531 | W15: -0.9972054309 | X15: -0.9998044225 | Y15: -0.9993797681 | Z15: -0.9959327519 | AA15: -0.9894737985 | AB15: -0.9800224413 | AC15: -0.9676072635 | AD15: -0.9522658114 | AE15: -0.9340444814 | AF15: -0.912998379 | AG15: -0.8891911526 | AH15: -0.862694801 | AI15: -0.8335894554 | AJ15: -0.8019631373 | AK15: -0.7679114922 | AL15: -0.7315375003 | AM15: -0.6929511653 | AN15: -0.6522691813 | AO15: -0.6096145804 | AP15: -0.5651163602 | AQ15: -0.518909094 | AR15: -0.4711325233 | AS15: -0.421931136 | AT15: -0.3714537288 | AU15: -0.3198529572 | AV15: -0.2672848743 | AW15: -0.2139084585 | AX15: -0.1598851327 | AY15: -0.1053782762 | AZ15: -0.05055273085 | BA15: 0.004425697988 | BB15: -34.75236297
C16: 1.2 | D16: -0.9342029949 | E16: -0.9539136059 | F16: -0.9701911581 | G16: -0.9829770697 | H16: -0.9922253255 | I16: -0.9979026415 | J16: -0.9999885856 | K16: -0.9984756506 | L16: -0.9933692816 | M16: -0.9846878558 | N16: -0.9724626171 | O16: -0.9567375631 | P16: -0.937569287 | Q16: -0.915026774 | R16: -0.8891911526 | S16: -0.8601554034 | T16: -0.8280240235 | U16: -0.7929126513 | V16: -0.7549476498 | W16: -0.714265652 | X16: -0.6710130692 | Y16: -0.6253455639 | Z16: -0.57742749 | AA16: -0.5274313005 | AB16: -0.475536928 | AC16: -0.421931136 | AD16: -0.3668068476 | AE16: -0.3103624506 | AF16: -0.252801084 | AG16: -0.1943299065 | AH16: -0.1351593511 | AI16: -0.07550236802 | AJ16: -0.01557365796 | AK16: 0.04441110045 | AL16: 0.1042360269 | AM16: 0.1636858161 | AN16: 0.2225465132 | AO16: 0.2806062832 | AP16: 0.3376561736 | AQ16: 0.3934908663 | AR16: 0.4479094169 | AS16: 0.5007159773 | AT16: 0.5517205008 | AU16: 0.6007394263 | AV16: 0.6475963387 | AW16: 0.6921226035 | AX16: 0.7341579743 | AY16: 0.7735511692 | AZ16: 0.8101604153 | BA16: 0.8438539587 | BB16: -14.92928754
C17: 1.3 | D17: -0.9248246203 | E17: -0.8981634282 | F17: -0.8677088314 | G17: -0.8335894554 | H17: -0.7959494038 | I17: -0.7549476498 | J17: -0.7107573649 | K17: -0.6635651872 | L17: -0.6135704336 | M17: -0.5609842574 | N17: -0.5060287572 | O17: -0.4489360381 | P17: -0.3899472319 | Q17: -0.3293114787 | R17: -0.2672848743 | S17: -0.2041293889 | T17: -0.1401117603 | U17: -0.07550236802 | V17: -0.0105740905 | W17: 0.05439884682 | X17: 0.1191420299 | Y17: 0.1833820152 | Z17: 0.2468474841 | AA17: 0.3092703896 | AB17: 0.3703870877 | AC17: 0.4299394513 | AD17: 0.4876759601 | AE17: 0.5433527633 | AF17: 0.5967347093 | AG17: 0.6475963387 | AH17: 0.6957228367 | AI17: 0.7409109405 | AJ17: 0.7829697976 | AK17: 0.8217217718 | AL17: 0.8570031938 | AM17: 0.8886650519 | AN17: 0.9165736219 | AO17: 0.9406110316 | AP17: 0.9606757587 | AQ17: 0.9766830596 | AR17: 0.9885653272 | AS17: 0.9962723767 | AT17: 0.9997716571 | AU17: 0.9990483893 | AV17: 0.994105628 | AW17: 0.984964249 | AX17: 0.971662861 | AY17: 0.9542576426 | AZ17: 0.932822105 | BA17: 0.9074467815 | BB17: 12.30329454
C18: 1.4 | D18: -0.4128439119 | E18: -0.3481287866 | F18: -0.2817085267 | G18: -0.2139084585 | H18: -0.1450606668 | I18: -0.07550236802 | J18: -0.005574258696 | K18: 0.06438115335 | L18: 0.1340212265 | M18: 0.2030048638 | N18: 0.2709941834 | O18: 0.3376561736 | P18: 0.402664324 | Q18: 0.4657002248 | R18: 0.5264551261 | S18: 0.5846314504 | T18: 0.6399442503 | U18: 0.6921226035 | V18: 0.7409109405 | W18: 0.7860702961 | X18: 0.8273794799 | Y18: 0.8646361593 | Z18: 0.8976578513 | AA18: 0.9262828156 | AB18: 0.9503708471 | AC18: 0.9698039627 | AD18: 0.9844869789 | AE18: 0.9943479785 | AF18: 0.9993386621 | AG18: 0.9994345855 | AH18: 0.9946352788 | AI18: 0.984964249 | AJ18: 0.9704688648 | AK18: 0.9512201246 | AL18: 0.9273123087 | AM18: 0.8988625176 | AN18: 0.8660100984 | AO18: 0.8289159621 | AP18: 0.7877617958 | AQ18: 0.7427491727 | AR18: 0.6940985645 | AS18: 0.6420482619 | AT18: 0.5868532072 | AU18: 0.5287837458 | AV18: 0.4681243019 | AW18: 0.4051719854 | AX18: 0.3402351368 | AY18: 0.2736318166 | AZ18: 0.2056882478 | BA18: 0.1367372182 | BB18: 27.01384202
C19: 1.5 | D19: 0.3234996746 | E19: 0.3934908663 | F19: 0.4612697093 | G19: 0.5264551261 | H19: 0.5886806207 | I19: 0.6475963387 | J19: 0.7028710344 | K19: 0.7541939336 | L19: 0.8012764801 | M19: 0.8438539587 | N19: 0.8816869834 | O19: 0.9145628432 | P19: 0.942296698 | Q19: 0.9647326179 | R19: 0.9817444601 | S19: 0.9932365778 | T19: 0.9991443582 | U19: 0.9994345855 | V19: 0.994105628 | W19: 0.983187447 | X19: 0.9667414286 | Y19: 0.9448600382 | Z19: 0.9176663009 | AA19: 0.8853131098 | AB19: 0.8479823664 | AC19: 0.8058839576 | AD19: 0.7592545761 | AE19: 0.7083563892 | AF19: 0.6534755649 | AG19: 0.5949206633 | AH19: 0.5330209013 | AI19: 0.4681243019 | AJ19: 0.4005957374 | AK19: 0.3308148779 | AL19: 0.2591740569 | AM19: 0.186076065 | AN19: 0.1119318858 | AO19: 0.03715838479 | AP19: -0.03782403416 | AQ19: -0.1125937926 | AR19: -0.1867305078 | AS19: -0.2598173562 | AT19: -0.3314434169 | AU19: -0.4012059821 | AV19: -0.4687128213 | AW19: -0.5335843866 | AX19: -0.5954559463 | AY19: -0.6539796361 | AZ19: -0.7088264145 | BA19: -0.7596879129 | BB19: 21.05880834
C20: 1.6 | D20: 0.8840351265 | E20: 0.9185614863 | F20: 0.9472121872 | G20: 0.9698039627 | H20: 0.9861923023 | I20: 0.9962723767 | J20: 0.9999797077 | K20: 0.9972905812 | L20: 0.9882221983 | M20: 0.9728325657 | N20: 0.9512201246 | O20: 0.9235231209 | P20: 0.8899187208 | Q20: 0.8506218778 | R20: 0.8058839576 | S20: 0.7559911303 | T20: 0.7012625397 | U20: 0.6420482619 | V20: 0.5787270663 | W20: 0.5117039925 | X20: 0.4414077593 | Y20: 0.3682880228 | Z20: 0.2928124998 | AA20: 0.2154639761 | AB20: 0.1367372182 | AC20: 0.05713580875 | AD20: -0.0228310749 | AE20: -0.1026519176 | AF20: -0.1818161383 | AG20: -0.2598173562 | AH20: -0.3361566297 | AI20: -0.4103456479 | AJ20: -0.4819098543 | AK20: -0.5503914823 | AL20: -0.615352483 | AM20: -0.6763773277 | AN20: -0.7330756658 | AO20: -0.7850848213 | AP20: -0.8320721132 | AQ20: -0.873736983 | AR20: -0.9098129179 | AS20: -0.9400691549 | AT20: -0.9643121575 | AU20: -0.982386853 | AV20: -0.9941776252 | AW20: -0.9996090533 | AX20: -0.9986463947 | AY20: -0.9912958072 | AZ20: -0.9776043095 | BA20: -0.9576594803 | BB20: 2.205955323
C21: 1.7 | D21: 0.9641355769 | E21: 0.9381220203 | F21: 0.905334612 | G21: 0.8660100984 | H21: 0.8204324281 | I21: 0.7689307016 | J21: 0.7118767948 | K21: 0.6496826742 | L21: 0.5827974217 | M21: 0.5117039925 | N21: 0.4369157272 | O21: 0.3589726461 | P21: 0.2784375487 | Q21: 0.1958919509 | R21: 0.1119318858 | S21: 0.02716359955 | T21: -0.05780082556 | U21: -0.1423478911 | V21: -0.2258671122 | W21: -0.3077554256 | X21: -0.3874215446 | Y21: -0.4642902278 | Z21: -0.5378064333 | AA21: -0.6074393263 | AB21: -0.6726861119 | AC21: -0.7330756658 | AD21: -0.7881719362 | AE21: -0.8375770921 | AF21: -0.8809343962 | AG21: -0.9179307804 | AH21: -0.9482991068 | AI21: -0.9718200964 | AJ21: -0.9883239122 | AK21: -0.9976913859 | AL21: -0.9998548784 | AM21: -0.9947987677 | AN21: -0.9825595623 | AO21: -0.9632256373 | AP21: -0.9369365961 | AQ21: -0.9038822627 | AR21: -0.8643013109 | AS21: -0.8184795411 | AT21: -0.7667478161 | AU21: -0.7094796727 | AV21: -0.6470886243 | AW21: -0.5800251747 | AX21: -0.5087735658 | AY21: -0.4338482805 | AZ21: -0.3557903281 | BA21: -0.2751633381 | BB21: -14.07985495
C22: 1.8 | D22: 0.5202698824 | E22: 0.4414077593 | F22: 0.3589726461 | G22: 0.2736318166 | H22: 0.186076065 | I22: 0.09701411442 | J22: 0.007166879799 | K22: -0.08273836738 | L22: -0.171973886 | M22: -0.2598173562 | N22: -0.345557726 | O22: -0.428500967 | P22: -0.5079756924 | Q22: -0.5833385913 | R22: -0.6539796361 | S22: -0.7193270205 | T22: -0.778851788 | U22: -0.8320721132 | V22: -0.8785572023 | W22: -0.9179307804 | X22: -0.9498741366 | Y22: -0.9741287043 | Z22: -0.9904981541 | AA22: -0.998849983 | AB22: -0.9991165867 | AC22: -0.9912958072 | AD22: -0.9754509502 | AE22: -0.9517102723 | AF22: -0.9202659433 | AG22: -0.8813724904 | AH22: -0.8353447378 | AI22: -0.7825552589 | AJ22: -0.7234313599 | AK22: -0.6584516212 | AL22: -0.5881420234 | AM22: -0.51307169 | AN22: -0.4338482805 | AO22: -0.3511130712 | AP22: -0.2655357653 | AQ22: -0.1778090711 | AR22: -0.08864309537 | AS22: 0.001240404938 | AT22: 0.09111386474 | AU22: 0.1802498003 | AV22: 0.2679266977 | AW22: 0.3534348533 | AX22: 0.4360821185 | AY22: 0.5151995022 | AZ22: 0.590146586 | BA22: 0.6603167082 | BB22: -17.23088043
C23: 1.9 | D23: -0.2063400766 | E23: -0.2982255416 | F23: -0.3874215446 | G23: -0.4731236971 | H23: -0.5545591185 | I23: -0.6309934069 | J23: -0.7017372614 | K23: -0.7661526988 | L23: -0.8236588068 | M23: -0.873736983 | N23: -0.9159356117 | O23: -0.9498741366 | P23: -0.9752464928 | Q23: -0.9918238669 | R23: -0.9994567607 | S23: -0.998076339 | T23: -0.9876950508 | U23: -0.9684065168 | V23: -0.9403846852 | W23: -0.9038822627 | X23: -0.8592284361 | Y23: -0.8068259032 | Z23: -0.7471472412 | AA23: -0.6807306452 | AB23: -0.6081750741 | AC23: -0.5301348499 | AD23: -0.4473137558 | AE23: -0.3604586903 | AF23: -0.2703529311 | AG23: -0.1778090711 | AH23: -0.08366169082 | AI23: 0.01124016856 | AJ23: 0.1060406617 | AK23: 0.1998848574 | AL23: 0.2919264486 | AM23: 0.3813353844 | AN23: 0.467305356 | AO23: 0.5490610676 | AP23: 0.6258652287 | AQ23: 0.697025203 | AR23: 0.7618992545 | AS23: 0.8199023351 | AT23: 0.8705113606 | AU23: 0.9132699279 | AV23: 0.9477924311 | AW23: 0.9737675389 | AX23: 0.9909610022 | AY23: 0.9992177665 | AZ23: 0.9984633708 | BA23: 0.9887046182 | BB23: -8.324395166
C24: 2 | D24: =COS((ω+D$3*δω)*t-(ω+D$3*δω)/(c_*(1-D$3*δc))*$C24) -> -0.8208130945 | E24: -0.873736983 | F24: -0.9179307804 | G24: -0.9529529169 | H24: -0.9784534628 | I24: -0.9941776252 | J24: -0.9999682933 | K24: -0.9957676089 | L24: -0.9816175436 | M24: -0.9576594803 | N24: =COS((ω+N$3*δω)*t-(ω+N$3*δω)/(c_*(1-N$3*δc))*$C24) -> -0.9241328001 | O24: -0.8813724904 | P24: -0.8298057981 | Q24: -0.7699479605 | R24: -0.7023970575 | S24: -0.6278280352 | T24: -0.5469859628 | U24: -0.4606785874 | V24: -0.3697682639 | W24: -0.2751633381 | X24: =COS((ω+X$3*δω)*t-(ω+X$3*δω)/(c_*(1-X$3*δc))*$C24) -> -0.1778090711 | Y24: -0.07867819473 | Z24: 0.02123880817 | AA24: 0.1209435999 | AB24: 0.2194399632 | AC24: 0.3157437549 | AD24: 0.4088927394 | AE24: 0.4979562028 | AF24: 0.5820442524 | AG24: 0.6603167082 | AH24: =COS((ω+AH$3*δω)*t-(ω+AH$3*δω)/(c_*(1-AH$3*δc))*$C24) -> 0.7319914978 | AI24: 0.7963524703 | AJ24: 0.8527565521 | AK24: 0.9006401724 | AL24: 0.9395248937 | AM24: 0.9690221929 | AN24: 0.9888373427 | AO24: 0.9987723566 | AP24: 0.9987279672 | AQ24: 0.9887046182 | AR24: =COS((ω+AR$3*δω)*t-(ω+AR$3*δω)/(c_*(1-AR$3*δc))*$C24) -> 0.9688024594 | AS24: 0.9392203467 | AT24: 0.9002538547 | AU24: 0.8522923239 | AV24: 0.7958149698 | AW24: 0.7313860956 | AX24: 0.6596494534 | AY24: 0.5813218118 | AZ24: 0.4971857949 | BA24: 0.4080820618 | BB24: 3.208269916
C25: 2.1 | D25: -0.9892095613 | E25: -0.9684065168 | F25: -0.9369365961 | G25: -0.8951464363 | H25: -0.8434963508 | I25: -0.7825552589 | J25: -0.7129944191 | K25: -0.6355800352 | L25: -0.5511648169 | M25: -0.4606785874 | N25: -0.3651180411 | O25: -0.2655357653 | P25: -0.1630286464 | Q25: -0.05872578747 | R25: 0.04622392867 | S25: 0.150664494 | T25: 0.2534455089 | U25: 0.3534348533 | V25: 0.4495311572 | W25: 0.5406759317 | X25: 0.6258652287 | Y25: 0.7041606988 | Z25: 0.7746999272 | AA25: 0.8367059331 | AB25: 0.8894957281 | AC25: 0.9324878393 | AD25: 0.965208714 | AE25: 0.9872979358 | AF25: 0.9985121948 | AG25: 0.9987279672 | AH25: 0.9879428765 | AI25: 0.9662757189 | AJ25: 0.9339651556 | AK25: 0.8913670832 | AL25: 0.8389507144 | AM25: 0.7772934087 | AN25: 0.7070743136 | AO25: 0.6290668837 | AP25: 0.544130361 | AQ25: 0.4532003107 | AR25: 0.3572783159 | AS25: 0.2574209452 | AT25: 0.1547281151 | AU25: 0.05033097428 | AV25: -0.05462055593 | AW25: -0.1589704476 | AX25: -0.2615692997 | AY25: -0.3612869988 | AZ25: -0.4570251669 | BA25: -0.5477292602 | BB25: 8.586384669
C26: 2.2 | D26: -0.620013253 | E26: -0.5301348499 | F26: -0.4338482805 | G26: -0.332317438 | H26: -0.2267696075 | I26: -0.1184806305 | J26: -0.008759482723 | K26: 0.1010675479 | L26: 0.2096728939 | M26: 0.3157437549 | N26: 0.4179979673 | O26: 0.5151995022 | P26: 0.6061734064 | Q26: 0.6898200053 | R26: 0.7651281951 | S26: 0.8311876651 | T26: 0.8871999015 | U26: 0.9324878393 | V26: 0.9665040468 | W26: 0.9888373427 | X26: 0.9992177665 | Y26: 0.9975198418 | Z26: 0.9837640926 | AA26: 0.9581167958 | AB26: 0.9208879709 | AC26: 0.8725276326 | AD26: 0.8136203512 | AE26: 0.7448781864 | AF26: 0.6671320801 | AG26: 0.5813218118 | AH26: 0.4884846394 | AI26: 0.3897427603 | AJ26: 0.2862897472 | AK26: 0.1793761196 | AL26: 0.07029422867 | AM26: -0.03963736514 | AN26: -0.1490898302 | AO26: -0.2567401267 | AP26: -0.3612869988 | AQ26: -0.4614667044 | AR26: -0.5560682909 | AS26: -0.6439482329 | AT26: -0.7240442548 | AU26: -0.7953881715 | AV26: -0.8571175919 | AW26: -0.9084863428 | AX26: -0.9488734887 | AY26: -0.9777908378 | AZ26: -0.9948888428 | BA26: -0.9999608264 | BB26: 6.235082645
C27: 2.3 | D27: 0.08613354416 | E27: 0.1998848574 | F27: 0.3109956054 | G27: 0.4179979673 | H27: 0.5194783958 | I27: 0.6140962906 | J27: 0.7006017084 | K27: 0.7778518755 | L27: 0.8448262838 | M27: 0.9006401724 | N27: 0.9445562158 | O27: 0.9759942642 | P27: 0.9945390073 | Q27: 0.9999454611 | R27: 0.992142204 | S27: 0.9712323205 | T27: 0.937492039 | U27: 0.8913670832 | V27: 0.8334667838 | W27: 0.7645560287 | X27: 0.6855451586 | Y27: 0.5974779412 | Z27: 0.5015177825 | AA27: 0.3989323575 | AB27: 0.291076864 | AC27: 0.1793761196 | AD27: 0.06530573927 | AE27: -0.04962735806 | AF27: -0.1639048566 | AG27: -0.2760171012 | AH27: -0.3844830409 | AI27: -0.4878697938 | AJ27: -0.5848115762 | AK27: -0.6740277455 | AL27: -0.7543397174 | AM27: -0.8246865363 | AN27: -0.8841388904 | AO27: -0.9319113882 | AP27: -0.9673729347 | AQ27: -0.9900550673 | AR27: -0.9996581455 | AS27: -0.9960553083 | AT27: -0.9792941508 | AU27: -0.9495960952 | AV27: -0.9073534655 | AW27: -0.8531243051 | AX27: -0.7876250047 | AY27: -0.7117208382 | AZ27: -0.6264145323 | BA27: -0.5328330203 | BB27: 1.080109198
C28: 2.4 | D28: 0.7454704713 | E28: 0.8199023351 | F28: 0.8825417664 | G28: 0.9324878393 | H28: 0.9690221929 | I28: 0.9916193637 | J28: 0.9999543425 | K28: 0.9939072498 | L28: 0.9735650591 | M28: 0.9392203467 | N28: 0.8913670832 | O28: 0.8306935292 | P28: 0.7580723359 | Q28: 0.6745479941 | R28: 0.5813218118 | S28: 0.4797346358 | T28: 0.371247567 | U28: 0.2574209452 | V28: 0.1398919079 | W28: 0.02035084333 | X28: -0.0994829219 | Y28: -0.2178858513 | Z28: -0.3331549877 | AA28: -0.4436324464 | AB28: -0.5477292602 | AC28: -0.6439482329 | AD28: -0.7309054731 | AE28: -0.8073502985 | AF28: -0.8721832239 | AG28: -0.9244717749 | AH28: -0.9634638996 | AI28: -0.9885987848 | AJ28: -0.9995149224 | AK28: -0.9960553083 | AL28: -0.9782697014 | AM28: -0.9464139072 | AN28: -0.9009460989 | AO28: -0.8425202276 | AP28: -0.7719766169 | AQ28: -0.6903298762 | AR28: -0.5987543085 | AS28: -0.4985670202 | AT28: -0.391208978 | AU28: -0.2782242833 | AV28: -0.1612379643 | AW28: -0.04193260354 | AX28: 0.07797586249 | AY28: 0.1967628229 | AZ28: 0.312719797 | BA28: 0.4241790073 | BB28: -1.404781862
C29: 2.5 | D29: 0.9996763169 | E29: 0.9887046182 | F29: 0.9623045146 | G29: 0.9208879709 | H29: 0.8651012784 | I29: 0.7958149698 | J29: 0.7141102348 | K29: 0.6212620484 | L29: 0.5187192755 | M29: 0.4080820618 | N29: 0.291076864 | O29: 0.1695295092 | P29: 0.04533670298 | Q29: -0.07956356728 | R29: -0.2032222747 | S29: -0.3237097665 | T29: -0.4391458756 | U29: -0.5477292602 | V29: -0.6477655129 | W29: -0.7376936015 | X29: -0.8161102281 | Y29: -0.8817917275 | Z29: -0.933713162 | AA29: -0.9710643149 | AB29: -0.9932623339 | AC29: -0.9999608264 | AD29: -0.9910552646 | AE29: -0.966684617 | AF29: -0.9272291791 | AG29: -0.8733046401 | AH29: -0.8057524742 | AI29: -0.7256268105 | AJ29: -0.6341779831 | AK29: -0.5328330203 | AL29: -0.4231733765 | AM29: -0.3069102537 | AN29: -0.185857899 | AO29: -0.06190529399 | AP29: 0.06301332244 | AQ29: 0.1869486371 | AR29: 0.3079666807 | AS29: 0.4241790073 | AT29: 0.5337721624 | AU29: 0.6350359814 | AV29: 0.7263902763 | AW29: 0.8064094939 | AX29: 0.8738449611 | AY29: 0.9276443699 | AZ29: 0.9669681985 | BA29: 0.9912028119 | BB29: -0.2652609953
C30: 2.6 | D30: 0.7106011567 | E30: 0.6133950874 | F30: 0.5058372322 | G30: 0.3897427603 | H30: 0.2670709068 | I30: 0.1398919079 | J30: 0.01035206343 | K30: -0.1193624847 | L30: -0.2470626461 | M30: -0.3705933258 | N30: -0.4878697938 | O30: -0.5969128674 | P30: -0.6958823126 | Q30: -0.7831079 | R30: -0.8571175919 | S30: -0.9166623852 | T30: -0.9607373892 | U30: -0.9885987848 | V30: -0.9997763772 | W30: -0.9940815309 | X30: -0.9716103534 | Y30: -0.932742073 | Z30: -0.8781326392 | AA30: -0.8087036522 | AB30: -0.7256268105 | AC30: -0.6303041365 | AD30: -0.5243443159 | AE30: -0.4095355492 | AF30: -0.2878153735 | AG30: -0.1612379643 | AH30: -0.03193946903 | AI30: 0.09789804353 | AJ30: 0.2260834079 | AK30: 0.3504533406 | AL30: 0.4689089483 | AM30: 0.5794511488 | AN30: 0.6802144086 | AO30: 0.7694982255 | AP30: 0.8457958267 | AQ30: 0.9078195978 | AR30: 0.9545228123 | AS30: 0.985117297 | AT30: 0.9990867327 | AU30: 0.9961953684 | AV30: 0.9764919993 | AW30: 0.9403091436 | AX30: 0.8882574309 | AY30: 0.8212152971 | AZ30: 0.7403141593 | BA30: 0.6469193223 | BB30: 1.131685899
C31: 2.7 | D31: 0.03534488503 | E31: -0.0994829219 | F31: -0.2325004045 | G31: -0.3612869988 | H31: -0.4834991316 | I31: -0.5969128674 | J31: -0.6994643783 | K31: -0.7892874998 | L31: -0.8647476902 | M31: -0.9244717749 | N31: -0.9673729347 | O31: -0.9926704826 | P31: -0.9999040705 | Q31: -0.9889420666 | R31: -0.95998395 | S31: -0.9135566814 | T31: -0.8505051135 | U31: -0.7719766169 | V31: -0.6794002012 | W31: -0.5744605106 | X31: -0.4590671682 | Y31: -0.3353200256 | Z31: -0.2054709513 | AA31: -0.07188285269 | AB31: 0.06301332244 | AC31: 0.1967628229 | AD31: 0.3269317638 | AE31: 0.451151417 | AF31: 0.5671613156 | AG31: 0.6728503883 | AH31: 0.7662953753 | AI31: 0.8457958267 | AJ31: 0.9099050459 | AK31: 0.9574564158 | AL31: 0.987584628 | AM31: 0.9997414294 | AN31: 0.9937055985 | AO31: 0.9695869713 | AP31: 0.9278244427 | AQ31: 0.8691779795 | AR31: 0.7947147912 | AS31: 0.7057899095 | AT31: 0.6040215306 | AU31: 0.491261568 | AV31: 0.3695619528 | AW31: 0.2411372939 | AX31: 0.1083245783 | AY31: -0.02645935616 | AZ31: -0.1607618008 | BA31: -0.2921388087 | BB31: -0.4464260062
C32: 2.8 | D32: -0.6591198088 | E32: -0.7576126959 | F32: -0.841280612 | G32: -0.9084863428 | H32: -0.9579148059 | I32: -0.9885987848 | J32: -0.9999378553 | K32: -0.9917101342 | L32: -0.9640766217 | M32: -0.9175780505 | N32: -0.8531243051 | O32: -0.7719766169 | P32: -0.6757228843 | Q32: -0.5662466013 | R32: -0.4456900004 | S32: -0.3164121343 | T32: -0.1809427131 | U32: -0.04193260354 | V32: 0.09789804353 | W32: 0.235813021 | X32: 0.3691136074 | Y32: 0.495191376 | Z32: 0.6115792359 | AA32: 0.7159997088 | AB32: 0.8064094939 | AC32: 0.881039452 | AD32: 0.9384292233 | AE32: 0.9774558046 | AF32: 0.9973555232 | AG32: 0.9977389814 | AH32: 0.9785986756 | AI32: 0.9403091436 | AJ32: 0.8836196351 | AK32: 0.8096394509 | AL32: 0.7198162358 | AM32: 0.6159076512 | AN32: 0.4999469809 | AO32: 0.3742033444 | AP32: 0.2411372939 | AQ32: 0.1033526671 | AR32: -0.03645436549 | AS32: -0.1755480588 | AT32: -0.3112066263 | AU32: -0.4407755003 | AV32: -0.5617192759 | AW32: -0.6716713244 | AX32: -0.7684801034 | AY32: -0.8502512579 | AZ32: -0.9153846894 | BA32: -0.9626058663 | BB32: -4.24190609
C33: 2.9 | D33: -0.9953812856 | E33: -0.9988070064 | F33: -0.9812695778 | G33: -0.9431370786 | H33: -0.8852098408 | I33: -0.8087036522 | J33: -0.7152242391 | K33: -0.6067335651 | L33: -0.4855086527 | M33: -0.3540937934 | N33: -0.2152471469 | O33: -0.07188285269 | P33: 0.07299013233 | Q33: 0.2163311867 | R33: 0.3551318414 | S33: 0.4864789222 | T33: 0.6076156917 | U33: 0.7159997088 | V33: 0.8093561891 | W33: 0.8857257494 | X33: 0.943505531 | Y33: 0.9814828408 | Z33: 0.998860604 | AA33: 0.9952740928 | AB33: 0.9707985815 | AC33: 0.9259477669 | AD33: 0.8616629863 | AE33: 0.7792934606 | AF33: 0.6805679771 | AG33: 0.5675586048 | AH33: 0.4426372057 | AI33: 0.3084256535 | AJ33: 0.1677408057 | AK33: 0.02353538221 | AL33: -0.1211640063 | AM33: -0.2633203818 | AN33: -0.3999501395 | AO33: -0.5281856685 | AP33: -0.6453355372 | AQ33: -0.7489409821 | AR33: -0.8368275128 | AS33: -0.90715055 | AT33: -0.9584341407 | AU33: -0.9896019353 | AV33: -0.9999997781 | AW33: -0.9894094374 | AX33: -0.9580531851 | AY33: -0.9065891322 | AZ33: -0.8360974159 | BA33: -0.7480575297 | BB33: -6.101395109
C34: 3 | D34: =COS((ω+D$3*δω)*t-(ω+D$3*δω)/(c_*(1-D$3*δc))*$C34) -> -0.790695921 | E34: -0.6903298762 | F34: -0.5744605106 | G34: -0.4456900004 | H34: -0.3069102537 | I34: -0.1612379643 | J34: -0.01194461787 | K34: 0.1376169789 | L34: 0.2840879951 | M34: 0.4241790073 | N34: =COS((ω+N$3*δω)*t-(ω+N$3*δω)/(c_*(1-N$3*δc))*$C34) -> 0.5547438735 | O34: 0.6728503883 | P34: 0.7758461339 | Q34: 0.861418048 | R34: 0.9276443699 | S34: 0.973037799 | T34: 0.996578897 | U34: 0.9977389814 | V34: 0.9764919993 | W34: 0.9333151121 | X34: =COS((ω+X$3*δω)*t-(ω+X$3*δω)/(c_*(1-X$3*δc))*$C34) -> 0.8691779795 | Y34: 0.7855209834 | Z34: 0.6842228795 | AA34: 0.5675586048 | AB34: 0.4381481874 | AC34: 0.2988979064 | AD34: 0.1529350227 | AE34: 0.003537548135 | AF34: -0.1459393721 | AG34: -0.2921388087 | AH34: =COS((ω+AH$3*δω)*t-(ω+AH$3*δω)/(c_*(1-AH$3*δc))*$C34) -> -0.4317774375 | AI34: -0.5617192759 | AJ34: -0.6790461103 | AK34: -0.7811230331 | AL34: -0.8656576165 | AM34: -0.9307513961 | AN34: -0.9749425059 | AO34: -0.9972385089 | AP34: -0.9971386849 | AQ34: -0.9746452757 | AR34: =COS((ω+AR$3*δω)*t-(ω+AR$3*δω)/(c_*(1-AR$3*δc))*$C34) -> -0.9302634349 | AS34: -0.8649898828 | AT34: -0.7802905228 | AU34: -0.6780675198 | AV34: -0.5606165822 | AW34: -0.4305754048 | AX34: -0.290864432 | AY34: -0.1446212712 | AZ34: 0.004869771649 | BA34: 0.1542514499 | BB34: -2.819006303
C35: 3.1 | D35: -0.1563013916 | E35: -0.001944900697 | F35: 0.152458223 | G35: 0.3032058653 | H35: 0.4466835591 | I35: 0.5794511488 | J35: 0.698325274 | K35: 0.800455697 | L35: 0.8833936431 | M35: 0.9451505141 | N35: 0.9842455695 | O35: 0.9997414294 | P35: 0.9912665506 | Q35: 0.9590241347 | R35: 0.9037872562 | S35: 0.8268803262 | T35: 0.7301473376 | U35: 0.6159076512 | V35: 0.4869003849 | W35: 0.3462187381 | X35: 0.1972358259 | Y35: 0.04352380244 | Z35: -0.1112317885 | AA35: -0.2633203818 | AB35: -0.4090953584 | AC35: -0.5450614808 | AD35: -0.6679586977 | AE35: -0.7748403099 | AF35: -0.8631436238 | AG35: -0.9307513961 | AH35: -0.9760425994 | AI35: -0.9979312894 | AJ35: -0.9958926424 | AK35: -0.9699755387 | AL35: -0.9208013912 | AM35: -0.8495492455 | AN35: -0.7579275098 | AO35: -0.6481329928 | AP35: -0.522798231 | AQ35: -0.3849283681 | AR35: -0.2378291015 | AS35: -0.08502742109 | AT35: 0.06981295652 | AU35: 0.2229794332 | AV35: 0.3707995457 | AW35: 0.5097290203 | AX35: 0.6364367536 | AY35: 0.747884682 | AZ35: 0.8414006254 | BA35: 0.9147423578 | BB35: 4.137302645
C36: 3.2 | D36: 0.5630362097 | E36: 0.6875104081 | F36: 0.7944218553 | G36: 0.881039452 | H36: 0.9451505141 | I36: 0.985117297 | J36: 0.9999188316 | K36: 0.9891770065 | L36: 0.9531662263 | M36: 0.8928064018 | N36: 0.8096394509 | O36: 0.7057899095 | P36: 0.5839106591 | Q36: 0.447115158 | R36: 0.2988979064 | S36: 0.1430451783 | T36: -0.01646170091 | U36: -0.1755480588 | V36: -0.3301499655 | W36: -0.4763180482 | X36: -0.6103183801 | Y36: -0.7287278645 | Z36: -0.8285216799 | AA36: -0.90715055 | AB36: -0.9626058663 | AC36: -0.9934709987 | AD36: -0.998957484 | AE36: -0.9789251676 | AF36: -0.9338857837 | AG36: -0.8649898828 | AH36: -0.7739974406 | AI36: -0.6632328985 | AJ36: -0.5355257846 | AK36: -0.3941384325 | AL36: -0.2426826434 | AM36: -0.08502742109 | AN36: 0.07479986358 | AO36: 0.2327163533 | AP36: 0.384688003 | AQ36: 0.526832631 | AR36: 0.6555190911 | AS36: 0.7674600321 | AT36: 0.8597958741 | AU36: 0.9301678579 | AV36: 0.9767783008 | AW36: 0.9984365189 | AX36: 0.9945892435 | AY36: 0.9653347549 | AZ36: 0.9114203719 | BA36: 0.8342233605 | BB36: 9.291868669
C37: 3.3 | D37: 0.9763878902 | E37: 0.9986095038 | F37: 0.9937055985 | G37: 0.9618093806 | H37: 0.9037872562 | I37: 0.8212152971 | J37: 0.7163364293 | K37: 0.5919995078 | L37: 0.4515819324 | M37: 0.2988979064 | N37: 0.13809483 | O37: -0.02645935616 | P37: -0.1902948192 | Q37: -0.348961249 | R37: -0.4981487434 | S37: -0.6338048794 | T37: -0.7522447901 | U37: -0.8502512579 | V37: -0.9251621049 | W37: -0.9749425059 | X37: -0.9982402616 | Y37: -0.9944225282 | Z37: -0.963593008 | AA37: -0.9065891322 | AB37: -0.8249593135 | AC37: -0.7209208863 | AD37: -0.5972998765 | AE37: -0.4574542373 | AF37: -0.3051826364 | AG37: -0.1446212712 | AH37: 0.01986848346 | AI37: 0.1838185447 | AJ37: 0.3427754897 | AK37: 0.4924215248 | AL37: 0.6286917716 | AM37: 0.747884682 | AN37: 0.8467625843 | AO37: 0.9226396296 | AP37: 0.9734547477 | AQ37: 0.9978276329 | AR37: 0.9950962374 | AS37: 0.9653347549 | AT37: 0.9093516052 | AU37: 0.8286674748 | AV37: 0.72547401 | AW37: 0.6025742848 | AX37: 0.4633066599 | AY37: 0.3114541022 | AZ37: 0.1511414266 | BA37: -0.01327674722 | BB37: 7.834141575
C38: 3.4 | D38: 0.8591148214 | E38: 0.7601458499 | F38: 0.6392615192 | G38: 0.4999469809 | H38: 0.3462187381 | I38: 0.1825088476 | J38: 0.01353714202 | K38: -0.1558248457 | L38: -0.3206943305 | M38: -0.4763180482 | N38: -0.6182092946 | O38: -0.7422772788 | P38: -0.844945063 | Q38: -0.9232526871 | R38: -0.9749425059 | S38: -0.9985242777 | T38: -0.9933181291 | U38: -0.9594741558 | V38: -0.8979680953 | W38: -0.810573196 | X38: -0.6998090935 | Y38: -0.5688691687 | Z38: -0.4215284805 | AA38: -0.2620349298 | AB38: -0.09498678981 | AC38: 0.07479986358 | AD38: 0.242430002 | AE38: 0.4030707705 | AF38: 0.5520908207 | AG38: 0.6851938353 | AH38: 0.7985423921 | AI38: 0.8888685995 | AJ38: 0.9535683108 | AK38: 0.9907762031 | AL38: 0.9994195557 | AM38: 0.9792491765 | AN38: 0.9308465871 | AO38: 0.8556072566 | AP38: 0.7557003701 | AQ38: 0.6340062896 | AR38: 0.4940335122 | AS38: 0.3398175183 | AT38: 0.175804427 | AU38: 0.006722812051 | AV38: -0.1625526247 | AW38: -0.3271415935 | AX38: -0.4822989176 | AY38: -0.6235513391 | AZ38: -0.7468264848 | BA38: -0.8485702748 | BB38: 0.1067905975
C39: 3.5 | D39: 0.2749498633 | E39: 0.1033526671 | F39: -0.07140163498 | G39: -0.2439748369 | H39: -0.4090953584 | I39: -0.5617192759 | J39: -0.6971843983 | K39: -0.8113526832 | L39: -0.9007366408 | M39: -0.9626058663 | N39: -0.9950704453 | O39: -0.9971386849 | P39: -0.9687474066 | Q39: -0.9107638767 | R39: -0.8249593135 | S39: -0.7139547823 | T39: -0.58114113 | U39: -0.4305754048 | V39: -0.2668569262 | W39: -0.09498678981 | X39: 0.07978490064 | Y39: 0.2521194079 | Z39: 0.4167524433 | AA39: 0.5686549742 | AB39: 0.7031868458 | AC39: 0.8162385236 | AD39: 0.9043566267 | AE39: 0.9648494183 | AF39: 0.9958690298 | AG39: 0.9964679076 | AH39: 0.9666277577 | AI39: 0.9072601048 | AJ39: 0.8201784482 | AK39: 0.7080428643 | AL39: 0.5742787502 | AM39: 0.4229721877 | AN39: 0.2587451268 | AO39: 0.08661419855 | AP39: -0.08816252685 | AQ39: -0.2602461584 | AR39: -0.4243800708 | AS39: -0.5755504782 | AT39: -0.7091395899 | AU39: -0.8210666698 | AV39: -0.90791269 | AW39: -0.9670247718 | AX39: -0.9965972233 | AY39: -0.9957266968 | AZ39: -0.9644397845 | BA39: -0.9036922051 | BB39: -8.234902274
C40: 3.6 | D40: -0.4586384989 | E40: -0.6103183801 | F40: -0.7422772788 | G40: -0.8502512579 | H40: -0.9307513961 | I40: -0.9811765232 | J40: -0.9998972717 | K40: -0.9863087251 | L40: -0.940849965 | M40: -0.8649898828 | N40: -0.761179716 | O40: -0.6327738426 | P40: -0.4839213919 | Q40: -0.3194321759 | R40: -0.1446212712 | S40: 0.03486272495 | T40: 0.2132202153 | U40: 0.384688003 | V40: 0.5437255156 | W40: 0.6851938353 | X40: 0.8045217507 | Y40: 0.8978534651 | Z40: 0.9621731866 | AA40: 0.9954025769 | AB40: 0.9964679076 | AC40: 0.9653347549 | AD40: 0.9030091126 | AE40: 0.811504885 | AF40: 0.6937788129 | AG40: 0.5536349335 | AH40: 0.395601662 | AI40: 0.2247854666 | AJ40: 0.04670586501 | AK40: -0.1328829252 | AL40: -0.3081779206 | AM40: -0.4735148818 | AN40: -0.6235513391 | AO40: -0.7534392224 | AP40: -0.8589815147 | AQ40: -0.9367678685 | AR40: -0.9842848033 | AS40: -0.9999969228 | AT40: -0.9833965273 | AU40: -0.935020019 | AV40: -0.8564305694 | AW40: -0.7501676089 | AX40: -0.6196647718 | AY40: -0.4691389458 | AZ40: -0.303454014 | BA40: -0.1279636896 | BB40: -10.71175645
C41: 3.7 | D41: -0.942976598 | E41: -0.9881141469 | F41: -0.9995298315 | G41: -0.976834063 | H41: -0.9208013912 | I41: -0.8333440712 | J41: -0.7174468024 | K41: -0.5770648687 | L41: -0.4169891545 | M41: -0.2426826434 | N41: -0.06009398077 | O41: 0.1245455392 | P41: 0.3049346314 | Q41: 0.4749170673 | R41: 0.6286917716 | S41: 0.7610107983 | T41: 0.86735843 | U41: 0.9441052879 | V41: 0.9886321937 | W41: 0.9994195557 | X41: 0.976099228 | Y41: 0.9194670751 | Z41: 0.8314558108 | AA41: 0.7150690394 | AB41: 0.5742787502 | AC41: 0.4138897637 | AD41: 0.2393757548 | AE41: 0.05669245011 | AF41: -0.1279256261 | AG41: -0.3081779206 | AH41: -0.4779128736 | AI41: -0.6313378555 | AJ41: -0.7632168556 | AK41: -0.8690491734 | AL41: -0.9452230167 | AM41: -0.9891387626 | AN41: -0.9992976766 | AO41: -0.9753530605 | AP41: -0.918122084 | AQ41: -0.8295578973 | AR41: -0.7126829744 | AS41: -0.5714859643 | AT41: -0.4107855676 | AU41: -0.236066087 | AV41: -0.05329026125 | AW41: 0.1313042278 | AX41: 0.3114176319 | AY41: 0.4809031313 | AZ41: 0.6339766096 | BA41: 0.7654140519 | BB41: -5.351542409
C42: 3.8 | D42: -0.9148475455 | E42: -0.8221230527 | F42: -0.6998090935 | G42: -0.5523079346 | H42: -0.3849283681 | I42: -0.2036946408 | J42: -0.01512963183 | K42: 0.1739799158 | L42: 0.35682766 | M42: 0.526832631 | N42: 0.6778760896 | O42: 0.8045217507 | P42: 0.9022114433 | Q42: 0.9674291659 | R42: 0.9978276329 | S42: 0.9923127569 | T42: 0.9510830268 | U42: 0.8756223637 | V42: 0.7686467121 | W42: 0.6340062896 | X42: 0.4765470108 | Y42: 0.3019360761 | Z42: 0.1164580001 | AA42: -0.0732115775 | AB42: -0.2602461584 | AC42: -0.4379140819 | AD42: -0.5998208078 | AE42: -0.7401390651 | AF42: -0.8538185853 | AG42: -0.9367678685 | AH42: -0.986001443 | AI42: -0.9997473172 | AJ42: -0.9775107561 | AK42: -0.9200920876 | AL42: -0.8295578973 | AM42: -0.7091666492 | AN42: -0.5632514086 | AO42: -0.3970638881 | AP42: -0.2165854309 | AQ42: -0.02831173269 | AR42: 0.1609809481 | AS42: 0.3444796783 | AT42: 0.5155800579 | AU42: 0.6681239224 | AV42: 0.796620985 | AW42: 0.8964464396 | AX42: 0.9640074156 | AY42: 0.9968722899 | AZ42: 0.9938582056 | BA42: 0.955073644 | BB42: 3.69411509
C43: 3.9 | D43: -0.3895382695 | E43: -0.2036946408 | F43: -0.01013003584 | G43: 0.1838185447 | H43: 0.3707995457 | I43: 0.5437255156 | J43: 0.6960417542 | K43: 0.8219747662 | L43: 0.9167511034 | M43: 0.9767783008 | N43: 0.999781048 | O43: 0.9848874336 | P43: 0.9326619951 | Q43: 0.8450843198 | R43: 0.72547401 | S43: 0.5783648538 | T43: 0.409332974 | U43: 0.2247854666 | V43: 0.0317175423 | W43: -0.1625526247 | X43: -0.3506612895 | Y43: -0.5254782571 | Z43: -0.6803771496 | AA43: -0.8094865769 | AB43: -0.90791269 | AC43: -0.9719246804 | AD43: -0.9990961954 | AE43: -0.988397308 | AF43: -0.9402335557 | AG43: -0.8564305694 | AH43: -0.7401648727 | AI43: -0.5958434775 | AJ43: -0.4289368373 | AK43: -0.2457714918 | AL43: -0.05329026125 | AM43: 0.1412109186 | AN43: 0.3303595465 | AO43: 0.5069860078 | AP43: 0.6643953363 | AQ43: 0.796620985 | AR43: 0.8986509853 | AS43: 0.9666179248 | AT43: 0.9979455396 | AU43: 0.9914463672 | AV43: 0.9473667564 | AW43: 0.8673775299 | AX43: 0.7545106523 | AY43: 0.6130443043 | AZ43: 0.4483407198 | BA43: 0.2666429324 | BB43: 9.573574897
C44: 4 | D44: =COS((ω+D$3*δω)*t-(ω+D$3*δω)/(c_*(1-D$3*δc))*$C44) -> 0.3474682722 | E44: 0.526832631 | F44: 0.6851938353 | G44: 0.8162385236 | H44: 0.9147423578 | I44: 0.9767783008 | J44: 0.9998731754 | K44: 0.9831062618 | L44: 0.9271460038 | M44: 0.8342233605 | N44: =COS((ω+N$3*δω)*t-(ω+N$3*δω)/(c_*(1-N$3*δc))*$C44) -> 0.7080428643 | O44: 0.5536349335 | P44: 0.377155325 | Q44: 0.1856397239 | R44: -0.01327674722 | S44: -0.2116639163 | T44: -0.401612713 | U44: -0.5755504782 | V44: -0.7265428621 | W44: -0.8485702748 | X44: =COS((ω+X$3*δω)*t-(ω+X$3*δω)/(c_*(1-X$3*δc))*$C44) -> -0.9367678685 | Y44: -0.9876194833 | Z44: -0.9990978261 | AA44: -0.9707452913 | AB44: -0.9036922051 | AC44: -0.8006117625 | AD44: -0.6656134553 | AE44: -0.5040792402 | AF44: -0.3224489765 | AG44: -0.1279636896 | AH44: =COS((ω+AH$3*δω)*t-(ω+AH$3*δω)/(c_*(1-AH$3*δc))*$C44) -> 0.07162310573 | AI44: 0.2683545139 | AJ44: 0.4543874744 | AK44: 0.6223054402 | AL44: 0.7654140519 | AM44: 0.8780080208 | AN44: 0.9555985806 | AO44: 0.9950924406 | AP44: 0.9949151051 | AQ44: 0.955073644 | AR44: =COS((ω+AR$3*δω)*t-(ω+AR$3*δω)/(c_*(1-AR$3*δc))*$C44) -> 0.8771564107 | AS44: 0.7642697193 | AT44: 0.620914006 | AU44: 0.4528044106 | AV44: 0.2666429324 | AW44: 0.06985124181 | AX44: -0.1297251973 | AY44: -0.3241299022 | AZ44: -0.5056125708 | BA44: -0.6669380617 | BB44: 8.226224145
C45: 4.1 | D45: 0.8956407791 | E45: 0.9674291659 | F45: 0.9987035242 | G45: 0.9881541454 | H45: 0.9362228166 | I45: 0.8450843198 | J45: 0.7185553557 | K45: 0.5619347081 | L45: 0.3817813414 | M45: 0.1856397239 | N45: -0.01827611973 | O45: -0.2214265954 | P45: -0.4153041613 | Q45: -0.5917896067 | R45: -0.7434920686 | S45: -0.8640585466 | T45: -0.9484399541 | U45: -0.9931025638 | V45: -0.9961759936 | W45: -0.9575315342 | X45: -0.8787875397 | Y45: -0.7632416533 | Z45: -0.6157327094 | AA45: -0.442438092 | AB45: -0.2506150385 | AC45: -0.04829672061 | AD45: 0.1560441688 | AE45: 0.3538502357 | AF45: 0.5368377515 | AG45: 0.6973435593 | AH45: 0.8286459919 | AI45: 0.925246362 | AJ45: 0.9830992363 | AK45: 0.9997818504 | AL45: 0.9745955692 | AM45: 0.9085951445 | AN45: 0.8045445443 | AO45: 0.6668012027 | AP45: 0.5011335398 | AQ45: 0.3144793909 | AR45: 0.1146554643 | AS45: -0.08997000729 | AT45: -0.2908277122 | AU45: -0.4795061251 | AV45: -0.6481037657 | AW45: -0.7895600967 | AX45: -0.8979512056 | AY45: -0.968737886 | AZ45: -0.9989557313 | BA45: -0.9873392775 | BB45: 1.345139187
C46: 4.2 | D46: 0.9570711125 | E46: 0.8756223637 | F46: 0.7557003701 | G46: 0.6025742848 | H46: 0.4229721877 | I46: 0.2247854666 | J46: 0.01672208327 | K46: -0.1920760378 | L46: -0.3924346891 | M46: -0.5755504782 | N46: -0.7333776322 | O46: -0.8589815147 | P46: -0.9468433209 | Q46: -0.9931025638 | R46: -0.9957266968 | S46: -0.9546004205 | T46: -0.871530748 | U46: -0.7501676089 | V46: -0.5958434775 | W46: -0.4153390737 | X46: -0.2165854309 | Y46: -0.00831542045 | Z46: 0.2003199543 | AA46: 0.4001536368 | AB46: 0.5824053006 | AC46: 0.7390671409 | AD46: 0.8632557231 | AE46: 0.9495144281 | AF46: 0.9940532063 | AG46: 0.9949151051 | AH46: 0.9520622544 | AI46: 0.8673775299 | AJ46: 0.7445818236 | AK46: 0.5890705542 | AL46: 0.4076766023 | AM46: 0.2083700863 | AN46: -9.183012746e-05 | AO46: -0.2085497117 | AP46: -0.4078443004 | AQ46: -0.5892189567 | AR46: -0.74470441 | AS46: -0.8674689139 | AT46: -0.9521184208 | AU46: -0.9949335861 | AV46: -0.9940331897 | AW46: -0.9494567936 | AX46: -0.8631630029 | AY46: -0.738943409 | AZ46: -0.5822559936 | BA46: -0.399985315 | BB46: -5.444971733
C47: 4.3 | D47: 0.498374533 | E47: 0.3019360761 | F47: 0.09159430477 | G47: -0.1229651289 | H47: -0.3318623612 | I47: -0.5254782571 | J47: -0.6948973446 | K47: -0.832318347 | L47: -0.9314134104 | M47: -0.9876194833 | N47: -0.998348433 | O47: -0.9631062212 | P47: -0.8835156534 | Q47: -0.7632416533 | R47: -0.6078225034 | S47: -0.424414822 | T47: -0.2214640216 | U47: -0.00831542045 | V47: 0.2052160826 | W47: 0.4092979573 | X47: 0.5945328023 | Y47: 0.7523910696 | Z47: 0.8756038261 | AA47: 0.958497468 | AB47: 0.9972549741 | AC47: 0.9900916695 | AD47: 0.9373374043 | AE47: 0.8414213652 | AF47: 0.7067602186 | AG47: 0.5395547346 | AH47: 0.3475042596 | AI47: 0.1394521824 | AJ47: -0.07502127893 | AK47: -0.2860402196 | AL47: -0.4838878057 | AM47: -0.6594537076 | AN47: -0.8046536051 | AO47: -0.9128014479 | AP47: -0.9789173292 | AQ47: -0.9999567971 | AR47: -0.9749510428 | AS47: -0.9050515116 | AT47: -0.7934768819 | AU47: -0.6453648544 | AV47: -0.4675355748 | AW47: -0.2681775857 | AX47: -0.05647076659 | AY47: 0.1578363739 | AZ47: 0.3648755894 | BA47: 0.5551133015 | BB47: -7.343897277
C48: 4.4 | D48: -0.2311671321 | E48: -0.4379140819 | F48: -0.6235513391 | G48: -0.7791302407 | H48: -0.8971510902 | I48: -0.9719246804 | J48: -0.9998465429 | K48: -0.9795707015 | L48: -0.9120745552 | M48: -0.8006117625 | N48: -0.6505553986 | O48: -0.4691389458 | P48: -0.2651076027 | Q48: -0.04829672061 | R48: 0.1708423097 | S48: 0.3817458692 | T48: 0.5742473304 | U48: 0.7390671409 | V48: 0.8682601449 | W48: 0.9555985806 | X48: 0.9968722899 | Y48: 0.9900916695 | Z48: 0.9355835798 | AA48: 0.8359755888 | AB48: 0.6960693099 | AC48: 0.5226089393 | AD48: 0.3239561518 | AE48: 0.1096870253 | AF48: -0.1098695755 | AG48: -0.3241299022 | AH48: -0.5227655142 | AI48: -0.6962011615 | AJ48: -0.8360763613 | AK48: -0.9356484154 | AL48: -0.9901174428 | AM48: -0.9968577586 | AN48: -0.955544445 | AO48: -0.8681690147 | AP48: -0.738943409 | AQ48: -0.5740969614 | AR48: -0.3815761116 | AS48: -0.1706613467 | AT48: 0.04848016572 | AU48: 0.2652846869 | AV48: 0.4693011328 | AW48: 0.65069487 | AX48: 0.8007217951 | AY48: 0.912149845 | AZ48: 0.9796076191 | BA48: 0.9998433086 | BB48: -3.940008861
C49: 4.5 | D49: -0.835079421 | E49: -0.9367678685 | F49: -0.9912321747 | G49: -0.9957266968 | H49: -0.9500248579 | I49: -0.8564305694 | J49: -0.7196620863 | K49: -0.5466141522 | L49: -0.3460104226 | M49: -0.1279636896 | N49: 0.09653392146 | O49: 0.3161650852 | P49: 0.5198578023 | Q49: 0.6973435593 | R49: 0.839674982 | S49: 0.9396768894 | T49: 0.9923080066 | U49: 0.9949151051 | V49: 0.9473667564 | W49: 0.8520599576 | X49: 0.7137992947 | Y49: 0.5395547346 | Z49: 0.3381102567 | AA49: 0.119621037 | AB49: -0.1048984928 | AC49: -0.3241299022 | AD49: -0.5270213444 | AE49: -0.7033446995 | AF49: -0.8442111922 | AG49: -0.9425194911 | AH49: -0.9933136991 | AI49: -0.9940331897 | AJ49: -0.944641692 | AK49: -0.8476291196 | AL49: -0.7078860496 | AM49: -0.5324571796 | AN49: -0.3301861922 | AO49: -0.1112699293 | AP49: 0.1132556495 | AQ49: 0.3320718088 | AR49: 0.5341476351 | AS49: 0.7092961252 | AT49: 0.848687731 | AU49: 0.9452954726 | AV49: 0.9942491812 | AW49: 0.9930810131 | AX49: 0.9418498575 | AY49: 0.8431383687 | AZ49: 0.7019227689 | BA49: 0.5253219888 | BB49: 1.176250876
C50: 4.6 | D50: -0.9851620251 | E50: -0.9200920876 | F50: -0.8065634668 | G50: -0.6505553986 | H50: -0.4602843926 | I50: -0.2457714918 | J50: -0.01831449228 | K50: 0.2101070805 | L50: 0.4274628995 | M50: 0.6223054402 | N50: 0.7843728897 | O50: 0.9051296074 | P50: 0.9782156741 | Q50: 0.9997818504 | R50: 0.9686923061 | S50: 0.8865844406 | T50: 0.7577826463 | U50: 0.5890705542 | V50: 0.3893337595 | W50: 0.169091842 | X50: -0.06005567111 | Y50: -0.2860402196 | Z50: -0.4969598277 | AA50: -0.6817059482 | AB50: -0.8305485184 | AC50: -0.9356484154 | AD50: -0.9914703208 | AE50: -0.9950742507 | AF50: -0.946270396 | AG50: -0.8476291196 | AH50: -0.7043455825 | AI50: -0.5239661286 | AJ50: -0.3159908406 | AK50: -0.09137319664 | AL50: 0.1380568186 | AM50: 0.3602157665 | AN50: 0.5634031549 | AO50: 0.736917671 | AP50: 0.8716207895 | AQ50: 0.9604180727 | AR50: 0.9986328157 | AS50: 0.9842523544 | AT50: 0.9180340678 | AU50: 0.8034654881 | AV50: 0.6465806228 | AW50: 0.4556421601 | AX50: 0.240706296 | AY50: 0.01309310293 | AZ50: -0.2152096673 | BA50: -0.4321779449 | BB50: 3.937760768
C51: 4.7 | D51: -0.5998515157 | E51: -0.3970638881 | F51: -0.1724491355 | G51: 0.06164537317 | H51: 0.2923511545 | I51: 0.5069860078 | J51: 0.6937511723 | K51: 0.842379921 | L51: 0.9447019357 | M51: 0.9950924406 | N51: 0.9907814031 | O51: 0.9320058067 | P51: 0.8219966233 | Q51: 0.6668012027 | R51: 0.4749508416 | S51: 0.2569918071 | T51: 0.02490559438 | U51: -0.2085497117 | V51: -0.4305407653 | W51: -0.628864426 | X51: -0.7926185807 | Y51: -0.9128014479 | Z51: -0.982806417 | AA51: -0.9987852227 | AB51: -0.959859489 | AC51: -0.8681690147 | AD51: -0.728754146 | AE51: -0.5492787019 | AF51: -0.3396086839 | AG51: -0.1112699293 | AH51: 0.12318548 | AI51: 0.3508692211 | AJ51: 0.559265219 | AK51: 0.736917671 | AL51: 0.8740607879 | AM51: 0.9631556319 | AN51: 0.9993045419 | AO51: 0.9805203649 | AP51: 0.9078356917 | AQ51: 0.7852460947 | AR51: 0.6194904854 | AS51: 0.419680668 | AT51: 0.1968004514 | AU51: -0.03689814518 | AV51: -0.2685684021 | AW51: -0.4854751003 | AX51: -0.6756945926 | AY51: -0.828770263 | AZ51: -0.9362873403 | BA51: -0.9923354692 | BB51: 3.116373205
C52: 4.8 | D52: 0.1114524472 | E52: 0.3444796783 | F52: 0.557759939 | G52: 0.7390671409 | H52: 0.8780080208 | I52: 0.9666179248 | J52: 0.9998173743 | K52: 0.9757032423 | L52: 0.8956578486 | M52: 0.7642697193 | N52: 0.5890705542 | O52: 0.380103479 | P52: 0.1493473329 | Q52: -0.08997000729 | R52: -0.3241299022 | S52: -0.5397093583 | T52: -0.724350488 | U52: -0.8674689139 | V52: -0.9608605082 | W52: -0.9991716864 | X52: -0.9802062965 | Y52: -0.9050515116 | Z52: -0.7780155083 | AA52: -0.6063805049 | AB52: -0.399985315 | AC52: -0.1706613467 | AD52: 0.06844562118 | AE52: 0.3036290088 | AF52: 0.5214071519 | AG52: 0.7092961252 | AH52: 0.8565253718 | AI52: 0.9546551148 | AJ52: 0.99806016 | AK52: 0.9842523544 | AL52: 0.9140232174 | AM52: 0.7913985674 | AN52: 0.6234077462 | AO52: 0.419680668 | AP52: 0.191895794 | AQ52: -0.04688932405 | AR52: -0.2829865562 | AS52: -0.5028618527 | AT52: -0.6939110711 | AU52: -0.8451824964 | AV52: -0.9480046377 | AW52: -0.9964833135 | AX52: -0.9878395297 | AY52: -0.9225687831 | AZ52: -0.8044126571 | BA52: -0.6401443395 | BB52: 0.6707856942
C53: 4.9 | D53: 0.762186807 | E53: 0.8964464396 | F53: 0.9771654948 | G53: 0.9995229988 | H53: 0.9621836418 | I53: 0.8673775299 | J53: 0.7207669915 | K53: 0.5311083921 | L53: 0.3097291582 | M53: 0.06985124181 | N53: -0.1741985644 | O53: -0.4078443004 | P53: -0.6171313928 | Q53: -0.7895600967 | R53: -0.9148320475 | S53: -0.9854653339 | T53: -0.9972413584 | U53: -0.9494567936 | V53: -0.8449655895 | W53: -0.6900085197 | X53: -0.4938404496 | Y53: -0.2681775857 | Z53: -0.02649772168 | AA53: 0.2167647281 | AB53: 0.4470808285 | AC53: 0.65069487 | AD53: 0.8154459326 | AE53: 0.9314942015 | AF53: 0.991908653 | AG53: 0.9930810131 | AH53: 0.934941262 | AI53: 0.8209618167 | AJ53: 0.6579501396 | AK53: 0.4556421601 | AL53: 0.226120793 | AM53: -0.01690571756 | AN53: -0.2589225282 | AO53: -0.4854751003 | AP53: -0.683032502 | AQ53: -0.8397955484 | AR53: -0.9464015118 | AS53: -0.9964833135 | AT53: -0.9870498006 | AU53: -0.9186643927 | AV53: -0.7954114325 | AW53: -0.624652246 | AX53: -0.4165854854 | AY53: -0.1836380109 | AZ53: 0.06027730808 | BA53: 0.3005925437 | BB53: -0.712942398
C54: 5 | D54: =COS((ω+D$3*δω)*t-(ω+D$3*δω)/(c_*(1-D$3*δc))*$C54) -> 0.9987054771 | E54: 0.955073644 | F54: 0.8520599576 | G54: 0.6960693099 | H54: 0.4968004438 | I54: 0.2666429324 | J54: 0.01990685485 | K54: -0.2280669345 | L54: -0.4618606265 | M54: -0.6669380617 | N54: =COS((ω+N$3*δω)*t-(ω+N$3*δω)/(c_*(1-N$3*δc))*$C54) -> -0.8305485184 | O54: -0.9425194911 | P54: -0.9958891667 | Q54: -0.9873392775 | R54: -0.9174014141 | S54: -0.7904239742 | T54: -0.6143017999 | U54: -0.399985315 | V54: -0.1607996805 | W54: 0.08838369931 | X54: =COS((ω+X$3*δω)*t-(ω+X$3*δω)/(c_*(1-X$3*δc))*$C54) -> 0.3320718088 | Y54: 0.5551133015 | Z54: 0.7436405378 | AA54: 0.8859318073 | AB54: 0.9731401279 | AC54: 0.9998433086 | AD54: 0.9643810752 | AE54: 0.8689582973 | AF54: 0.7195079013 | AG54: 0.5253219888 | AH54: =COS((ω+AH$3*δω)*t-(ω+AH$3*δω)/(c_*(1-AH$3*δc))*$C54) -> 0.2984740994 | AI54: 0.05306853621 | AJ54: -0.1956365716 | AK54: -0.4321779449 | AL54: -0.6418485868 | AM54: -0.8116121923 | AN54: -0.9309136827 | AO54: -0.9923354692 | AP54: -0.9920586424 | AQ54: -0.9301004142 | AR54: =COS((ω+AR$3*δω)*t-(ω+AR$3*δω)/(c_*(1-AR$3*δc))*$C54) -> -0.8103130471 | AS54: -0.6401443395 | AT54: -0.4301745573 | AU54: -0.1934586046 | AV54: 0.05528566706 | AW54: 0.3005925437 | AX54: 0.5272100319 | AY54: 0.7210481539 | AZ54: 0.8700549939 | BA54: 0.9649660285 | BB54: -0.2645957845
C55: 5.1 | D55: 0.692470751 | E55: 0.4880971006 | F55: 0.2521565469 | G55: -9.183012745e-05 | H55: -0.2523342682 | I55: -0.4882573891 | J55: -0.6926032403 | K55: -0.8521560791 | L55: -0.9565970796 | M55: -0.9991716864 | N55: -0.9771264543 | O55: -0.8918871238 | P55: -0.7489664129 | Q55: -0.5576074911 | R55: -0.3301861922 | S55: -0.08141062679 | T55: 0.1726300414 | U55: 0.4155061363 | V55: 0.6315100331 | W55: 0.8066720235 | X55: 0.9296637845 | Y55: 0.9925310197 | Z55: 0.9912078907 | AA55: 0.9257799687 | AB55: 0.8004787005 | AC55: 0.6234077462 | AD55: 0.406018888 | AE55: 0.1623714044 | AF55: -0.09177719144 | AG55: -0.3399902435 | AH55: -0.5662149675 | AI55: -0.7558206397 | AJ55: -0.8965448147 | AK55: -0.9792863806 | AL55: -0.9986941582 | AM55: -0.9535129805 | AN55: -0.8466648681 | AO55: -0.6850600528 | AP55: -0.4791500687 | AQ55: -0.2422518165 | AR55: 0.0103136865 | AS55: 0.2622121682 | AT55: 0.4971524952 | AU55: 0.6999402757 | AV55: 0.8574605328 | AW55: 0.9595258945 | AX55: 0.9995354459 | AY55: 0.9749016329 | AZ55: 0.8872176083 | BA55: 0.7421541968 | BB55: 0.5175519164
C56: 5.2 | D56: 0.009908007756 | E56: -0.2474929336 | F56: -0.4882573891 | G56: -0.6962011615 | H56: -0.8573462615 | I56: -0.9608605082 | J56: -0.9997856696 | K56: -0.9715051945 | L56: -0.8779200978 | M56: -0.7253211737 | N56: -0.5239661286 | O56: -0.2873900574 | P56: -0.031495614 | Q56: 0.226515966 | R56: 0.4693011328 | S56: 0.6805398569 | T56: 0.8460326621 | U56: 0.9546551148 | V56: 0.9991056089 | W56: 0.9763961803 | X56: 0.8880533577 | Y56: 0.7400155496 | Z56: 0.5422338639 | AA56: 0.3080031941 | AB56: 0.05306853621 | AC56: -0.205433391 | AD56: -0.4501260768 | AE56: -0.6645612679 | AF56: -0.8343246216 | AG56: -0.9480046377 | AH56: -0.9979597406 | AI56: -0.9808319461 | AJ56: -0.8977725853 | AK56: -0.7543649121 | AL56: -0.5602487965 | AM56: -0.3284727322 | AN56: -0.07461671657 | AO56: 0.184255038 | AP56: 0.4307411609 | AQ56: 0.6482728441 | AR56: 0.8222275984 | AS56: 0.9409121776 | AT56: 0.996348599 | AU56: 0.9848104241 | AV56: 0.9070732493 | AW56: 0.7683625711 | AX56: 0.5780025273 | AY56: 0.3487891282 | AZ56: 0.09613010878 | BA56: -0.1629907808 | BB56: -0.1274959366
C57: 5.3 | D57: -0.6780393108 | E57: -0.8468806819 | F57: -0.9565970796 | G57: -0.999528654 | H57: -0.9726781371 | I57: -0.8779200978 | J57: -0.7218700684 | K57: -0.5154226814 | L57: -0.2729910609 | M57: -0.01150056993 | N57: 0.2507928333 | O57: 0.4955771353 | P57: 0.7057627205 | Q57: 0.8666754826 | R57: 0.9670812975 | S57: 0.9999703332 | T57: 0.9630464419 | U57: 0.8588874649 | V57: 0.6947652611 | W57: 0.4821380218 | X57: 0.2358503174 | Y57: -0.02690327652 | Z57: -0.2877786182 | AA57: -0.5285626962 | AB57: -0.7324451705 | AC57: -0.8851919865 | AD57: -0.9761391256 | AE57: -0.9989371132 | AF57: -0.9519943081 | AG57: -0.8385880221 | AH57: -0.6666357147 | AI57: -0.4481422362 | AJ57: -0.1983617081 | AK57: 0.06526744217 | AL57: 0.3243399461 | AM57: 0.5607686573 | AN57: 0.7580473057 | AO57: 0.9024028828 | AP57: 0.9837572041 | AQ57: 0.9964305181 | AR57: 0.9395380371 | AS57: 0.8170517098 | AT57: 0.6375229187 | AU57: 0.4134854663 | AV57: 0.1605805267 | AW57: -0.1035353421 | AX57: -0.3604228911 | AY57: -0.5921475166 | AZ57: -0.7825313643 | BA57: -0.9182827862 | BB57: -2.070288294
C58: 5.4 | D58: -0.9975014782 | E58: -0.9802062965 | F58: -0.8918871238 | G58: -0.738943409 | H58: -0.5324571796 | I58: -0.2873900574 | J58: -0.02149916691 | K58: 0.2459495147 | L58: 0.4955771353 | M58: 0.7092961252 | N58: 0.8716207895 | O58: 0.9707893739 | P58: 0.9996163006 | Q58: 0.9560128222 | R58: 0.8431383687 | S58: 0.6691716204 | T58: 0.4467178962 | U58: 0.191895794 | V58: -0.07683073331 | W58: -0.3399902435 | X58: -0.5785146701 | Y58: -0.7751209608 | Z58: -0.9155633764 | AA58: -0.989665711 | AB58: -0.9920586424 | AC58: -0.9225687831 | AD58: -0.7862312436 | AE58: -0.5929247978 | AF58: -0.3566560841 | AG58: -0.09454470988 | AH58: 0.1744172045 | AI58: 0.4307411609 | AJ58: 0.655854385 | AK58: 0.8334455762 | AL58: 0.950646795 | AM58: 0.9989658513 | AN58: 0.9749016329 | AO58: 0.88019779 | AP58: 0.7217163931 | AQ58: 0.5109407202 | AR58: 0.2631431987 | AS58: -0.00372120718 | AT58: -0.2703159811 | AU58: -0.5173241436 | AV58: -0.7268479261 | AW58: -0.883705611 | AX58: -0.9765315715 | AY58: -0.9985998049 | AZ58: -0.9483112868 | BA58: -0.8293098329 | BB58: -3.230465584
C59: 5.5 | D59: -0.7748645709 | E59: -0.5740969614 | F59: -0.3301861922 | G59: -0.06146206117 | H59: 0.2118809195 | I59: 0.4693011328 | J59: 0.6914535514 | K59: 0.861643509 | L59: 0.9670812975 | M59: 0.9998433086 | N59: 0.9574674904 | O59: 0.8431383687 | P59: 0.6654477318 | Q59: 0.4377489609 | R59: 0.1771535286 | S59: -0.09675492132 | T59: -0.3633922772 | U59: -0.602720847 | V59: -0.7967551834 | W59: -0.9309136827 | X59: -0.9951143867 | Y59: -0.9845326379 | Z59: -0.8999636505 | AA59: -0.7477627504 | AB59: -0.5393677752 | AC59: -0.2904395249 | AD59: -0.01968485913 | AE59: 0.2525491161 | AF59: 0.505804125 | AG59: 0.7210481539 | AH59: 0.882105699 | AI59: 0.9768733495 | AJ59: 0.9982293538 | AK59: 0.9445688168 | AL59: 0.8199243066 | AM59: 0.6336628088 | AN59: 0.3997818014 | AO59: 0.1358573496 | AP59: -0.1382767283 | AQ59: -0.4020193647 | AR59: -0.6355504048 | AS59: -0.8213200831 | AT59: -0.9453678819 | AU59: -0.998371658 | AV59: -0.9763481986 | AW59: -0.8809525579 | AX59: -0.7193536808 | AY59: -0.5036956589 | AZ59: -0.2501851073 | BA59: 0.02212675626 | BB59: -1.704762171
C60: 5.6 | D60: -0.1311221554 | E60: 0.1479539939 | F60: 0.4155061363 | G60: 0.65069487 | H60: 0.8352015507 | I60: 0.9546551148 | J60: 0.9997514288 | K60: 0.9669779805 | L60: 0.8588874649 | M60: 0.6838989576 | N60: 0.4556421601 | O60: 0.191895794 | P60: -0.08679716714 | Q60: -0.3587295731 | R60: -0.602720847 | S60: -0.7997667225 | T60: -0.9345194691 | U60: -0.9964833135 | V60: -0.9808319461 | W60: -0.8887844383 | X60: -0.7275102897 | Y60: -0.5095710024 | Z60: -0.2519416764 | AA60: 0.02531116596 | AB60: 0.3005925437 | AC60: 0.5524610318 | AD60: 0.7612988144 | AE60: 0.9108396997 | AF60: 0.9894360793 | AG60: 0.99096615 | AH60: 0.915310736 | AI60: 0.7683625711 | AJ60: 0.5615673192 | AK60: 0.311032081 | AL60: 0.0362708267 | AM60: -0.2413155305 | AN60: -0.5001060325 | AO60: -0.7199437141 | AP60: -0.883705611 | AQ60: -0.9786364524 | AR60: -0.9973421585 | AS60: -0.9383657581 | AT60: -0.8063008714 | AU60: -0.6114339167 | AV60: -0.3689429102 | AW60: -0.09771526385 | AX60: 0.1811233387 | AY60: 0.4458544033 | AZ60: 0.6758582592 | BA60: 0.8532201077 | BB60: 2.027983759
C61: 5.7 | D61: 0.583879502 | E61: 0.7885817268 | F61: 0.9296637845 | G61: 0.9957436409 | H61: 0.9814901916 | I61: 0.8880533577 | J61: 0.7229713143 | K61: 0.4995623348 | L61: 0.2358503174 | M61: -0.04688932405 | N61: -0.3258460898 | O61: -0.5785146701 | P61: -0.7845105989 | Q61: -0.9272148057 | R61: -0.9951143867 | S61: -0.9827314282 | T61: -0.8910649462 | U61: -0.7275102897 | V61: -0.5052625076 | W61: -0.2422518165 | X61: 0.04030295051 | Y61: 0.3196062086 | Z61: 0.5731246943 | AA61: 0.7804053739 | AB61: 0.9247255275 | AC61: 0.994441882 | AD61: 0.9839299524 | AE61: 0.8940378065 | AF61: 0.7320176454 | AG61: 0.5109407202 | AH61: 0.2486427866 | AI61: -0.03371482528 | AJ61: -0.3133524365 | AK61: -0.5677098088 | AL61: -0.7762662302 | AM61: -0.922196058 | AN61: -0.9937261559 | AO61: -0.9850857122 | AP61: -0.8969718092 | AQ61: -0.7364931855 | AR61: -0.5165967259 | AS61: -0.2550229499 | AT61: 0.02712523472 | AU61: 0.3070850451 | AV61: 0.562270249 | AW61: 0.7720933477 | AX61: 0.9196265071 | AY61: 0.9929672396 | AZ61: 0.9861986573 | BA61: 0.899866827 | BB61: 5.091158064
C62: 5.8 | D62: 0.9815678073 | E62: 0.9952308722 | F62: 0.9257799687 | G62: 0.779015098 | H62: 0.5671929244 | I62: 0.3080031941 | J62: 0.02309142445 | K62: -0.263748762 | L62: -0.5285626962 | M62: -0.749235171 | N62: -0.9073373315 | O62: -0.989665711 | P62: -0.9893448812 | Q62: -0.9064016353 | R62: -0.7477627504 | S62: -0.5266765165 | T62: -0.2616063423 | U62: 0.02531116596 | V62: 0.3101148818 | W62: 0.5690202064 | X62: 0.7804053739 | Y62: 0.9266171335 | Z62: 0.9954450124 | AA62: 0.9811410395 | AB62: 0.8848997718 | AC62: 0.7147585341 | AD62: 0.4849262038 | AE62: 0.2145965955 | AF62: -0.07365445702 | AG62: -0.3557544602 | AH62: -0.6081446083 | AI62: -0.8097472325 | AJ62: -0.9437260442 | AK62: -0.9988921716 | AL62: -0.9706385672 | AM62: -0.8613247531 | AN62: -0.6800797718 | AO62: -0.4420397992 | AP62: -0.1670840889 | AQ62: 0.1218251894 | AR62: 0.4005605722 | AS62: 0.6458442408 | AT62: 0.8371920043 | AU62: 0.9586239807 | AV62: 0.9999991126 | AW62: 0.9578620696 | AX62: 0.835731811 | AY62: 0.6438077093 | AZ62: 0.3981177778 | BA62: 0.1191801354 | BB62: 4.604434059
C63: 5.9 | D63: 0.8458163015 | E63: 0.6541766234 | F63: 0.406018888 | G63: 0.1227828603 | H63: -0.1710610804 | I63: -0.4501260768 | J63: -0.6903021087 | K63: -0.8708389961 | L63: -0.9761391256 | M63: -0.9971050169 | N63: -0.9319253071 | O63: -0.7862312436 | P63: -0.5726101695 | Q63: -0.3095180301 | R63: -0.01968485913 | S63: 0.2718489994 | T63: 0.5398962691 | U63: 0.7612988144 | V63: 0.9169284041 | W63: 0.9933393083 | X63: 0.9839299524 | Y63: 0.8895132645 | Z63: 0.7182464417 | AA63: 0.4849262038 | AB63: 0.2097104196 | AC63: -0.08362344633 | AD63: -0.3697326048 | AE63: -0.6238984503 | AF63: -0.8241621429 | AG63: -0.9532217577 | AH63: -0.9999270967 | AI63: -0.960243019 | AJ63: -0.8375980587 | AK63: -0.6425882149 | AL63: -0.3920615026 | AM63: -0.1076623564 | AN63: 0.1860383562 | AO63: 0.4636661519 | AP63: 0.7012351787 | AQ63: 0.8782204906 | AR63: 0.979331315 | AS63: 0.9958321098 | AT63: 0.9262972772 | AU63: 0.7767343286 | AV63: 0.5600648621 | AW63: 0.2950081912 | AX63: 0.004464076584 | AY63: -0.2864657151 | AZ63: -0.5526460965 | BA63: -0.771080223 | BB63: 0.3848723893
C64: 6 | D64: =COS((ω+D$3*δω)*t-(ω+D$3*δω)/(c_*(1-D$3*δc))*$C64) -> 0.250400079 | E64: -0.04688932405 | F64: -0.3399902435 | G64: -0.602720847 | H64: -0.8116121923 | I64: -0.9480046377 | J64: -0.9997146522 | K64: -0.9621231342 | L64: -0.8385880221 | M64: -0.6401443395 | N64: =COS((ω+N$3*δω)*t-(ω+N$3*δω)/(c_*(1-N$3*δc))*$C64) -> -0.3845184695 | O64: -0.09454470988 | P64: 0.2038744471 | Q64: 0.4840821069 | R64: 0.7210481539 | S64: 0.8936051167 | T64: 0.9863389958 | U64: 0.99096615 | V64: 0.9070732493 | W64: 0.7421541968 | X64: =COS((ω+X$3*δω)*t-(ω+X$3*δω)/(c_*(1-X$3*δc))*$C64) -> 0.5109407202 | Y64: 0.2340864308 | Z64: -0.06367810232 | AA64: -0.3557544602 | AB64: -0.6160523317 | AC64: -0.8213200831 | AD64: -0.9532217577 | AE64: -0.9999749715 | AF64: -0.9574033993 | AG64: -0.8293098329 | AH64: =COS((ω+AH$3*δω)*t-(ω+AH$3*δω)/(c_*(1-AH$3*δc))*$C64) -> -0.6271364889 | AI64: -0.3689429102 | AJ64: -0.07779276012 | AK64: 0.2203063855 | AL64: 0.4987262179 | AM64: 0.7325963226 | AN64: 0.9010257796 | AO64: 0.9889692872 | AP64: 0.9885711138 | AQ64: 0.899866827 | AR64: =COS((ω+AR$3*δω)*t-(ω+AR$3*δω)/(c_*(1-AR$3*δc))*$C64) -> 0.7307801165 | AS64: 0.4964149948 | AT64: 0.2177065999 | AU64: -0.08044887706 | AV64: -0.3714180955 | AW64: -0.6292096416 | AX64: -0.8307957644 | AY64: -0.9581693759 | AZ64: -0.9999525706 | BA64: -0.9524129804 | BB64: -4.562311684
C65: 6.1 | D65: -0.4810977976 | E65: -0.7221507646 | F65: -0.8965448147 | G65: -0.9881823141 | H65: -0.988604563 | I65: -0.8977725853 | J65: -0.7240707263 | K65: -0.483532726 | L65: -0.1983617081 | M65: 0.1051193044 | N65: 0.3988971645 | O65: 0.655854385 | P65: 0.8522722485 | Q65: 0.970020189 | R65: 0.9982293538 | S65: 0.9342958653 | T65: 0.784121174 | U65: 0.5615673192 | V65: 0.2871773781 | W65: -0.01372078522 | X65: -0.3133524365 | Y65: -0.584059748 | Z65: -0.800854785 | AA65: -0.9437260442 | AB65: -0.9994856377 | AC65: -0.9629866151 | AD65: -0.8375980587 | AE65: -0.6348940964 | AF65: -0.3735855394 | AG65: -0.07779276012 | AH65: 0.225180765 | AI65: 0.5073687331 | AJ65: 0.7427234748 | AK65: 0.9095203129 | AL65: 0.9923628828 | AM65: 0.9836043102 | AN65: 0.8840530649 | AO65: 0.7028983336 | AP65: 0.4568618019 | AQ65: 0.1686541415 | AR65: -0.1351213242 | AS65: -0.4264242681 | AT65: -0.678365653 | AU65: -0.8676897536 | AV65: -0.9769208015 | AW65: -0.9959761053 | AX65: -0.9230967441 | AY65: -0.7650099274 | AZ65: -0.5363080317 | BA65: -0.2581016359 | BB65: -6.364606548
C66: 6.2 | D66: -0.95113975 | E66: -0.9999924347 | F66: -0.9535129805 | G66: -0.8161324065 | H66: -0.600947596 | I66: -0.3284727322 | J66: -0.02468362341 | K66: 0.2814586458 | L66: 0.5607686573 | M66: 0.7866189888 | N66: 0.9374786821 | O66: 0.9989658513 | P66: 0.9652187486 | Q66: 0.8394545819 | R66: 0.6336628088 | S66: 0.3674621478 | T66: 0.06623026913 | U66: -0.2413155305 | V66: -0.5258560304 | W66: -0.7602651708 | X66: -0.922196058 | Y66: -0.9962113572 | Z66: -0.9752549784 | AA66: -0.8613247531 | AB66: -0.6652819754 | AC66: -0.4058159642 | AD66: -0.1076623564 | AE66: 0.2007550118 | AF66: 0.4900338305 | AG66: 0.7325963226 | AH66: 0.9053183118 | AI66: 0.9917337169 | AJ66: 0.9836043102 | AK66: 0.8817050913 | AL66: 0.6957504042 | AM66: 0.443467841 | AN66: 0.1489082201 | AO66: -0.1598472473 | AP66: -0.4533640194 | AQ66: -0.7036603029 | AR66: -0.886874637 | AS66: -0.9855406753 | AT66: -0.9902523022 | AU66: -0.9005603448 | AV66: -0.7250153938 | AW66: -0.4803526517 | AX66: -0.1898965174 | AY66: 0.1186629951 | AZ66: 0.4159100248 | BA66: 0.6735071623 | BB66: -3.492157165
C67: 6.3 | D67: -0.9042782294 | E67: -0.7275102897 | F67: -0.4791500687 | G67: -0.1836380109 | H67: 0.1299453571 | I67: 0.4307411609 | J67: 0.689148915 | K67: 0.8797394249 | L67: 0.9837572041 | M67: 0.99096615 | N67: 0.9006568499 | O67: 0.7217163931 | P67: 0.4717538164 | Q67: 0.1753672477 | R67: -0.1382767283 | S67: -0.4383132728 | T67: -0.6952166168 | U67: -0.883705611 | V67: -0.985231573 | W67: -0.989803613 | X67: -0.8969718092 | Y67: -0.7158714834 | Z67: -0.4643242191 | AA67: -0.1670840889 | AB67: 0.1465983256 | AC67: 0.4458544033 | AD67: 0.7012351787 | AE67: 0.887609334 | AF67: 0.9866363027 | AG67: 0.9885711138 | AH67: 0.8932233679 | AI67: 0.7099759737 | AJ67: 0.4568618019 | AK67: 0.1587891202 | AL67: -0.154909561 | AM67: -0.4533640194 | AN67: -0.707204175 | AO67: -0.8914503181 | AP67: -0.9879712939 | AQ67: -0.9872687393 | AR67: -0.8894117907 | AS67: -0.7040302807 | AT67: -0.4493670924 | AU67: -0.1504829277 | AV67: 0.1632098468 | AW67: 0.4608415904 | AX67: 0.7131231841 | AY67: 0.8952282918 | AZ67: 0.9892364523 | BA67: 0.9858965816 | BB67: 1.911847575
C68: 6.4 | D68: -0.3659804532 | E68: -0.05465887757 | F68: 0.2622121682 | G68: 0.5524610318 | H68: 0.7866189888 | I68: 0.9409121776 | J68: 0.9996753398 | K68: 0.9569423006 | L68: 0.8170517098 | M68: 0.5942065421 | N68: 0.311032081 | O68: -0.00372120718 | P68: -0.3180966843 | Q68: -0.600176071 | R68: -0.8213200831 | S68: -0.959076154 | T68: -0.9994580248 | U68: -0.9383657581 | V68: -0.7820020006 | W68: -0.5462422339 | X68: -0.2550229499 | Y68: 0.06208860095 | Z68: 0.3728963481 | AA68: 0.6458442408 | AB68: 0.8532201077 | AC68: 0.9739692506 | AD68: 0.9958321098 | AE68: 0.9165889676 | AF68: 0.744285314 | AG68: 0.4964149948 | AH68: 0.1981440762 | AI68: -0.1202442447 | AJ68: -0.4264242681 | AK68: -0.689309792 | AL68: -0.8822102691 | AM68: -0.9855406753 | AN68: -0.9888099608 | AO68: -0.8916861978 | AP68: -0.7040302807 | AQ68: -0.4448947579 | AR68: -0.1405894423 | AS68: 0.1779898018 | AT68: 0.4784978901 | AU68: 0.7304244878 | AV68: 0.908191698 | AW68: 0.9937509644 | AX68: 0.9784155264 | AY68: 0.8637423782 | AZ68: 0.6613741885 | BA68: 0.3918572304 | BB68: =SUM(D68:BA68) -> 5.746780129
C69: 6.5 | D69: 0.3712119305 | E69: 0.6482728441 | F69: 0.8574605328 | G69: 0.9768733495 | H69: 0.9940089456 | I69: 0.9070732493 | J69: 0.7251683016 | K69: 0.4673392863 | L69: 0.1605805267 | M69: -0.1629907808 | N69: -0.4694971903 | O69: -0.7268479261 | P69: -0.9080987401 | Q69: -0.9942729352 | R69: -0.9763481986 | S69: -0.856201224 | T69: -0.6464112252 | U69: -0.3689429102 | V69: -0.05284680856 | W69: 0.2687822772 | X69: 0.562270249 | Y69: 0.7968893426 | Z69: 0.9480752798 | AA69: 0.9999991126 | AB69: 0.9472244911 | AC69: 0.7952768416 | AD69: 0.5600648621 | AE69: 0.2662149053 | AF69: -0.05550736534 | AG69: -0.3714180955 | AH69: -0.6484418906 | AI69: -0.8575747619 | AJ69: -0.9769208015 | AK69: -0.9939846525 | AL69: -0.9069797545 | AM69: -0.7250153938 | AN69: -0.4671429748 | AO69: -0.160361365 | AP69: 0.1632098468 | AQ69: 0.4696932247 | AR69: 0.7270004044 | AS69: 0.908191698 | AT69: 0.9942966402 | AU69: 0.9763001687 | AV69: 0.856086488 | AW69: 0.6462417957 | AX69: 0.3687365263 | AY69: 0.0526250783 | AZ69: -0.2689961389 | BA69: -0.5624538512 | BB69: 5.257913214
C70: 6.6 | D70: 0.9066666242 | E70: 0.994441882 | F70: 0.9749016329 | G70: 0.8501545691 | H70: 0.6336628088 | I70: 0.3487891282 | J70: 0.02627575976 | K70: -0.2990731656 | L70: -0.5921475166 | M70: -0.8213200831 | N70: -0.9618596358 | O70: -0.9985998049 | P70: -0.9275757636 | Q70: -0.7564520934 | R70: -0.5036956589 | S70: -0.1965827497 | T70: 0.1317444485 | U70: 0.4458544033 | V70: 0.7118498406 | W70: 0.9010257796 | X70: 0.9929672396 | Y70: 0.9777523292 | Z70: 0.8570229703 | AA70: 0.6438077093 | AB70: 0.3611157378 | AC70: 0.03945384855 | AD70: -0.2864657151 | AE70: -0.5814712415 | AF70: -0.8137271169 | AG70: -0.9581693759 | AH70: -0.9992104867 | AI70: -0.9324214852 | AJ70: -0.7650099274 | AK70: -0.5150420838 | AL70: -0.2094933125 | AM70: 0.1186629951 | AN70: 0.4340137484 | AO70: 0.7025277723 | AP70: 0.8952282918 | AQ70: 0.99131997 | AR70: 0.9804330435 | AS70: 0.8637423782 | AT70: 0.6538406838 | AU70: 0.3733795675 | AV70: 0.0526250783 | AW70: -0.2738084627 | AX70: -0.5706938778 | AY70: -0.8059926844 | AZ70: -0.9543125383 | BA70: -0.999647456 | BB70: 1.140488005
C71: 6.7 | D71: 0.9493870726 | E71: 0.7933417292 | F71: 0.5490931437 | G71: 0.2437967224 | H71: -0.08860486741 | I71: -0.411155423 | J71: -0.6879939732 | K71: -0.8883417796 | L71: -0.989924297 | M71: -0.9814476441 | N71: -0.8638542499 | O71: -0.6502180752 | P71: -0.3642910575 | Q71: -0.03786238565 | R71: 0.2927758028 | S71: 0.5908633588 | T71: 0.8232590925 | U71: 0.96412539 | V71: 0.9978008238 | W71: 0.9205413799 | X71: 0.7409367154 | Y71: 0.4789551657 | Z71: 0.1637236774 | AA71: -0.1697105081 | AB71: -0.4842763843 | AC71: -0.7450007121 | AD71: -0.922896322 | AE71: -0.9981848904 | AF71: -0.9624958808 | AG71: -0.8197971752 | AH71: -0.5859539273 | AI71: -0.2869646847 | AJ71: 0.04392911389 | AK71: 0.3699389008 | AL71: 0.6548191098 | AM71: 0.8668969356 | AN71: 0.9825936971 | AO71: 0.9890462997 | AP71: 0.8855373472 | AQ71: 0.6835749009 | AR71: 0.4056130204 | AS71: 0.08255533544 | AT71: -0.2496808006 | AU71: -0.5541575798 | AV71: -0.7970234625 | AW71: -0.9512767701 | AX71: -0.9997677156 | AY71: -0.9371051056 | AZ71: -0.7702557302 | BA71: -0.5177697998 | BB71: -3.242906466
C72: 6.8 | D72: 0.4761565527 | E72: 0.1556434263 | F72: -0.1826894201 | G72: -0.5001060325 | H72: -0.7602651708 | I72: -0.9333810411 | J72: -0.9996334916 | K72: -0.9514372349 | L72: -0.7943102928 | M72: -0.5462422339 | N72: -0.2356345362 | O72: 0.1019511171 | P72: 0.4278643189 | Q72: 0.7047910485 | R72: 0.9010257796 | S72: 0.9941014664 | T72: 0.9733618113 | U72: 0.8411813113 | V72: 0.6126934003 | W72: 0.3140578121 | X72: -0.02053446521 | Y72: -0.3527757378 | Z72: -0.6446274802 | AA72: -0.8626753912 | AB72: -0.9819550195 | AC72: -0.9888099608 | AD72: -0.8824553882 | AE72: -0.6750679079 | AF72: -0.3903914513 | AG72: -0.06101881623 | AH72: 0.2753399039 | AI72: 0.5801747743 | AJ72: 0.8185850466 | AK72: 0.9632749694 | AL72: 0.9976788966 | AM72: 0.9178578995 | AN72: 0.7329507374 | AO72: 0.4641275552 | AP72: 0.1421660987 | AQ72: -0.1960720496 | AR72: -0.5118617777 | AS72: -0.7690481085 | AT72: -0.9381856069 | AU72: -0.9999096076 | AV72: -0.9471532884 | AW72: -0.7859567557 | AX72: -0.5347755082 | AY72: -0.222367455 | AZ72: 0.1154995968 | BA72: 0.4401430225 | BB72: -4.718714685
C73: 6.9 | D73: -0.2558445378 | E73: -0.5677098088 | F73: -0.8126709927 | G73: -0.9618596358 | H73: -0.9976939916 | I73: -0.9159510135 | J73: -0.7262640376 | K73: -0.4509875023 | L73: -0.1225624981 | M73: 0.2203063855 | N73: 0.5372123611 | O73: 0.7908083462 | P73: 0.9512082835 | Q73: 0.9995091857 | R73: 0.9300188351 | S73: 0.7509266066 | T73: 0.4833383574 | U73: 0.1587891202 | V73: -0.1844732711 | W73: -0.5059956543 | X73: -0.7678869077 | Y73: -0.9392833842 | Z73: -0.999986164 | AA73: -0.9428414797 | AB73: -0.7745837804 | AC73: -0.5150420838 | AD73: -0.1948031438 | AE73: 0.1483931703 | AF73: 0.4741014837 | AG73: 0.7439373663 | AH73: 0.9261009038 | AI73: 0.999124288 | AJ73: 0.9544017794 | AK73: 0.7972038849 | AL73: 0.5460562343 | AM73: 0.2305563508 | AN73: -0.11211439 | AO73: -0.4415725514 | AP73: -0.7189917874 | AQ73: -0.911678492 | AR73: -0.9969247116 | AS73: -0.9646842564 | AT73: -0.8187566348 | AU73: -0.576339285 | AV73: -0.2660008721 | AW73: 0.07568550277 | AX73: 0.4084524096 | AY73: 0.6930835698 | AZ73: 0.8960354586 | BA73: 0.9933903797 | BB73: -2.734862605
C74: 7 | D74: =COS((ω+D$3*δω)*t-(ω+D$3*δω)/(c_*(1-D$3*δc))*$C74) -> -0.8488051453 | E74: -0.9786364524 | F74: -0.989803613 | G74: -0.8809525579 | H74: -0.6652819754 | I74: -0.3689429102 | J74: -0.02786782946 | K74: 0.3165863531 | L74: 0.6226529922 | M74: 0.8532201077 | N74: =COS((ω+N$3*δω)*t-(ω+N$3*δω)/(c_*(1-N$3*δc))*$C74) -> 0.9803303823 | O74: 0.9885711138 | P74: 0.8769430756 | Q74: 0.6589816782 | R74: 0.3611157378 | S74: 0.01946286244 | T74: -0.3245499741 | U74: -0.6292096416 | V74: -0.8575747619 | W74: -0.9819550195 | X74: =COS((ω+X$3*δω)*t-(ω+X$3*δω)/(c_*(1-X$3*δc))*$C74) -> -0.9872687393 | Y74: -0.8728716083 | Z74: -0.652634802 | AA74: -0.3532630407 | AB74: -0.01105651972 | AC74: 0.3324906548 | AD74: 0.6357218166 | AE74: 0.8618688001 | AF74: 0.9835102491 | AG74: 0.9858965816 | AH74: =COS((ω+AH$3*δω)*t-(ω+AH$3*δω)/(c_*(1-AH$3*δc))*$C74) -> 0.8687384437 | AI74: 0.6462417957 | AJ74: 0.3453853738 | AK74: 0.002649395491 | AL74: -0.3404078342 | AM74: -0.6421890568 | AN74: -0.8661019187 | AO74: -0.9849959612 | AP74: -0.9844547377 | AQ74: -0.8645438741 | AR74: =COS((ω+AR$3*δω)*t-(ω+AR$3*δω)/(c_*(1-AR$3*δc))*$C74) -> -0.639803111 | AS74: -0.3374832941 | AT74: 0.005757916003 | AU74: 0.3483009524 | AV74: 0.6486109052 | AW74: 0.8702738187 | AX74: 0.9864120508 | AY74: 0.9829433096 | AZ74: 0.8602881958 | BA74: 0.6333192031 | BB74: 0.5856193869
C75: 7.1 | D75: -0.9804767283 | E75: -0.8509920755 | F75: -0.6153827348 | G75: -0.3030308457 | H75: 0.0471111179 | I75: 0.3913779942 | J75: 0.6868372863 | K75: 0.8966431455 | L75: 0.994631308 | M75: 0.9685819617 | N75: 0.821743643 | O75: 0.5724281214 | P75: 0.2517267934 | Q75: -0.1003666336 | R75: -0.4399436365 | S75: -0.7246565785 | T75: -0.9189997563 | U75: -0.998737211 | V75: -0.953925122 | W75: -0.7901518715 | X75: -0.5278411339 | Y75: -0.1997049001 | Z75: 0.153335937 | AA75: 0.4872547061 | AB75: 0.7604093916 | AC75: 0.9387356861 | AD75: 0.9999950484 | AE75: 0.9365480059 | AF75: 0.7563068502 | AG75: 0.4817489193 | AH75: 0.1471135151 | AI75: -0.2058679775 | AJ75: -0.5331762877 | AK75: -0.7939937706 | AL75: -0.9557946546 | AM75: -0.9984012332 | AN75: -0.9165001669 | AO75: -0.7203050938 | AP75: -0.4342829173 | AQ75: -0.09410261131 | AR75: 0.2578129512 | AS75: 0.5775774282 | AT75: 0.8253139439 | AU75: 0.9701280152 | AV75: 0.9939603104 | AW75: 0.893838775 | AX75: 0.6822492674 | AY75: 0.3855784852 | AZ75: 0.04082335825 | BA75: -0.3090227282 | BB75: 2.554155297
C76: 7.2 | D76: -0.5793014547 | E76: -0.2550229499 | F76: 0.1019511171 | G76: 0.4458544033 | H76: 0.7325963226 | I76: 0.9254147394 | J76: 0.9995891078 | K76: 0.9456098025 | L76: 0.7703973135 | M76: 0.4964149948 | N76: 0.1587891202 | O76: -0.1991945283 | P76: -0.5316401729 | Q76: -0.79592617 | R76: -0.9581693759 | S76: -0.9975691808 | T76: -0.9090742796 | U76: -0.7040302807 | V76: -0.4087251274 | W76: -0.06101881623 | X76: 0.2945104948 | Y76: 0.6122816895 | Z76: 0.8515544819 | AA76: 0.9816525802 | AB76: 0.9858965816 | AC76: 0.8637423782 | AD76: 0.6308509148 | AE76: 0.3170803566 | AF76: -0.03734191758 | AG76: -0.3869767207 | AH76: -0.68699865 | AI76: -0.898942988 | AJ76: -0.9956371243 | AK76: -0.9646842564 | AL76: -0.8100527385 | AM76: -0.5515673135 | AN76: -0.222367455 | AO76: 0.1353413238 | AP76: 0.4756984851 | AQ76: 0.7550680787 | AR76: 0.937633148 | AS76: 0.9999876912 | AT76: 0.9341374598 | AU76: 0.7485248719 | AV76: 0.4669466402 | AW76: 0.125502883 | AX76: -0.2320311412 | AY76: -0.559817299 | AZ76: -0.8158313228 | BA76: -0.9672505883 | BB76: 2.163855129
C77: 7.3 | D77: 0.1366991996 | E77: 0.4812924402 | F77: 0.7624742092 | G77: 0.9431981121 | H77: 0.9996533267 | I77: 0.9244017388 | J77: 0.7273579314 | K77: 0.4344829143 | L77: 0.08436369685 | M77: -0.2768706467 | N77: -0.6016265966 | O77: -0.8471167517 | P77: -0.980997176 | Q77: -0.9856287917 | R77: -0.860401372 | S77: -0.6218139398 | T77: -0.3013009804 | U77: 0.05890912976 | V77: 0.4113578161 | W77: 0.7096090909 | X77: 0.9143676098 | Y77: 0.9986559307 | Z77: 0.9513688583 | AA77: 0.7787365817 | AB77: 0.5035038309 | AC77: 0.161933203 | AD77: -0.2009725257 | AE77: -0.5373996262 | AF77: -0.8030229944 | AG77: -0.9628460935 | AH77: -0.9958118341 | AI77: -0.8975768983 | AJ77: -0.6810839823 | AK77: -0.3748565641 | AL77: -0.01924086479 | AM77: 0.3389098661 | AN77: 0.6524083825 | AO77: 0.879950478 | AP77: 0.9915569178 | AQ77: 0.9725232769 | AR77: 0.8253572847 | AS77: 0.5694484253 | AT77: 0.2385133249 | AU77: -0.1238464969 | AV77: -0.469889236 | AW77: -0.754022904 | AX77: -0.9388121861 | AY77: -0.9999106367 | AZ77: -0.9292683834 | BA77: -0.7361927182 | BB77: 0.5505233769
C78: 7.4 | D78: 0.7784097288 | E78: 0.9527391346 | F78: 0.998119768 | G78: 0.9084095732 | H78: 0.6957504042 | I78: 0.3889246819 | J78: 0.02945982847 | K78: -0.3339922746 | L78: -0.65224009 | M78: -0.8822102691 | N78: -0.992777427 | O78: -0.9689768174 | P78: -0.8140297412 | Q78: -0.5489075584 | R78: -0.2094933125 | S78: 0.1582748704 | T78: 0.504621292 | U78: 0.7826695891 | V78: 0.954787229 | W78: 0.9976788966 | X78: 0.9055394058 | Y78: 0.6908394045 | Z78: 0.3826375307 | AA78: 0.02264746213 | AB78: -0.3404078342 | AC78: -0.6573905271 | AD78: -0.885398496 | AE78: -0.9935719322 | AF78: -0.9672700684 | AG78: -0.8100527385 | AH78: -0.5431985706 | AI78: -0.2028250244 | AJ78: 0.1649999374 | AK78: 0.5104929316 | AL78: 0.7868931025 | AM78: 0.9567909833 | AN78: 0.9971916931 | AO78: 0.9026271853 | AP78: 0.6858963223 | AQ78: 0.3763326098 | AR78: 0.01583404405 | AS78: -0.3468075853 | AT78: -0.6625104349 | AU78: -0.8885456052 | AV78: -0.9943202961 | AW78: -0.9655183995 | AX78: -0.806038117 | AY78: -0.5374643567 | AZ78: -0.196147317 | BA78: 0.1717173418 | BB78: -0.4798098427
C79: 7.5 | D79: 0.9970881092 | E79: 0.899866827 | F79: 0.6775777732 | G79: 0.3611157378 | H79: -0.005535880313 | I79: -0.3714180955 | J79: -0.6856788572 | K79: -0.9046407102 | L79: -0.9978712946 | M79: -0.9524129804 | N79: -0.7745837804 | O79: -0.4890992425 | P79: -0.1356373657 | Q79: 0.2366760373 | R79: 0.576095079 | S79: 0.8354456866 | T79: 0.9786820792 | U79: 0.9858965816 | V79: 0.856086488 | W79: 0.6072934226 | X79: 0.2740958289 | Y79: -0.09719690672 | Z79: -0.454980754 | AA79: -0.749529212 | AB79: -0.9399045353 | AC79: -0.999647456 | AD79: -0.9204546187 | AE79: -0.7133326206 | AF79: -0.4070682622 | AG79: -0.04422762066 | AH79: 0.324759986 | AI79: 0.6486109052 | AJ79: 0.8823147958 | AK79: 0.9933903797 | AL79: 0.9663998439 | AM79: 0.8050944614 | AN79: 0.5318932215 | AO79: 0.1847669319 | AP79: -0.1880391447 | AQ79: -0.5347106466 | AR79: -0.8070655197 | AS79: -0.9672505883 | AT79: -0.9930025697 | AU79: -0.8807423311 | AV79: -0.6460723344 | AW79: -0.3216081318 | AX79: 0.04755469862 | AY79: 0.4101081508 | AZ79: 0.7156628217 | BA79: 0.9217512697 | BB79: -0.2634843424
C80: 7.6 | D80: 0.6738920632 | E80: 0.3517726276 | F80: -0.02053446521 | G80: -0.3899118909 | H80: -0.7036603029 | I80: -0.9170169866 | J80: -0.9995421885 | K80: -0.9394619778 | L80: -0.7453480421 | M80: -0.4448947579 | N80: -0.08096801437 | O80: 0.2945104948 | P80: 0.627970977 | Q80: 0.8718383822 | R80: 0.99131997 | S80: 0.9693692152 | T80: 0.8091178479 | U80: 0.5334290475 | V80: 0.1816355361 | W80: -0.1960720496 | X80: -0.545805893 | Y80: -0.817669212 | Z80: -0.9728750684 | AA80: -0.9892801298 | AB80: -0.8645438741 | AC80: -0.6164625137 | AD80: -0.2804299971 | AE80: 0.09561167147 | AF80: 0.4580123532 | AG80: 0.7550680787 | AH80: 0.9443976911 | AI80: 0.9989893966 | AJ80: 0.9110545567 | AK80: 0.6931388993 | AL80: 0.3763326098 | AM80: 0.005834672664 | AN80: -0.3654957015 | AO80: -0.6846805375 | AP80: -0.9061815023 | AQ80: -0.9983968916 | AR80: -0.9481702687 | AS80: -0.7626675025 | AT80: -0.4683544079 | AU80: -0.1072208485 | AV80: 0.2692099875 | AW80: 0.6072324383 | AX80: 0.8586205946 | AY80: 0.9875087249 | AZ80: 0.9755082656 | BA80: 0.8243313311 | BB80: 0.3000624086
C81: 7.7 | D81: -0.01553528363 | E81: -0.3899118909 | F81: -0.707204175 | G81: -0.9209595511 | H81: -0.9998835621 | I81: -0.9324214852 | J81: -0.7284499801 | K81: -0.4178311145 | L81: -0.04604046395 | M81: 0.3324906548 | N81: 0.6623440995 | O81: 0.8952282918 | P81: 0.997048256 | Q81: 0.95289723 | R81: 0.7692390626 | S81: 0.4729618851 | T81: 0.1074416051 | U81: -0.2738084627 | V81: -0.6149721133 | W81: -0.8661019187 | X81: -0.9904316884 | Y81: -0.9697591542 | Z81: -0.8071108399 | AA81: -0.5262989687 | AB81: -0.1684352787 | AC81: 0.2140878641 | AD81: 0.5652678725 | AE81: 0.8336908924 | AF81: 0.9800589524 | AG81: 0.9829433096 | AH81: 0.8419216851 | AI81: 0.5776400867 | AJ81: 0.228790169 | AK81: -0.1535553467 | AL81: -0.5134198782 | AM81: -0.7981181302 | AN81: -0.9659693861 | AO81: -0.9923996959 | AP81: -0.8735395794 | AQ81: -0.6267905302 | AR81: -0.2882773826 | AS81: 0.09244047742 | AT81: 0.4596247618 | AU81: 0.7595185403 | AV81: 0.9482164237 | AW81: 0.9980924503 | AX81: 0.9018446135 | AY81: 0.6735638983 | AZ81: 0.3466713171 | BA81: -0.03097503173 | BB81: -0.02417649333
C82: 7.8 | D82: -0.6965198731 | E82: -0.9170169866 | F82: -0.9997947647 | G82: -0.9324214852 | H82: -0.7250153938 | I82: -0.4087251274 | J82: -0.03105175276 | K82: 0.3512850325 | L82: 0.680865171 | M82: 0.908191698 | N82: 0.999124288 | O82: 0.9400065139 | P82: 0.739716794 | Q82: 0.4283350151 | R82: 0.0526250783 | S82: -0.3309881918 | T82: -0.6648930328 | U82: -0.898942988 | V82: -0.997987995 | W82: -0.9471532884 | X82: -0.75407332 | Y82: -0.4477452026 | Z82: -0.07417386873 | AA82: 0.3105370362 | AB82: 0.6486109052 | AC82: 0.8892751688 | AD82: 0.9963864155 | AE82: 0.9538584768 | AF82: 0.7680782786 | AG82: 0.4669466402 | AH82: 0.09568807749 | AI82: -0.2899411007 | AJ82: -0.6320263791 | AK82: -0.8791927476 | AL82: -0.9943202961 | AM82: -0.9601189529 | AN82: -0.7817251401 | AO82: -0.4859303759 | AP82: -0.1171576741 | AQ82: 0.2692099875 | AR82: 0.6151471869 | AS82: 0.8687004252 | AT82: 0.9917906002 | AU82: 0.965931798 | AV82: 0.7950075422 | AW82: 0.5046875588 | AX82: 0.1385726489 | AY82: -0.2483533619 | AZ82: -0.5979811979 | BA82: -0.8578030932 | BB82: -1.292475254
C83: 7.9 | D83: -0.9989759221 | E83: -0.9394619778 | F83: -0.7352644337 | G83: -0.4178311145 | H83: -0.03604893268 | I83: 0.3512850325 | J83: 0.6845186889 | K83: 0.9123317636 | L83: 0.9996394779 | M83: 0.9329958438 | N83: 0.7226644389 | O83: 0.4010377448 | P83: 0.0176484823 | Q83: -0.3684587677 | R83: -0.6978208357 | S83: -0.9197137001 | T83: -0.9999643351 | U83: -0.9262135914 | V83: -0.7098195904 | W83: -0.3841084951 | X83: 0.0007579477469 | Y83: 0.3855076614 | Z83: 0.7108865463 | AA83: 0.9267840184 | AB83: 0.9999503835 | AC83: 0.9191175185 | AD83: 0.6967342402 | AE83: 0.3670491015 | AF83: -0.01916412099 | AG83: -0.4024259371 | AH83: -0.7237113938 | AI83: -0.933540323 | AJ83: -0.9995976278 | AK83: -0.9117100295 | AL83: -0.683412822 | AM83: -0.349865344 | AN83: 0.03756380103 | AO83: 0.4192078626 | AP83: 0.7362910328 | AQ83: 0.9399803247 | AR83: 0.9989061877 | AS83: 0.9039936341 | AT83: 0.6698598492 | AU83: 0.3325630448 | AV83: -0.05595075367 | AW83: -0.4358477516 | AX83: -0.748621201 | AY83: -0.9461018414 | AZ83: -0.9978762973 | BA83: -0.8959709468 | BB83: -2.170203459
C84: 8 | D84: =COS((ω+D$3*δω)*t-(ω+D$3*δω)/(c_*(1-D$3*δc))*$C84) -> -0.7585315997 | E84: -0.4448947579 | F84: -0.06101881623 | G84: 0.3324906548 | H84: 0.6735071623 | I84: 0.908191698 | J84: 0.9994927338 | K84: 0.9329958438 | L84: 0.7191994248 | M84: 0.3918572304 | N84: =COS((ω+N$3*δω)*t-(ω+N$3*δω)/(c_*(1-N$3*δc))*$C84) -> 0.002649395491 | O84: -0.3869767207 | P84: -0.7155077216 | Q84: -0.9310757858 | R84: -0.999647456 | S84: -0.9103967731 | T84: -0.6774144575 | U84: -0.3374832941 | V84: 0.05572906088 | W84: 0.4401430225 | X84: =COS((ω+X$3*δω)*t-(ω+X$3*δω)/(c_*(1-X$3*δc))*$C84) -> 0.7550680787 | Y84: 0.9507844878 | Z84: 0.9963929321 | AA84: 0.8846928411 | AB84: 0.6333192031 | AC84: 0.2819583884 | AD84: -0.1139174562 | AE84: -0.4918082392 | AF84: -0.7920533151 | AG84: -0.9672505883 | AH84: =COS((ω+AH$3*δω)*t-(ω+AH$3*δω)/(c_*(1-AH$3*δc))*$C84) -> -0.9897402615 | AI84: -0.8559717098 | AJ84: -0.5870640462 | AK84: -0.2254718781 | AL84: 0.1717173418 | AM84: 0.5417961692 | AN84: 0.8263372945 | AO84: 0.9804179305 | AP84: 0.9797121327 | AQ84: 0.8243313311 | AR84: =COS((ω+AR$3*δω)*t-(ω+AR$3*δω)/(c_*(1-AR$3*δc))*$C84) -> 0.5388067377 | AS84: 0.1682164077 | AT84: -0.2289315944 | AU84: -0.5899363314 | AV84: -0.8578030932 | AW84: -0.990241608 | AX84: -0.9663427464 | AY84: -0.789879613 | AZ84: -0.4887118566 | BA84: -0.1103872438 | BB84: -1.27865146
C85: 8.1 | D85: -0.1058580352 | E85: 0.2945104948 | F85: 0.6472286387 | G85: 0.8952282918 | H85: 0.9983842994 | I85: 0.9400065139 | J85: 0.7295401812 | K85: 0.4010377448 | L85: 0.007649323992 | M85: -0.3869767207 | N85: -0.7189917874 | O85: -0.9346774299 | P85: -0.9991367454 | Q85: -0.9019405257 | R85: -0.6588146531 | S85: -0.3090957283 | T85: 0.09063340351 | U85: 0.4756984851 | V85: 0.7837978325 | W85: 0.9650824484 | X85: 0.990221351 | Y85: 0.8551471865 | Z85: 0.5817143071 | AA85: 0.2141628417 | AB85: -0.1880391447 | AC85: -0.559817299 | AD85: -0.8410196983 | AE85: -0.9861491425 | AF85: -0.9717243834 | AG85: -0.8000792778 | AH85: -0.498985181 | AI85: -0.1171576741 | AJ85: 0.2836253827 | AK85: 0.6385192124 | AL85: 0.8901036948 | AM85: 0.9976736669 | AN85: 0.9438248228 | AO85: 0.7372696474 | AP85: 0.4114277777 | AQ85: 0.01901886619 | AR85: -0.3764672067 | AS85: -0.7110426905 | AT85: -0.9305748759 | AU85: -0.9995445079 | AV85: -0.9067926307 | AW85: -0.6673260532 | AX85: -0.3198893198 | AY85: 0.07930397196 | AZ85: 0.4656662612 | BA85: 0.776685982 | BB85: 1.223061919
C86: 8.2 | D86: 0.6043448104 | E86: 0.8718383822 | F86: 0.9948174585 | G86: 0.95289723 | H86: 0.7530263248 | I86: 0.4283350151 | J86: 0.03264359828 | K86: -0.3684587677 | L86: -0.7084860147 | M86: -0.9310757858 | N86: -0.9993319669 | O86: -0.9019405257 | P86: -0.6550449072 | Q86: -0.2995701228 | R86: 0.1055609121 | S86: 0.493194344 | T86: 0.799076693 | U86: 0.9725054043 | V86: 0.9847332203 | W86: 0.8337332781 | X86: 0.5445350798 | Y86: 0.1650756428 | Z86: -0.2417464612 | AA86: -0.6084970695 | AB86: -0.874384205 | AC86: -0.9953348536 | AD86: -0.9513004348 | AE86: -0.7495800214 | AF86: -0.4236104572 | AG86: -0.02742392074 | AH86: 0.3733083597 | AI86: 0.7121616608 | AJ86: 0.9329682169 | AK86: 0.9991274967 | AL86: 0.8996730469 | AM86: 0.6510902733 | AN86: 0.2945838475 | AO86: -0.1107523121 | AP86: -0.4977303507 | AQ86: -0.8022054254 | AR86: -0.973708249 | AS86: -0.9838107956 | AT86: -0.8308384837 | AU86: -0.540147752 | AV86: -0.1599230178 | AW86: 0.2468102926 | AX86: 0.6126327351 | AY86: 0.8769061836 | AZ86: 0.9958251062 | BA86: 0.9496776979 | BB86: 3.446180411
C87: 8.3 | D87: 0.9861122905 | E87: 0.9693692152 | F87: 0.7880588883 | G87: 0.4729618851 | H87: 0.07757139185 | I87: -0.3309881918 | J87: -0.6833567842 | K87: -0.9197137001 | L87: -0.9999332501 | M87: -0.9103967731 | N87: -0.6663046402 | O87: -0.3090957283 | P87: 0.1005875491 | Q87: 0.493194344 | R87: 0.8020728375 | S87: 0.9747855438 | T87: 0.9820114826 | U87: 0.8225239255 | V87: 0.5233986539 | W87: 0.1354173751 | X87: -0.2755533539 | Y87: -0.6397441177 | Z87: -0.8953272122 | AA87: -0.9989129704 | AB87: -0.9329159118 | AC87: -0.7085401826 | AD87: -0.3638774579 | AE87: 0.04255978182 | AF87: 0.4417717598 | AG87: 0.7659853128 | AH87: 0.9601595623 | AI87: 0.9913300586 | AJ87: 0.8542050689 | AK87: 0.5720639407 | AL87: 0.1928050281 | AM87: -0.219185885 | AN87: -0.5939661892 | AO87: -0.8679104222 | AP87: -0.9945117949 | AQ87: -0.9522775267 | AR87: -0.7483776177 | AS87: -0.4174276171 | AT87: -0.01561203227 | AU87: 0.388853966 | AV87: 0.7273052534 | AW87: 0.9422838488 | AX87: 0.9972934037 | AY87: 0.8829950913 | AZ87: 0.6187930342 | BA87: 0.249540118 | BB87: 3.312081252
C88: 8.4 | D88: 0.8319702288 | E88: 0.5334290475 | F88: 0.1421660987 | G88: -0.2738084627 | H88: -0.6421890568 | I88: -0.898942988 | J88: -0.9994407439 | K88: -0.9262135914 | L88: -0.6919900295 | M88: -0.3374832941 | N88: 0.07568550277 | O88: 0.4756984851 | P88: 0.7930245486 | Q88: 0.9725054043 | R88: 0.9829433096 | S88: 0.8225239255 | T88: 0.5191316895 | U88: 0.125502883 | V88: -0.2899411007 | W88: -0.6549869077 | X88: -0.9061815023 | Y88: -0.9998617076 | Z88: -0.9197438318 | AA88: -0.6797541339 | AB88: -0.3216081318 | AC88: 0.09244047742 | AD88: 0.4904208869 | AE88: 0.8031552984 | AF88: 0.9762835538 | AG88: 0.9797121327 | AH88: 0.8128450724 | AI88: 0.5046875588 | AJ88: 0.1088041842 | AK88: -0.3059917644 | AL88: -0.6675995759 | AM88: -0.9131638143 | AN88: -0.9999999831 | AO88: -0.9130140355 | AP88: -0.6673260532 | AQ88: -0.3056420421 | AR88: 0.1091693166 | AS88: 0.5050046333 | AT88: 0.8130589744 | AU88: 0.9797856813 | AV88: 0.9762039646 | AW88: 0.8029364058 | AX88: 0.4901007392 | AY88: 0.09207472347 | AZ88: -0.3219559159 | BA88: -0.6800234956 | BB88: 0.4944025649
C89: 8.5 | D89: 0.2256881942 | E89: -0.1960720496 | F89: -0.5829466574 | G89: -0.8661019187 | H89: -0.9951581319 | I89: -0.9471532884 | J89: -0.7306285317 | K89: -0.3841084951 | L89: 0.03075309828 | M89: 0.4401430225 | N89: 0.7712215848 | O89: 0.9650824484 | P89: 0.9872333971 | Q89: 0.8337332781 | R89: 0.5318932215 | S89: 0.1354173751 | T89: -0.2851522739 | U89: -0.6549869077 | V89: -0.9082846111 | W89: -0.9999780148 | X89: -0.9137527961 | Y89: -0.6649503643 | Z89: -0.2978382787 | AA89: 0.1222659482 | AB89: 0.5206163077 | AC89: 0.8263372945 | AD89: 0.9850342559 | AE89: 0.9684714263 | AF89: 0.7795957063 | AG89: 0.4520123427 | AH89: 0.04400579761 | AI89: -0.3718303705 | AJ89: -0.7215095368 | AK89: -0.942815898 | AL89: -0.9963740654 | AM89: -0.8726548342 | AN89: -0.5936706435 | AO89: -0.2090590675 | AP89: 0.2127488276 | AQ89: 0.5967039121 | AR89: 0.8744919245 | AS89: 0.9966881176 | AT89: 0.9415510352 | AU89: 0.7188908066 | AV89: 0.3683237039 | AW89: -0.04777648547 | AX89: -0.4553761615 | AY89: -0.7819541569 | AZ89: -0.9694048872 | BA89: -0.9843766434 | BB89: -3.045012043
C90: 8.6 | D90: -0.5032456498 | E90: -0.817669212 | F90: -0.9832209667 | G90: -0.9697591542 | H90: -0.7797347465 | I90: -0.4477452026 | J90: -0.034235361 | K90: 0.3855076614 | L90: 0.735061882 | M90: 0.9507844878 | N90: 0.9933991874 | O90: 0.8551471865 | P90: 0.5611998195 | Q90: 0.1650756428 | R90: -0.2611036087 | S90: -0.6397441177 | T90: -0.9019073743 | U90: -0.9998617076 | V90: -0.9157727189 | W90: -0.6649503643 | X90: -0.2930614939 | Y90: 0.1321846432 | Z90: 0.5333641206 | AA90: 0.8374347923 | AB90: 0.9890349669 | AC90: 0.960563028 | AD90: 0.7572028188 | AE90: 0.4159798277 | AF90: -0.0009799868932 | AG90: -0.4177613768 | AH90: -0.7584815792 | AI90: -0.9611061777 | AJ90: -0.9887436154 | AK90: -0.8363619856 | AL90: -0.5317051831 | AM90: -0.130241615 | AN90: 0.2949348485 | AO90: 0.6664129665 | AP90: 0.9165582748 | AQ90: 0.9998271922 | AR90: 0.9010590719 | AS90: 0.6382364773 | AT90: 0.2592111243 | AU90: -0.1670084095 | AV90: -0.5628209726 | AW90: -0.856161565 | AX90: -0.993622105 | AY90: -0.9501753582 | AZ90: -0.7337316085 | BA90: -0.3836984449 | BB90: -4.536431641
C91: 8.7 | D91: -0.9586871662 | E91: -0.9892801298 | F91: -0.8356098602 | G91: -0.5262989687 | H91: -0.1189596758 | I91: 0.3105370362 | J91: 0.6821931462 | K91: 0.9267840184 | L91: 0.9987521778 | M91: 0.8846928411 | N91: 0.6058506906 | O91: 0.2141628417 | P91: -0.2174149599 | Q91: -0.6084970695 | R91: -0.8862405664 | S91: -0.9989129704 | T91: -0.925527929 | U91: -0.6797541339 | V91: -0.3073693913 | W91: 0.1222659482 | X91: 0.5291280424 | Y91: 0.8374347923 | Z91: 0.9897610086 | AA91: 0.9577344231 | AB91: 0.7473203051 | AC91: 0.3977103702 | AD91: -0.02597706457 | AE91: -0.4448260135 | AF91: -0.7808217068 | AG91: -0.971381615 | AH91: -0.9810120658 | AI91: -0.8079192922 | AJ91: -0.4843435396 | AK91: -0.07055400029 | AL91: 0.3563769211 | AM91: 0.7169291074 | AN91: 0.9439461388 | AO91: 0.9951438422 | AP91: 0.8609861377 | AQ91: 0.5664612281 | AR91: 0.1664272981 | AS91: -0.2646053664 | AT91: -0.6463526578 | AU91: -0.9077103578 | AV91: -0.9999980033 | AW91: -0.9060261053 | AX91: -0.6432978616 | AY91: -0.2607490127 | AZ91: 0.1703669254 | BA91: 0.5697503343 | BB91: -2.697411909
C92: 8.8 | D92: -0.8931235141 | E92: -0.6164625137 | F92: -0.222367455 | G92: 0.2140878641 | H92: 0.6097601572 | I92: 0.8892751688 | J92: 0.9993862188 | K92: 0.9191175185 | L92: 0.6637599884 | M92: 0.2819583884 | N92: -0.1535553467 | O92: -0.559817299 | P92: -0.859435918 | Q92: -0.9953348536 | R92: -0.9416258104 | S92: -0.7085401826 | T92: -0.340480007 | U92: 0.09244047742 | V92: 0.5077513584 | W92: 0.8263372945 | X92: 0.9875087249 | Y92: 0.960563028 | Z92: 0.7506332696 | AA92: 0.3977103702 | AB92: -0.03097503173 | AC92: -0.4537597931 | AD92: -0.7901048234 | AE92: -0.975937513 | AF92: -0.9758573528 | AG92: -0.789879613 | AH92: -0.4534324344 | AI92: -0.0306078854 | AJ92: 0.398047364 | AK92: 0.7508759146 | AL92: 0.9606651012 | AM92: 0.9874507816 | AN92: 0.8261303729 | AO92: 0.5074348761 | AP92: 0.09207472347 | AQ92: -0.3408253578 | AR92: -0.7087993421 | AS92: -0.9417494095 | AT92: -0.9952993471 | AU92: -0.8592480698 | AV92: -0.5595128935 | AW92: -0.1531923722 | AX92: 0.2823107864 | AY92: 0.6640346794 | AZ92: 0.9192621747 | BA92: 0.9993732837 | BB92: 1.138025746
C93: 8.9 | D93: -0.3421857135 | E93: 0.09561167147 | F93: 0.5147859423 | G93: 0.8336908924 | H93: 0.99021064 | I93: 0.9538584768 | J93: 0.7317150289 | K93: 0.3670491015 | L93: -0.06911016149 | M93: -0.4918082392 | N93: -0.8187125625 | O93: -0.9861491425 | P93: -0.9615049048 | Q93: -0.7495800214 | R93: -0.3916529389 | S93: 0.04255978182 | T93: 0.4684827649 | U93: 0.8031552984 | V93: 0.9813903118 | W93: 0.9684714263 | X93: 0.7669149652 | Y93: 0.4159798277 | Z93: -0.01597930695 | AA93: -0.4448260135 | AB93: -0.7870301011 | AC93: -0.975937513 | AD93: -0.9747531149 | AE93: -0.7837076022 | AF93: -0.4400125658 | AG93: -0.01061246733 | AH93: 0.4208547134 | AI93: 0.7703483731 | AJ93: 0.9697946019 | AK93: 0.9803455287 | AL93: 0.799946058 | AM93: 0.4637341588 | AN93: 0.03719673723 | AO93: -0.3965858153 | AP93: -0.7531219105 | AQ93: -0.9629659222 | AR93: -0.9852447131 | AS93: -0.81561885 | AT93: -0.4871278326 | AU93: -0.0637547043 | AV93: 0.3720364805 | AW93: 0.7353628947 | AX93: 0.9554563029 | AY93: 0.9894472039 | AZ93: 0.8307148953 | BA93: 0.5101770449 | BB93: 4.061309006
C94: 9 | D94: =COS((ω+D$3*δω)*t-(ω+D$3*δω)/(c_*(1-D$3*δc))*$C94) -> 0.3947152788 | E94: 0.7550680787 | F94: 0.9650824484 | G94: 0.9829433096 | H94: 0.8050944614 | I94: 0.4669466402 | J94: 0.03582703688 | K94: -0.4024259371 | L94: -0.7605535749 | M94: -0.9672505883 | N94: =COS((ω+N$3*δω)*t-(ω+N$3*δω)/(c_*(1-N$3*δc))*$C94) -> -0.981362404 | O94: -0.8000792778 | P94: -0.4594957307 | Q94: -0.02742392074 | R94: 0.4101081508 | S94: 0.7659853128 | T94: 0.96935036 | U94: 0.9797121327 | V94: 0.7950075422 | W94: 0.4520123427 | X94: =COS((ω+X$3*δω)*t-(ω+X$3*δω)/(c_*(1-X$3*δc))*$C94) -> 0.01901886619 | Y94: -0.4177613768 | Z94: -0.7713629086 | AA94: -0.971381615 | AB94: -0.9779926124 | AC94: -0.789879613 | AD94: -0.444497005 | AE94: -0.01061246733 | AF94: 0.4253850741 | AG94: 0.776685982 | AH94: =COS((ω+AH$3*δω)*t-(ω+AH$3*δω)/(c_*(1-AH$3*δc))*$C94) -> 0.9733442098 | AI94: 0.9762039646 | AJ94: 0.7846958527 | AK94: 0.4369502489 | AL94: 0.002205318342 | AM94: -0.4329787039 | AN94: -0.7819541569 | AO94: -0.9752380057 | AP94: -0.9743463157 | AQ94: -0.7794566276 | AR94: =COS((ω+AR$3*δω)*t-(ω+AR$3*δω)/(c_*(1-AR$3*δc))*$C94) -> -0.4293726078 | AS94: 0.00620198652 | AT94: 0.4405417294 | AU94: 0.7871670609 | AV94: 0.9770628687 | AW94: 0.972419797 | AX94: 0.7741623083 | AY94: 0.4217646174 | AZ94: -0.01460885301 | BA94: -0.4480736161 | BB94: 3.933555062
C95: 9.1 | D95: 0.9171055239 | E95: 0.9989893966 | F95: 0.8776009611 | G95: 0.5776400867 | H95: 0.1601421953 | I95: -0.2899411007 | J95: -0.6810277777 | K95: -0.933540323 | L95: -0.996098003 | M95: -0.8559717098 | N95: -0.5416740532 | O95: -0.1171576741 | P95: 0.3311977076 | Q95: 0.7121616608 | R95: 0.9482164237 | S95: 0.9913300586 | T95: 0.8327298917 | U95: 0.5046875588 | V95: 0.07395243932 | W95: -0.3718303705 | X95: -0.7419539011 | Y95: -0.9611061777 | Z95: -0.9846945456 | AA95: -0.8079192922 | AB95: -0.4667502827 | AC95: -0.0306078854 | AD95: 0.4117625414 | AE95: 0.7703483731 | AF95: 0.9721853019 | AG95: 0.9762039646 | AH95: 0.781586652 | AI95: 0.4279336947 | AJ95: -0.01279433078 | AK95: -0.4509189922 | AL95: -0.7972915843 | AM95: -0.9814329244 | AN95: -0.9658743112 | AO95: -0.7537815793 | AP95: -0.3883109217 | AQ95: 0.0561724437 | AR95: 0.4892259558 | AS95: 0.8227327764 | AT95: 0.9888316235 | AU95: 0.9537250453 | AV95: 0.724556456 | AW95: 0.347956609 | AX95: -0.09944473324 | AY95: -0.5266112657 | AZ95: -0.8466240207 | BA95: -0.9943674609 | BB95: 1.051250121
C96: 9.2 | D96: 0.9410884316 | E96: 0.6931388993 | F96: 0.3010892521 | G96: -0.1535553467 | H96: -0.5762765559 | I96: -0.8791927476 | J96: -0.9993291587 | K96: -0.9117100295 | L96: -0.6345509391 | M96: -0.2254718781 | N96: 0.2304816601 | O96: 0.6385192124 | P96: 0.9138118099 | Q96: 0.9991274967 | R96: 0.8767295676 | S96: 0.5720639407 | T96: 0.148469078 | U96: -0.3059917644 | V96: -0.6968384474 | W96: -0.942815898 | X96: -0.9927866327 | Y96: -0.8363619856 | Z96: -0.5060618593 | AA96: -0.07055400029 | AB96: 0.379621683 | AC96: 0.7508759146 | AD96: 0.9660267942 | AE96: 0.9803455287 | AF96: 0.7908553246 | AG96: 0.4369502489 | AH96: -0.00779460094 | AI96: -0.4509189922 | AJ96: -0.8002995773 | AK96: -0.9833018779 | AL96: -0.9618806297 | AM96: -0.7404892032 | AN96: -0.3651537701 | AO96: 0.08609530776 | AP96: 0.5194456012 | AQ96: 0.8448057488 | AR96: 0.9945350011 | AS96: 0.9375053944 | AT96: 0.6855730991 | AU96: 0.291113581 | AV96: -0.1638669965 | AW96: -0.584780444 | AX96: -0.8841209581 | AY96: -0.9996571413 | AZ96: -0.9073695982 | BA96: -0.6264444479 | BB96: -2.229306905
C97: 9.3 | D97: 0.4536303247 | E97: 0.005834672664 | F97: -0.4432000122 | G97: -0.7981181302 | H97: -0.9835503812 | I97: -0.9601189529 | J97: -0.7327996702 | K97: -0.349865344 | L97: 0.1073652912 | M97: 0.5417961692 | N97: 0.8611729093 | O97: 0.9976736669 | P97: 0.9223115684 | Q97: 0.6510902733 | R97: 0.2416054865 | S97: -0.219185885 | T97: -0.6334316282 | U97: -0.9131638143 | V97: -0.9989793921 | W97: -0.8726548342 | X97: -0.5610160281 | Y97: -0.130241615 | Z97: 0.3281904996 | AA97: 0.7169291074 | AB97: 0.9534228948 | AC97: 0.9874507816 | AD97: 0.8117867124 | AE97: 0.4637341588 | AF97: 0.01720447128 | AG97: -0.4329787039 | AH97: -0.7912158772 | AI97: -0.9814329244 | AJ97: -0.9632359488 | AK97: -0.7404892032 | AL97: -0.360494489 | AM97: 0.09605370603 | AN97: 0.5322042368 | AO97: 0.8553375424 | AP97: 0.9968340456 | AQ97: 0.9266459923 | AR97: 0.6596782975 | AS97: 0.2526233851 | AT97: -0.2080778384 | AU97: -0.6245923036 | AV97: -0.908470303 | AW97: -0.9994283934 | AX97: -0.8781509997 | AY97: -0.5703922093 | AZ97: -0.1415067154 | BA97: 0.3174287015 | BB97: -3.498786702
C98: 9.4 | D98: -0.2803563183 | E98: -0.6846805375 | F98: -0.9405225913 | G98: -0.9923996959 | H98: -0.8290616049 | I98: -0.4859303759 | J98: -0.03741862189 | K98: 0.4192078626 | L98: 0.7849234947 | M98: 0.9804179305 | N98: 0.9632955774 | O98: 0.7372696474 | P98: 0.3513568975 | Q98: -0.1107523121 | R98: -0.5488433961 | S98: -0.8679104222 | T98: -0.9987594227 | U98: -0.9130140355 | V98: -0.6292692988 | W98: -0.2090590675 | X98: 0.2564884289 | Y98: 0.6664129665 | Z98: 0.9318169066 | AA98: 0.9951438422 | AB98: 0.8426604772 | AC98: 0.5074348761 | AD98: 0.06216521062 | AE98: -0.3965858153 | AF98: -0.7693318836 | AG98: -0.9752380057 | AH98: -0.969650675 | AI98: -0.7537815793 | AJ98: -0.3744448296 | AK98: 0.08609530776 | AL98: 0.5279645219 | AM98: 0.8553375424 | AN98: 0.997219135 | AO98: 0.9228403719 | AP98: 0.6483312864 | AQ98: 0.2332228584 | AR98: -0.2324630771 | AS98: -0.6477362738 | AT98: -0.9225391646 | AU98: -0.9972770538 | AV98: -0.8557420267 | AW98: -0.5286278541 | AX98: -0.08687363515 | AY98: 0.3737202977 | AZ98: 0.7532679673 | BA98: 0.9694593667 | BB98: -2.172216801
C99: 9.5 | D99: -0.8619813819 | E99: -0.9983968916 | F99: -0.9137527961 | G99: -0.6267905302 | H99: -0.201047717 | I99: 0.2692099875 | J99: 0.6798606818 | K99: 0.9399803247 | L99: 0.9919746406 | M99: 0.8243313311 | N99: 0.4741690654 | O99: 0.01901886619 | P99: -0.4403423868 | Q99: -0.8022054254 | R99: -0.9864485053 | S99: -0.9522775267 | T99: -0.7072584415 | U99: -0.3056420421 | V99: 0.1636479547 | W99: 0.5967039121 | X99: 0.8976409373 | Y99: 0.9998271922 | Z99: 0.8806371526 | AA99: 0.5664612281 | AB99: 0.1268625419 | AC99: -0.3408253578 | AD99: -0.7330495619 | AE99: -0.9629659222 | AF99: -0.9796676097 | AG99: -0.7794566276 | AH99: -0.4066626018 | AI99: 0.0561724437 | AJ99: 0.5065700925 | AK99: 0.8448057488 | AL99: 0.9959891147 | AM99: 0.9266459923 | AN99: 0.6521299581 | AO99: 0.2332228584 | AP99: -0.2373231772 | AQ99: -0.6553224066 | AR99: -0.9282237159 | AS99: -0.9956027826 | AT99: -0.8425409004 | AU99: -0.5029281983 | AV99: -0.05195987199 | AW99: 0.4105131263 | AX99: 0.7820925427 | AY99: 0.9805052854 | AZ99: 0.9618198849 | BA99: 0.730173561 | BB99: 0.2982940462
C100: 9.6 | D100: -0.975156704 | E100: -0.7626675025 | F100: -0.377807701 | G100: 0.09244047742 | H100: 0.5417961692 | I100: 0.8687004252 | J100: 0.9992695638 | K100: 0.9039936341 | L100: 0.6044059634 | M100: 0.1682164077 | N100: -0.3059917644 | O100: -0.7110426905 | P100: -0.9553907483 | Q100: -0.9838107956 | R100: -0.789879613 | S100: -0.4174276171 | T100: 0.04936725906 | U100: 0.5050046333 | V100: 0.8465058324 | W100: 0.9966881176 | X100: 0.9216087674 | Y100: 0.6382364773 | Z100: 0.2106162624 | AA100: -0.2646053664 | AB100: -0.6800234956 | AC100: -0.9417494095 | AD100: -0.9906303939 | AE100: -0.81561885 | AF100: -0.4562691638 | AG100: 0.00620198652 | AH100: 0.4672714249 | AI100: 0.8227327764 | AJ100: 0.992248166 | AK100: 0.9375053944 | AL100: 0.6708768838 | AM100: 0.2526233851 | AN100: -0.2227255639 | AO100: -0.6477362738 | AP100: -0.9263520085 | AQ100: -0.9956027826 | AR100: -0.8398372181 | AS100: -0.4942599142 | AT100: -0.03697485075 | AU100: 0.4286669044 | AV100: 0.7974255863 | AW100: 0.9859579883 | AX100: 0.951653873 | AY100: 0.702266319 | AZ100: 0.2941594457 | BA100: -0.1804304493 | BB100: 1.884449248
C101: 9.7 | D101: -0.5583763735 | E101: -0.1072208485 | F101: 0.3686651761 | G101: 0.7595185403 | H101: 0.9751888759 | I101: 0.965931798 | J101: 0.7338824526 | K101: 0.3325630448 | L101: -0.1454620631 | M101: -0.5899363314 | N101: -0.8983417248 | O101: -0.9995445079 | P101: -0.8702022485 | Q101: -0.540147752 | R101: -0.08550812144 | S101: 0.388853966 | T101: 0.7735268466 | U101: 0.9797856813 | V101: 0.9600568489 | W101: 0.7188908066 | X101: 0.3119125265 | Y101: -0.1670084095 | Z101: -0.6074088389 | AA101: -0.9077103578 | AB101: -0.9986483902 | AC101: -0.8592480698 | AD101: -0.5216620947 | AE101: -0.0637547043 | AF101: 0.4088577151 | AG101: 0.7871670609 | AH101: 0.983916244 | AI101: 0.9537250453 | AJ101: 0.7035570678 | AK101: 0.291113581 | AL101: -0.1884752829 | AM101: -0.6245923036 | AN101: -0.9166470459 | AO101: -0.9972770538 | AP101: -0.8478850077 | AQ101: -0.5029281983 | AR101: -0.04197094873 | AS101: 0.4286669044 | AT101: 0.8004326924 | AU101: 0.9875785984 | AV101: 0.9469394002 | AW101: 0.6878885329 | AX101: 0.2701761055 | AY101: -0.2098524681 | AZ101: -0.6414785486 | BA101: -0.9251475366 | BB101: 1.702360281
C102: 9.8 | D102: 0.1618574576 | E102: 0.6072324383 | F102: 0.9097048086 | G102: 0.9980924503 | H102: 0.851594721 | I102: 0.5046875588 | J102: 0.03901011198 | K102: -0.4358477516 | L102: -0.8081356972 | M102: -0.990241608 | N102: -0.9393097203 | O102: -0.6673260532 | P102: -0.2382976881 | Q102: 0.2468102926 | R102: 0.6738353501 | S102: 0.9422838488 | T102: 0.9889806537 | U102: 0.8029364058 | V102: 0.4279336947 | W102: -0.04777648547 | X102: -0.5122432207 | Y102: -0.856161565 | Z102: -0.9985957415 | AA102: -0.9060261053 | AB102: -0.6002374655 | AC102: -0.1531923722 | AD102: 0.3299041381 | AE102: 0.7353628947 | AF102: 0.9677655519 | AG102: 0.972419797 | AH102: 0.7482303267 | AI102: 0.347956609 | AJ102: -0.1342032276 | AK102: -0.584780444 | AL102: -0.8977387739 | AM102: -0.9994283934 | AN102: -0.8659182488 | AO102: -0.5286278541 | AP102: -0.06693320248 | AQ102: 0.4105131263 | AR102: 0.7913516429 | AS102: 0.9859579883 | AT102: 0.9485346176 | AU102: 0.6878885329 | AV102: 0.2653586938 | AW102: -0.2196191432 | AX102: -0.6529130667 | AY102: -0.9325541619 | AZ102: -0.9927332923 | BA102: -0.8192882453 | BB102: 0.4980741838
C103: 9.9 | D103: 0.7941287344 | E103: 0.9875087249 | F103: 0.9438248228 | G103: 0.6735638983 | H103: 0.2416054865 | I103: -0.2483533619 | J103: -0.6786918614 | K103: -0.9461018414 | L103: -0.9863881721 | M103: -0.789879613 | N103: -0.4037505158 | O103: 0.07930397196 | P103: 0.5433205436 | Q103: 0.8769061836 | R103: 0.9999794625 | S103: 0.8829950913 | T103: 0.5540366401 | U103: 0.09207472347 | V103: -0.3919908889 | W103: -0.7819541569 | X103: -0.9841994924 | Y103: -0.9501753582 | Z103: -0.6880496757 | AA103: -0.2607490127 | AB103: 0.2291477312 | AC103: 0.6640346794 | AD103: 0.939511749 | AE103: 0.9894472039 | AF103: 0.80185341 | AG103: 0.4217646174 | AH103: -0.05957407752 | AI103: -0.5266112657 | AJ103: -0.8672287946 | AK103: -0.9996571413 | AL103: -0.8921052153 | AM103: -0.5703922093 | AN103: -0.1117493778 | AO103: 0.3737202977 | AP103: 0.7694737142 | AQ103: 0.9805052854 | AR103: 0.9561542277 | AS103: 0.702266319 | AT103: 0.2797905456 | AU103: -0.2098524681 | AV103: -0.6491177568 | AW103: -0.9325541619 | AX103: -0.9921192086 | AY103: -0.8135135581 | AZ103: -0.4396137437 | BA103: 0.03982088039 | BB103: -0.3576339847
C104: 10 | D104: =COS((ω+D$3*δω)*t-(ω+D$3*δω)/(c_*(1-D$3*δc))*$C104) -> 0.9948252601 | E104: 0.8243313311 | F104: 0.4520123427 | G104: -0.03097503173 | H104: -0.5063786381 | I104: -0.8578030932 | J104: -0.9992074343 | K104: -0.8959709468 | L104: -0.5733695235 | M104: -0.1103872438 | N104: =COS((ω+N$3*δω)*t-(ω+N$3*δω)/(c_*(1-N$3*δc))*$C104) -> 0.379621683 | O104: 0.776685982 | P104: 0.9835904648 | Q104: 0.9496776979 | R104: 0.6832507094 | S104: 0.249540118 | T104: -0.2452665973 | U104: -0.6800234956 | V104: -0.9482869255 | W104: -0.9843766434 | X104: =COS((ω+X$3*δω)*t-(ω+X$3*δω)/(c_*(1-X$3*δc))*$C104) -> -0.7794566276 | Y104: -0.3836984449 | Z104: 0.106002499 | AA104: 0.5697503343 | AB104: 0.8940034169 | AC104: 0.9993732837 | AD104: 0.8600617162 | AE104: 0.5101770449 | AF104: 0.03538324 | AG104: -0.4480736161 | AH104: =COS((ω+AH$3*δω)*t-(ω+AH$3*δω)/(c_*(1-AH$3*δc))*$C104) -> -0.8218264239 | AI104: -0.9943674609 | AJ104: -0.9234526637 | AK104: -0.6264444479 | AL104: -0.1760607832 | AM104: 0.3174287015 | AN104: 0.7332005694 | AO104: 0.9694593667 | AP104: 0.9683606999 | AQ104: 0.730173561 | AR104: =COS((ω+AR$3*δω)*t-(ω+AR$3*δω)/(c_*(1-AR$3*δc))*$C104) -> 0.3132144687 | AS104: -0.1804304493 | AT104: -0.6298997006 | AU104: -0.9251475366 | AV104: -0.99388699 | AW104: -0.8192882453 | AX104: -0.4440991644 | AY104: 0.03982088039 | AZ104: 0.5139913849 | BA104: 0.8623188723 | BB104: -0.2619224991
C105: 10.1 | D105: 0.6548771204 | E105: 0.2075013423 | F105: -0.2916773641 | G105: -0.7180385099 | H105: -0.9651405869 | I105: -0.9712943019 | J105: -0.7349633735 | K105: -0.3151480663 | L105: 0.1833442869 | M105: 0.6360645462 | N105: 0.9299906229 | O105: 0.991743563 | P105: 0.8059066802 | Q105: 0.4188743476 | R105: -0.07273040627 | S105: -0.5461779377 | T105: -0.8832715729 | U105: -0.9998555315 | V105: -0.8668245056 | W105: -0.5173898308 | X105: -0.0387882408 | Y105: 0.4494968742 | Z105: 0.8255646221 | AA105: 0.9955292943 | AB105: 0.9169590317 | AC105: 0.609468983 | AD105: 0.149824362 | AE105: -0.3472240684 | AF105: -0.7575876452 | AG105: -0.97881867 | AH105: -0.955686585 | AI105: -0.6939663395 | AJ105: -0.2589966678 | AK105: 0.2406317942 | AL105: 0.6801862758 | AM105: 0.9499315387 | AN105: 0.9825253945 | AO105: 0.7698307527 | AP105: 0.3649470543 | AQ105: -0.1310460598 | AR105: -0.5943233873 | AS105: -0.9092272565 | AT105: -0.9971415854 | AU105: -0.8361184693 | AV105: -0.4663574985 | AW105: 0.01983011205 | AX105: 0.5010671143 | AY105: 0.8572121847 | AZ105: 0.9993533322 | BA105: 0.8920048698 | BB105: 0.1848716394
C106: 10.2 | D106: -0.04096851799 | E106: -0.5235224408 | F106: -0.8728341517 | G106: -0.9999999831 | H106: -0.8726548342 | I106: -0.523209444 | J106: -0.04060150311 | K106: 0.4523399664 | L106: 0.8301559456 | M106: 0.9966881176 | N106: 0.9095522154 | O106: 0.5909252832 | P106: 0.1219013753 | Q106: -0.3781477717 | R106: -0.7819541569 | S106: -0.9867446197 | T106: -0.9403977376 | U106: -0.6547093014 | V106: -0.2023901561 | W106: 0.3014395071 | X106: 0.7285495045 | Y106: 0.9702356501 | Z106: 0.964986165 | AA106: 0.7141371008 | AB106: 0.2815322999 | AC106: -0.2227255639 | AD106: -0.6702973251 | AE106: -0.9472710541 | AF106: -0.9831538943 | AG106: -0.7688132687 | AH106: -0.3588012211 | AI106: 0.1425296787 | AJ106: 0.6075852095 | AK106: 0.9180036304 | AL106: 0.9947800434 | AM106: 0.8183740079 | AN106: 0.4336827978 | AO106: -0.06138544816 | AP106: -0.5408304233 | AQ106: -0.8826281148 | AR106: -0.9997872557 | AS106: -0.8624895577 | AT106: -0.505678793 | AU106: -0.02016722077 | AV106: 0.4704771307 | AW106: 0.8413798843 | AX106: 0.9981422151 | AY106: 0.9008663878 | AZ106: 0.5743101691 | BA106: 0.1015857037 | BB106: 0.02199623019
C107: 10.3 | D107: -0.714549532 | E107: -0.9664371773 | F107: -0.9676169519 | G107: -0.7177828051 | H107: -0.2817453511 | I107: 0.227380948 | J107: 0.6775213195 | K107: 0.9519027991 | L107: 0.9793468373 | M107: 0.7527340512 | N107: 0.3308510958 | O107: -0.1768594495 | P107: -0.6386900794 | Q107: -0.9348352062 | R107: -0.9884704737 | S107: -0.7856821127 | T107: -0.3790763757 | U107: 0.1258672907 | V107: 0.5981591499 | W107: 0.9152798191 | X107: 0.994963581 | Y107: 0.8165393079 | Z107: 0.4262928533 | AA107: -0.07454017238 | AB107: -0.5560363924 | AC107: -0.8932886788 | AD107: -0.9988088798 | AE107: -0.8452235193 | AF107: -0.4723748753 | AG107: 0.0230146869 | AH107: 0.5124339044 | AI107: 0.8689203084 | AJ107: 0.9999961369 | AK107: 0.8716584122 | AL107: 0.517199808 | AM107: 0.02857204554 | AN107: -0.4674677214 | AO107: -0.8422395572 | AP107: -0.9985221927 | AQ107: -0.8957736376 | AR107: -0.5606483625 | AS107: -0.08008274172 | AT107: 0.4212575079 | AU107: 0.8133174284 | AV107: 0.9943909698 | AW107: 0.9175050199 | AX107: 0.6026049131 | AY107: 0.1313803208 | AZ107: -0.3739262391 | BA107: -0.7822308899 | BB107: -0.89381886
C108: 10.4 | D108: -0.9998036628 | E108: -0.8774944957 | F108: -0.523209444 | G108: -0.0306078854 | H108: 0.4700852241 | I108: 0.8465058324 | J108: 0.9991427701 | K108: 0.8876446859 | L108: 0.5414873962 | M108: 0.05218161 | N108: -0.4509189922 | O108: -0.8348139098 | P108: -0.9980160526 | Q108: -0.8973810343 | R108: -0.5595128935 | S108: -0.07373100626 | T108: 0.4315425308 | U108: 0.8227327764 | V108: 0.9964240354 | W108: 0.9066990017 | X108: 0.5772775323 | Y108: 0.09524602732 | Z108: -0.4119648737 | AA108: -0.8102680648 | AB108: -0.9943674609 | AC108: -0.9155942437 | AD108: -0.59477303 | AE108: -0.1167166423 | AF108: 0.3921951484 | AG108: 0.7974255863 | AH108: 0.9918472879 | AI108: 0.9240626132 | AJ108: 0.61199123 | AK108: 0.1381328412 | AL108: -0.3722425721 | AM108: -0.7842113284 | AN108: -0.9888646912 | AO108: -0.9321001619 | AP108: -0.6289241046 | AQ108: -0.1594846391 | AR108: 0.3521164472 | AS108: 0.7706314519 | AT108: 0.9854210616 | AU108: 0.9397031427 | AV108: 0.6455637593 | AW108: 0.1807620814 | AX108: -0.331826157 | AY108: -0.756692288 | AZ108: -0.9815180044 | BA108: -0.9468680108 | BB108: -1.615083576
C109: 10.5 | D109: -0.7417075807 | E109: -0.3056420421 | F109: 0.2127488276 | G109: 0.6738353501 | H109: 0.9534228948 | I109: 0.9762039646 | J109: 0.7360424302 | K109: 0.2976263091 | L109: -0.2209560883 | M109: -0.6800234956 | N109: -0.9559251349 | O109: -0.9743463157 | P109: -0.7303252539 | Q109: -0.289589539 | R109: 0.2291477312 | S109: 0.6861635749 | T109: 0.9583598073 | U109: 0.972419797 | V109: 0.724556456 | W109: 0.2815322999 | X109: -0.2373231772 | Y109: -0.6922551541 | Z109: -0.9607267399 | AA109: -0.9704245447 | AB109: -0.7187364443 | AC109: -0.2734551612 | AD109: 0.2454818484 | AE109: 0.6982978026 | AF109: 0.9630257654 | AG109: 0.9683606999 | AH109: 0.71286563 | AI109: 0.2653586938 | AJ109: -0.2536231683 | AK109: -0.7042910932 | AL109: -0.9652567213 | AM109: -0.9662284083 | AN109: -0.7069444283 | AO109: -0.2572434701 | AP109: 0.2617465613 | AQ109: 0.7102346024 | AR109: 0.9674194499 | AS109: 0.9640278208 | AT109: 0.7009732575 | AU109: 0.2491100636 | AV109: -0.2698514533 | AW109: -0.71612791 | AX109: -0.9695137983 | AY109: -0.9617590928 | AZ109: -0.6949525399 | BA109: -0.2409590492 | BB109: -1.049226166
C110: 10.6 | D110: -0.08052538598 | E110: 0.4344137787 | F110: 0.8301559456 | G110: 0.9981150602 | H110: 0.8922055167 | I110: 0.5414873962 | J110: 0.04219279127 | K110: -0.4686789189 | L110: -0.8509517613 | M110: -0.9997354738 | N110: -0.8742059095 | O110: -0.5088066059 | P110: -0.003797964589 | Q110: 0.5022527844 | R110: 0.8704924718 | S110: 0.9998813346 | T110: 0.8549168985 | U110: 0.4753753548 | V110: -0.03460246387 | W110: -0.5350858558 | X110: -0.8887492556 | Y110: -0.9985524274 | Z110: -0.8343669338 | AA110: -0.4412429523 | AB110: 0.07295185567 | AC110: 0.567129706 | AD110: 0.9056951849 | AE110: 0.9957507124 | AF110: 0.8125863255 | AG110: 0.4064597416 | AH110: -0.1111936476 | AI110: -0.5983370723 | AJ110: -0.9213052655 | AK110: -0.991480322 | AL110: -0.7896071987 | AM110: -0.3710770259 | AN110: 0.1492714353 | AO110: 0.6286619256 | AP110: 0.9355564734 | AQ110: 0.9857475546 | AR110: 0.7654634464 | AS110: 0.3351469928 | AT110: -0.1871290562 | AU110: -0.6580595384 | AV110: -0.9484277889 | AW110: -0.9785608659 | AX110: -0.7401906791 | AY110: -0.2987226371 | AZ110: 0.2247106723 | BA110: 0.6864865509 | BB110: 0.799714904
C111: 10.7 | D111: 0.6244188865 | E111: 0.9353995428 | F111: 0.9849708786 | G111: 0.7592795524 | H111: 0.3213978809 | I111: -0.2063025234 | J111: -0.676349059 | K111: -0.9573812324 | L111: -0.9708610219 | M111: -0.7130213287 | N111: -0.2559187403 | O111: 0.2727036009 | P111: 0.7251154462 | Q111: 0.974884541 | R111: 0.9522097294 | S111: 0.6634277764 | T111: 0.1892424782 | U111: -0.3378290417 | V111: -0.7704899315 | W111: -0.9878275927 | X111: -0.9291042469 | Y111: -0.6107308811 | Z111: -0.121680989 | AA111: 0.4013742059 | AB111: 0.8122602648 | AC111: 0.9961498434 | AD111: 0.9016526558 | AE111: 0.5551771452 | AF111: 0.05355030761 | AG111: -0.4630418458 | AH111: -0.8502310555 | AI111: -0.9998123636 | AJ111: -0.8699833677 | AK111: -0.4970264347 | AL111: 0.01483086818 | AM111: 0.522543496 | AN111: 0.884224686 | AO111: 0.9987980211 | AP111: 0.8342445231 | AQ111: 0.4365507636 | AR111: -0.08314266902 | AS111: -0.5796008235 | AT111: -0.9140821428 | AU111: -0.9931115606 | AV111: -0.7946032991 | AW111: -0.3740330213 | AX111: 0.15106555 | AY111: 0.6339469286 | AZ111: 0.9396637606 | BA111: 0.982779582 | BB111: 2.565697743
C112: 10.8 | D112: 0.990018398 | E112: 0.9216087674 | F112: 0.5909252832 | G112: 0.09207472347 | H112: -0.4329787039 | I112: -0.8348139098 | J112: -0.9990755716 | K112: -0.8790176725 | L112: -0.5088066059 | M112: 0.00620198652 | N112: 0.5194456012 | O112: 0.8848640168 | P112: 0.9984654968 | Q112: 0.8279210326 | R112: 0.4217646174 | S112: -0.1044186849 | T112: -0.6008862425 | U112: -0.9263520085 | V112: -0.9881940768 | W112: -0.7688132687 | X112: -0.330641553 | Y112: 0.2016250079 | Z112: 0.6765125922 | AA112: 0.958876439 | AB112: 0.9683606999 | AC112: 0.702266319 | AD112: 0.236319137 | AE112: -0.2968803683 | AF112: -0.7455928754 | AG112: -0.9821225957 | AH112: -0.9391572775 | AI112: -0.6289241046 | AJ112: -0.1397100513 | AK112: 0.3892630569 | AL112: 0.8074586577 | AM112: 0.9958655442 | AN112: 0.9008663878 | AO112: 0.5494962989 | AP112: 0.04174910412 | AQ112: -0.4778791608 | AR112: -0.8615113139 | AS112: -0.9999723052 | AT112: -0.8538585407 | AU112: -0.4647514608 | AV112: 0.05661581544 | AW112: 0.5618712137 | AX112: 0.9072278201 | AY112: 0.9944031409 | AZ112: 0.7985885933 | BA112: 0.3755095978 | BB112: 2.611806997
C113: 10.9 | D113: 0.8175855666 | E113: 0.4006309021 | F113: -0.1324047308 | G113: -0.6270766996 | H113: -0.9400560676 | I113: -0.980658497 | J113: -0.7371196198 | K113: -0.2800037099 | L113: 0.258241992 | M113: 0.72166326 | N113: 0.9759859047 | O113: 0.947521105 | P113: 0.6445164063 | Q113: 0.1547660318 | R113: -0.3798270914 | S113: -0.804367055 | T113: -0.9958453497 | U113: -0.8987820169 | V113: -0.5413007125 | W113: -0.02698000661 | X113: 0.4951580326 | Y113: 0.8738263004 | Z113: 0.9993074012 | AA113: 0.8352437608 | AB113: 0.4291720675 | AC113: -0.1012502661 | AD113: -0.6023357989 | AE113: -0.9288972937 | AF113: -0.9863150535 | AG113: -0.7579525453 | AH113: -0.3099767598 | AI113: 0.2278133717 | AJ113: 0.6995956225 | AK113: 0.9686732469 | AL113: 0.9570822361 | AM113: 0.6681810322 | AN113: 0.1856774356 | AO113: -0.3506253473 | AP113: -0.7853360422 | AQ113: -0.992499217 | AR113: -0.9120902908 | AS113: -0.5674073817 | AT113: -0.05832078334 | AU113: 0.4676639948 | AV113: 0.8581452731 | AW113: 0.9999828901 | AX113: 0.8520800462 | AY113: 0.4572909128 | AZ113: -0.06999616749 | BA113: -0.5770021789 | BB113: 0.5513781101
C114: 11 | D114: =COS((ω+D$3*δω)*t-(ω+D$3*δω)/(c_*(1-D$3*δc))*$C114) -> 0.2008302065 | E114: -0.3408253578 | F114: -0.7819541569 | G114: -0.9924448301 | H114: -0.9102129519 | I114: -0.5595128935 | J114: -0.04378397239 | K114: 0.4848590733 | L114: 0.8704924718 | M114: 0.9993732837 | N114: =COS((ω+N$3*δω)*t-(ω+N$3*δω)/(c_*(1-N$3*δc))*$C114) -> 0.8334879903 | O114: 0.4217646174 | P114: -0.1143586325 | Q114: -0.6167516945 | R114: -0.9372332546 | S114: -0.9812769704 | T114: -0.7358921058 | U114: -0.2734551612 | V114: 0.2696376446 | W114: 0.7332005694 | X114: =COS((ω+X$3*δω)*t-(ω+X$3*δω)/(c_*(1-X$3*δc))*$C114) -> 0.9805052854 | Y114: 0.9386090302 | Z114: 0.6198691443 | AA114: 0.1182982618 | AB114: -0.4181648061 | AC114: -0.8312897647 | AD114: -0.9992250126 | AE114: -0.872437888 | AF114: -0.4883243743 | AG114: 0.03982088039 | AH114: =COS((ω+AH$3*δω)*t-(ω+AH$3*δω)/(c_*(1-AH$3*δc))*$C114) -> 0.5562209283 | AI114: 0.9085630817 | AJ114: 0.9929236857 | AK114: 0.7844204995 | AL114: 0.3445517371 | AM114: -0.1969428895 | AN114: -0.6803490226 | AO114: -0.9630855611 | AP114: -0.9617590928 | AQ114: -0.6767608608 | AR114: =COS((ω+AR$3*δω)*t-(ω+AR$3*δω)/(c_*(1-AR$3*δc))*$C114) -> -0.192151366 | AS114: 0.3491333579 | AT114: 0.7874408642 | AU114: 0.9934919348 | AV114: 0.9065116096 | AW114: 0.5521548187 | AX114: 0.03493943614 | AY114: -0.4925813665 | AZ114: -0.8748148242 | BA114: -0.9990208133 | BB114: -2.213509211
C115: 11.1 | D115: -0.5250677178 | E115: -0.8947158874 | F115: -0.9957711354 | G115: -0.7978967654 | H115: -0.360494489 | I115: 0.1851279156 | J115: 0.6751750829 | K115: 0.9625352849 | L115: 0.9609432419 | M115: 0.6708768838 | N115: 0.179413876 | O115: -0.3659090195 | P115: -0.8013863495 | Q115: -0.996288203 | R115: -0.8921052153 | S115: -0.5201130274 | T115: 0.008016633232 | U115: 0.5337397077 | V115: 0.8992345918 | W115: 0.9947800434 | X115: 0.7916934018 | Y115: 0.3509410981 | Z115: -0.1951634142 | AA115: -0.6826800414 | AB115: -0.9652567213 | AC115: -0.9580641834 | AD115: -0.6632616213 | AE115: -0.1693485045 | AF115: 0.3754028842 | AG115: 0.8074586577 | AH115: 0.9971160531 | AI115: 0.8874400874 | AJ115: 0.5113553888 | AK115: -0.01823774715 | AL115: -0.5423559275 | AM115: -0.903659336 | AN115: -0.9936850075 | AO115: -0.7854073148 | AP115: -0.3413510377 | AQ115: 0.2051785203 | AR115: 0.6901136672 | AS115: 0.9678772989 | AT115: 0.9550850177 | AU115: 0.6555770552 | AV115: 0.159265438 | AW115: -0.3848575235 | AX115: -0.8134465953 | AY115: -0.9978397154 | AZ115: -0.8826822316 | BA115: -0.5025443191 | BB115: -3.525241222
C116: 11.2 | D116: -0.9656139607 | E116: -0.9562192314 | F116: -0.6547093014 | G116: -0.1531923722 | H116: 0.3951232607 | I116: 0.8227327764 | J116: 0.999005839 | K116: 0.8700928295 | L116: 0.4753753548 | M116: -0.06456443149 | N116: -0.584780444 | O116: -0.9263520085 | P116: -0.9849325036 | Q116: -0.7426261868 | R116: -0.2734551612 | S116: 0.279253621 | T116: 0.7466532764 | U116: 0.9859579883 | V116: 0.9240626132 | W116: 0.5798755555 | X116: 0.0585424432 | Y116: -0.4806747871 | Z116: -0.8730507834 | AA116: -0.9987186898 | AB116: -0.8192882453 | AC116: -0.3895736167 | AD116: 0.1591517696 | AE116: 0.6592579171 | AF116: 0.9579675099 | AG116: 0.9640278208 | AH116: 0.6755874867 | AI116: 0.1807620814 | AJ116: -0.3692842921 | AK116: -0.8065180892 | AL116: -0.9973688543 | AM116: -0.8835336295 | AN116: -0.4997879124 | AO116: 0.03663790306 | AP116: 0.5618712137 | AQ116: 0.915458612 | AR116: 0.9893827621 | AS116: 0.761060592 | AT116: 0.3002421906 | AU116: -0.252297131 | AV116: -0.727762258 | AW116: -0.9809034544 | AX116: -0.9343886723 | AY116: -0.6024277022 | AZ116: -0.08643122705 | BA116: 0.4559691044 | BB116: -2.254402425
C117: 11.3 | D117: -0.8813906208 | E117: -0.4914883787 | F117: 0.05117965694 | G117: 0.5779398884 | H117: 0.925063226 | I117: 0.9846558223 | J117: 0.7381949397 | K117: 0.2622862396 | L117: -0.2951470036 | M117: -0.760841829 | N117: -0.9900496674 | O117: -0.9115274969 | P117: -0.5496817983 | Q117: -0.01698246449 | R117: 0.5209954065 | S117: 0.8970360268 | T117: 0.9942573984 | U117: 0.7824409023 | V117: 0.3274239348 | W117: -0.2293638566 | X117: -0.7148601321 | Y117: -0.9781615804 | Z117: -0.9374281082 | AA117: -0.6053206074 | AB117: -0.08506566102 | AC117: 0.4616296322 | AD117: 0.864839911 | AE117: 0.9992382278 | AF117: 0.8230505216 | AG117: 0.3910399485 | AH117: -0.162514756 | AI117: -0.6655561692 | AJ117: -0.9617275508 | AK117: -0.9589720831 | AL117: -0.6581462282 | AM117: -0.1527535204 | AN117: 0.4001184642 | AO117: 0.8286245077 | AP117: 0.9995751624 | AQ117: 0.859835067 | AR117: 0.4528386294 | AS117: -0.09491037863 | AT117: -0.6131590771 | AU117: -0.9408239549 | AV117: -0.9760592975 | AW117: -0.7079131571 | AX117: -0.2197314677 | AY117: 0.3367477716 | AZ117: 0.7885581259 | BA117: 0.9952666362 | BB117: 0.7032592016
C118: 11.4 | D118: -0.3181694544 | E118: 0.2437222798 | F118: 0.7285495045 | G118: 0.9830107968 | H118: 0.9266459923 | I118: 0.5772775323 | J118: 0.04537504246 | K118: -0.5008749473 | L118: -0.8887492556 | M118: -0.9956027826 | N118: -0.7876486515 | O118: -0.330641553 | P118: 0.2309137597 | Q118: 0.719454592 | R118: 0.9805052854 | S118: 0.9315221199 | T118: 0.5879934768 | U118: 0.0585424432 | V118: -0.4894195968 | W118: -0.8826281148 | X118: -0.9967513444 | Y118: -0.7957037428 | Z118: -0.3430561696 | AA118: 0.2180650953 | AB118: 0.7102346024 | AC118: 0.9778293134 | AD118: 0.9362363026 | AE118: 0.5986071989 | AF118: 0.07169966634 | AG118: -0.4778791608 | AH118: -0.8763535294 | AI118: -0.9977266211 | AJ118: -0.8036205011 | AK118: -0.355411146 | AL118: 0.2051785203 | AM118: 0.7008911387 | AN118: 0.974983346 | AO118: 0.9407877208 | AP118: 0.6091168531 | AQ118: 0.08484442451 | AR118: -0.4662556457 | AS118: -0.86992659 | AT118: -0.9985284433 | AU118: -0.8113975502 | AV118: -0.3677043342 | AW118: 0.1922562751 | AX118: 0.6914258252 | AY118: 0.9719678778 | AZ118: 0.9451755832 | BA118: 0.6195206126 | BB118: 3.108284047
C119: 11.5 | D119: 0.4179631017 | E119: 0.8448057488 | F119: 0.9999458612 | G119: 0.8334879903 | H119: 0.39896755 | I119: -0.1638669965 | J119: -0.6739993942 | K119: -0.9673632104 | L119: -0.9496081254 | M119: -0.6264444479 | N119: -0.1018065918 | O119: 0.4555738316 | P119: 0.8664346971 | Q119: 0.9986368251 | R119: 0.809661976 | S119: 0.3602873705 | T119: -0.2049612 | U119: -0.7042910932 | V119: -0.9771101281 | W119: -0.9356755031 | X119: -0.5933132314 | Y119: -0.06013229034 | Z119: 0.4923881211 | AA119: 0.8865489323 | AB119: 0.9955819584 | AC119: 0.7844204995 | AD119: 0.3209773317 | AE119: -0.2456970875 | AF119: -0.7333515408 | AG119: -0.9851488485 | AH119: -0.92010712 | AI119: -0.5591447765 | AJ119: -0.01835286481 | AK119: 0.5283416108 | AL119: 0.9051132905 | AM119: 0.9907866016 | AN119: 0.7578076883 | AO119: 0.2811061559 | AP119: -0.2860034439 | AQ119: -0.7611299331 | AR119: -0.9914653181 | AS119: -0.902930193 | AT119: -0.5239988171 | AU119: 0.02345864545 | AV119: 0.5633714464 | AW119: 0.9220953171 | AX119: 0.9842591379 | AY119: 0.7298700672 | AZ119: 0.2407435464 | BA119: -0.3258098052 | BB119: 3.180923342
C120: 11.6 | D120: 0.9269507205 | E120: 0.9809689778 | F120: 0.7141371008 | G120: 0.2137290457 | H120: -0.356584373 | I120: -0.8102680648 | J120: -0.9989335722 | K120: -0.860873181 | L120: -0.4412429523 | M120: 0.1227066828 | N120: 0.6465220664 | O120: 0.958876439 | P120: 0.9576065878 | Q120: 0.643127849 | R120: 0.1182982618 | S120: -0.4452236938 | T120: -0.8631242433 | U120: -0.9987186898 | V120: -0.8076575202 | W120: -0.3524320093 | X120: 0.2180650953 | Y120: 0.7172386243 | Z120: 0.9818215452 | AA120: 0.9252754787 | AB120: 0.5660952124 | AC120: 0.0217595242 | AD120: -0.5296931538 | AE120: -0.9078966024 | AF120: -0.9891500419 | AG120: -0.7468775281 | AH120: -0.2603202707 | AI120: 0.3113811612 | AJ120: 0.7812376931 | AK120: 0.9955711408 | AL120: 0.8842784562 | AM120: 0.4837606605 | AN120: -0.07498300806 | AO120: -0.6092016318 | AP120: -0.9441658145 | AQ120: -0.9703172464 | AR120: -0.679102456 | AS120: -0.1657704334 | AT120: 0.4017809041 | AU120: 0.8379198728 | AV120: 0.9999964503 | AW120: 0.8349994887 | AX120: 0.3968953197 | AY120: -0.171023267 | AZ120: -0.6830044699 | BA120: -0.9715921906 | BB120: 1.002843945
C121: 11.7 | D121: 0.9321805617 | E121: 0.5772775323 | F121: 0.03038594944 | G121: -0.5266112657 | H121: -0.908470303 | I121: -0.9881940768 | J121: -0.7392683871 | K121: -0.2444799013 | L121: 0.3316166902 | M121: 0.7974255863 | N121: 0.9980300076 | O121: 0.8667137725 | P121: 0.4471494867 | Q121: -0.12112591 | R121: -0.6491177568 | S121: -0.9612287281 | T121: -0.953658259 | U121: -0.6289241046 | V121: -0.09502499518 | W121: 0.4704771307 | X121: 0.8795099351 | Y121: 0.9960389945 | Z121: 0.7813095603 | AA121: 0.306735452 | AB121: -0.2698514533 | AC121: -0.756692288 | AD121: -0.9918755584 | AE121: -0.8971849934 | AF121: -0.5041123861 | AG121: 0.05661581544 | AH121: 0.5985149653 | AI121: 0.9413625049 | AJ121: 0.9711356297 | AK121: 0.6779325182 | AL121: 0.159265438 | AM121: -0.4123694772 | AN121: -0.846860272 | AO121: -0.9997058104 | AP121: -0.8200733609 | AQ121: -0.3677043342 | AR121: 0.2069542659 | AS121: 0.7127848797 | AT121: 0.9815604718 | AU121: 0.923892777 | AV121: 0.5589606767 | AW121: 0.008131766405 | AX121: -0.5454015728 | AY121: -0.9175475323 | AZ121: -0.9845393612 | BA121: -0.7240971967 | BB121: -1.642156916
C122: 11.8 | D122: 0.4308104318 | E122: -0.1441058907 | F122: -0.6702973251 | G122: -0.9698487384 | H122: -0.9414762135 | I122: -0.59477303 | J122: -0.04696599743 | K122: 0.5167211144 | L122: 0.9056951849 | M122: 0.9884368295 | N122: 0.7369695559 | O122: 0.236319137 | P122: -0.3442351876 | Q122: -0.8083971781 | R122: -0.9992250126 | S122: -0.8521962431 | T122: -0.4170240373 | U122: 0.1591517696 | V122: 0.6815153963 | W122: 0.9734459629 | X122: 0.9362363026 | Y122: 0.5824676953 | Z122: 0.03175590194 | AA122: -0.5296931538 | AB122: -0.9120430798 | AC122: -0.9860142384 | AD122: -0.726595602 | AE122: -0.2215014474 | AF122: 0.3584864757 | AG122: 0.8172634386 | AH122: 0.9997083976 | AI122: 0.844133311 | AJ122: 0.4031410158 | AK122: -0.1741607721 | AL122: -0.6925755563 | AM122: -0.976817634 | AN122: -0.9307794601 | AO122: -0.5700273993 | AP122: -0.01653844841 | AQ122: 0.5425424601 | AR122: 0.918179649 | AS122: 0.9833631819 | AT122: 0.7160532914 | AU122: 0.2066324346 | AV122: -0.3726547004 | AW122: -0.8259403342 | AX122: -0.999960144 | AY122: -0.8358747881 | AZ122: -0.3891645841 | BA122: 0.1891294205 | BB122: -2.790727838
C123: 11.9 | D123: -0.3046866057 | E123: -0.7861838101 | F123: -0.9974672786 | G123: -0.8659182488 | H123: -0.436750517 | I123: 0.1425296787 | J123: 0.6728219959 | K123: 0.9718633731 | L123: 0.9368723911 | M123: 0.5798755555 | N123: 0.02357375053 | O123: -0.5408304233 | P123: -0.9193495569 | Q123: -0.9818854876 | R123: -0.7069444283 | S123: -0.1890244465 | T123: 0.3938638051 | U123: 0.8413798843 | V123: 0.9997111712 | W123: 0.8144387272 | X123: 0.3492412473 | Y123: -0.2359914977 | Z123: -0.7401132565 | AA123: -0.989855867 | AB123: -0.8993820441 | AC123: -0.4997879124 | AD123: 0.07158482527 | AE123: 0.6183536436 | AF123: 0.9525924581 | AG123: 0.9594223848 | AH123: 0.6364959573 | AI123: 0.09480395836 | AJ123: -0.4794724457 | AK123: -0.8889527307 | AL123: -0.9928972932 | AM123: -0.755580075 | AN123: -0.2585677166 | AO123: 0.3273151423 | AP123: 0.8006988041 | AQ123: 0.998879883 | AR123: 0.8537429471 | AS123: 0.4151719971 | AT123: -0.1660948148 | AU123: -0.6902743402 | AV123: -0.9772045024 | AW123: -0.9282665433 | AX123: -0.5602805863 | AY123: 0.0002754903793 | AZ123: 0.5607368802 | BA123: 0.9284713207 | BB123: -1.847045156
C124: 12 | D124: =COS((ω+D$3*δω)*t-(ω+D$3*δω)/(c_*(1-D$3*δc))*$C124) -> -0.8745996008 | E124: -0.9956027826 | F124: -0.7688132687 | G124: -0.2734551612 | H124: 0.3174287015 | I124: 0.7974255863 | J124: 0.9988587717 | K124: 0.8513618508 | L124: 0.4064597416 | M124: -0.1804304493 | N124: =COS((ω+N$3*δω)*t-(ω+N$3*δω)/(c_*(1-N$3*δc))*$C124) -> -0.7042910932 | O124: -0.9821225957 | P124: -0.9168704196 | Q124: -0.5313290275 | R124: 0.03982088039 | S124: 0.5970602091 | T124: 0.9457292292 | U124: 0.9640278208 | V124: 0.6455637593 | W124: 0.1015857037 | X124: =COS((ω+X$3*δω)*t-(ω+X$3*δω)/(c_*(1-X$3*δc))*$C124) -> -0.4778791608 | Y124: -0.8904070858 | Z124: -0.9918901986 | AA124: -0.7468775281 | AB124: -0.2409590492 | AC124: 0.3491333579 | AD124: 0.8172634386 | AE124: 0.9998998873 | AF124: 0.8332425381 | AG124: 0.3755095978 | AH124: =COS((ω+AH$3*δω)*t-(ω+AH$3*δω)/(c_*(1-AH$3*δc))*$C124) -> -0.2133996485 | AI124: -0.727762258 | AJ124: -0.9878965729 | AK124: -0.902930193 | AL124: -0.5025443191 | AM124: 0.07339474366 | AN124: 0.6236949109 | AO124: 0.956120502 | AP124: 0.9545456939 | AQ124: 0.6195206126 | AR124: =COS((ω+AR$3*δω)*t-(ω+AR$3*δω)/(c_*(1-AR$3*δc))*$C124) -> 0.06807915748 | AS124: -0.5071443059 | AT124: -0.9052076727 | AU124: -0.9870559564 | AV124: -0.7240971967 | AW124: -0.2081904538 | AX124: 0.3804432042 | AY124: 0.8361771057 | AZ124: 0.9998102871 | BA124: 0.8141809705 | BB124: 0.1245822638
C125: 12.1 | D125: -0.9692053963 | E125: -0.6571136883 | F125: -0.1117493778 | G125: 0.473285493 | H125: 0.8903059994 | I125: 0.991271611 | J125: 0.7403399594 | K125: 0.2265907281 | L125: -0.3675972611 | M125: -0.8312897647 | N125: -0.9998778894 | O125: -0.8135135581 | P125: -0.3383553265 | Q125: 0.2569176264 | R125: 0.7609858998 | S125: 0.9949073713 | T125: 0.8756408999 | U125: 0.4455255826 | V125: -0.1427494475 | W125: -0.6803490226 | X125: -0.9764275489 | Y125: -0.9258783917 | Z125: -0.5466462898 | AA125: 0.02664295167 | AB125: 0.5904740571 | AC125: 0.9446893494 | AD125: 0.9635438859 | AE125: 0.6403443853 | AF125: 0.08982531425 | AG125: -0.4925813665 | AH125: -0.9001237286 | AI125: -0.9881259434 | AJ125: -0.7253475936 | AK125: -0.2050738912 | AL125: 0.3880001822 | AM125: 0.8433358188 | AN125: 0.9992907777 | AO125: 0.8005017028 | AP125: 0.3175378817 | AQ125: -0.2781505552 | AR125: -0.7750967119 | AS125: -0.9968867877 | AT125: -0.864786236 | AU125: -0.4256901985 | AV125: 0.1645240735 | AW125: 0.6963329897 | AX125: 0.9809466158 | AY125: 0.9173283087 | AZ125: 0.5280623004 | BA125: -0.0486636092 | BB125: 1.485872181
C126: 12.2 | D126: -0.5370898183 | E126: 0.0430034537 | F126: 0.6075852095 | G126: 0.9530085716 | H126: 0.9546779639 | I126: 0.61199123 | J126: 0.04855683327 | K126: -0.5323922057 | L126: -0.9213052655 | M126: -0.9778998637 | N126: -0.6817621044 | O126: -0.1397100513 | P126: 0.4527359712 | Q126: 0.881878334 | R126: 0.9929236857 | S126: 0.7458175278 | T126: 0.2296920309 | U126: -0.3692842921 | V126: -0.835058307 | W126: -0.9996234801 | X126: -0.8036205011 | Y126: -0.3177484216 | Z126: 0.2827367733 | AA126: 0.7812376931 | AB126: 0.99794308 | AC126: 0.8546864418 | AD126: 0.4031410158 | AE126: -0.1938189728 | AF126: -0.7208676896 | AG126: -0.9878965729 | AH126: -0.8985872461 | AI126: -0.4851539374 | AJ126: 0.1032763199 | AK126: 0.6544543992 | AL126: 0.9695681822 | AM126: 0.9349548782 | AN126: 0.5630996432 | AO126: -0.01186786536 | AP126: -0.5825545879 | AQ126: -0.9431115611 | AR126: -0.9634844555 | AS126: -0.6363246872 | AT126: -0.07964008166 | AU126: 0.5057710171 | AV126: 0.9087485049 | AW126: 0.9839368045 | AX126: 0.704215198 | AY126: 0.1704803779 | AZ126: -0.4247473903 | BA126: -0.8667670911 | BB126: 1.429804691
C127: 12.3 | D127: 0.1869109346 | E127: 0.719454592 | F127: 0.9883518794 | G127: 0.8950645505 | H127: 0.4737780369 | I127: -0.12112591 | J127: -0.6716428909 | K127: -0.9760342482 | L127: -0.9227548235 | M127: -0.5313290275 | N127: 0.05480394109 | O127: 0.6208538352 | P127: 0.9593899129 | Q127: 0.946354577 | R127: 0.5865246668 | S127: 0.01176097052 | T127: -0.5673125699 | U127: -0.9384926569 | V127: -0.9657591946 | W127: -0.6391202756 | X127: -0.07827374642 | Y127: 0.5112564403 | Z127: 0.9134351164 | AA127: 0.9808826568 | AB127: 0.6888827008 | AC127: 0.1444395393 | AD127: -0.4529339401 | AE127: -0.8843283702 | AF127: -0.9916579221 | AG127: -0.7355913482 | AH127: -0.2099650399 | AI127: 0.3926036095 | AJ127: 0.8513014467 | AK127: 0.9980372245 | AL127: 0.7790391612 | AM127: 0.2745597774 | AN127: -0.3305328896 | AO127: -0.8145007525 | AP127: -0.9999922847 | AQ127: -0.819033538 | AR127: -0.3379374072 | AS127: 0.2669969362 | AT127: 0.7740894229 | AU127: 0.9975144362 | AV127: 0.8553971858 | AW127: 0.3998169797 | AX127: -0.2022774006 | AY127: -0.7302465991 | AZ127: -0.990614663 | BA127: -0.8879689067 | BB127: 0.4720741252
C128: 12.4 | D128: 0.8093336479 | E128: 0.999969739 | F128: 0.8183740079 | G128: 0.33214421 | H128: -0.2777239738 | I128: -0.7842113284 | J128: -0.9987814375 | K128: -0.8415620614 | L128: -0.3710770259 | M128: 0.237538867 | N128: 0.7577325589 | O128: 0.9958655442 | P128: 0.8632944654 | Q128: 0.4093679901 | R128: -0.1969428895 | S128: -0.7299431399 | T128: -0.9912271029 | U128: -0.8835336295 | V128: -0.4469508707 | W128: 0.1560062599 | X128: 0.7008911387 | Y128: 0.9848741366 | Z128: 0.9022445459 | AA128: 0.4837606605 | AB128: -0.1147997863 | AC128: -0.6706268064 | AD128: -0.976817634 | AE128: -0.9193948505 | AF128: -0.5197336899 | AG128: 0.07339474366 | AH128: 0.6392024913 | AI128: 0.9670715305 | AJ128: 0.9349548782 | AK128: 0.5548077362 | AL128: -0.03186275015 | AM128: -0.606672548 | AN128: -0.955652684 | AO128: -0.9488977151 | AP128: -0.5889221318 | AQ128: -0.00972435635 | AR128: 0.5730932435 | AS128: 0.9425808454 | AT128: 0.961199244 | AU128: 0.6220178691 | AV128: 0.05129464263 | AW128: -0.53852266 | AX128: -0.9278786254 | AY128: -0.9718381872 | AZ128: -0.6540377025 | BA128: -0.0927762046 | BB128: -0.2790967946
C129: 12.5 | D129: 0.9919183948 | E129: 0.730173561 | F129: 0.1923692628 | G129: -0.4181648061 | H129: -0.870601734 | I129: -0.99388699 | J129: -0.7414096537 | K129: -0.2086247812 | L129: 0.403035647 | M129: 0.8623188723 | N129: 0.9955819584 | O129: 0.7524416291 | P129: 0.2248228632 | Q129: -0.3877955282 | R129: -0.8537986057 | S129: -0.9970028333 | T129: -0.7632664499 | U129: -0.2409590492 | V129: 0.3724486454 | W129: 0.84504328 | X129: 0.9981492234 | Y129: 0.773881136 | Z129: 0.2570288969 | AA129: -0.356999224 | AB129: -0.8360553055 | AC129: -0.9990208133 | AD129: -0.7842827649 | AE129: -0.2730279819 | AF129: 0.3414515171 | AG129: 0.8268371568 | AH129: 0.9996173629 | AI129: 0.7944684731 | AJ129: 0.2889518997 | AK129: -0.3258098052 | AL129: -0.8173913717 | AM129: -0.9999387081 | AN129: -0.8044354563 | AO129: -0.3047962661 | AP129: 0.3100783947 | AQ129: 0.8077205507 | AR129: 0.9999847602 | AS129: 0.8141809705 | AT129: 0.3205567192 | AU129: -0.2942616166 | AV129: -0.7978273563 | AW129: -0.9997555067 | AX129: -0.8237023327 | AY129: -0.3362289198 | AZ129: 0.2783638254 | BA129: 0.7877145121 | BB129: -0.2599043478
C130: 12.6 | D130: 0.6354382323 | E130: 0.0585424432 | F130: -0.5408304233 | G130: -0.9325541619 | H130: -0.9662284083 | I130: -0.6289241046 | J130: -0.05014754595 | K130: 0.5478829114 | L130: 0.9355564734 | M130: 0.9640278208 | N130: 0.6223655226 | O130: 0.04174910412 | P130: -0.5548966734 | Q130: -0.9384926569 | R130: -0.9617590928 | S130: -0.6157629499 | T130: -0.03334771133 | U130: 0.5618712137 | V130: 0.9413625049 | W130: 0.9594223848 | X130: 0.6091168531 | Y130: 0.02494396143 | Z130: -0.5688060391 | AA130: -0.9441658145 | AB130: -0.9570178618 | AC130: -0.6024277022 | AD130: -0.01653844841 | AE130: 0.5757006597 | AF130: 0.9469023875 | AG130: 0.9545456939 | AH130: 0.5956959698 | AI130: 0.008131766405 | AJ130: -0.5825545879 | AK130: -0.9495720306 | AL130: -0.9520060558 | AM130: -0.5889221318 | AN130: 0.0002754903793 | AO130: 0.5893673394 | AP130: 0.9521745551 | AQ130: 0.949399127 | AR130: 0.582106667 | AS130: -0.008682727691 | AT130: -0.5961384326 | AU130: -0.9547097769 | AV130: -0.9467250918 | AW130: -0.5752500571 | AX130: 0.01708935128 | AY130: 0.6028673889 | AZ130: 0.957177517 | BA130: 0.9439841392 | BB130: 0.1112369915
C131: 12.7 | D131: -0.06637523072 | E131: -0.645306219 | F131: -0.9726603143 | G131: -0.9208163596 | H131: -0.5099860632 | I131: 0.09966566939 | J131: 0.6704620823 | K131: 0.9798744226 | L131: 0.9072762452 | M131: 0.4809704292 | N131: -0.1328448864 | O131: -0.6948697454 | P131: -0.9859950431 | Q131: -0.8927236587 | R131: -0.4514180577 | S131: 0.1658758557 | T131: 0.7185019707 | U131: 0.9910153453 | V131: 0.8771748398 | W131: 0.4213619275 | X131: -0.1987217162 | Y131: -0.7413323859 | Z131: -0.9949297269 | AA131: -0.8606471404 | AB131: -0.3908355798 | AC131: 0.2313458138 | AD131: 0.7633355134 | AE131: 0.9977338197 | AF131: 0.8431590043 | AG131: 0.3598730803 | AH131: -0.2637117418 | AI131: -0.784486799 | AJ131: -0.9994244944 | AK131: -0.8247299475 | AL131: -0.3285089814 | AM131: 0.2957833815 | AN131: 0.8047626388 | AO131: 0.9999998644 | AP131: 0.8053805357 | AQ131: 0.296778284 | AR131: -0.3275249425 | AS131: -0.8241404063 | AT131: -0.9994592875 | AU131: -0.785132362 | AV131: -0.2647163978 | AW131: 0.3589010031 | AX131: 0.8425984767 | AY131: 0.997803367 | AZ131: 0.7640080221 | BA131: 0.232359102 | BB131: 0.04470320724
C132: 12.8 | D132: -0.7321166157 | E132: -0.9940248142 | F132: -0.8624895577 | G132: -0.3895736167 | H132: 0.237538867 | I132: 0.7706314519 | J132: 0.9987015698 | K132: 0.8314771332 | L132: 0.3351469928 | M132: -0.2938371708 | N132: -0.8065180892 | O132: -0.9999723052 | P132: -0.7976289989 | Q132: -0.2795773675 | R132: 0.3491333579 | S132: 0.8396541382 | T132: 0.9978326867 | U132: 0.761060592 | V132: 0.2230542579 | W132: -0.4032388438 | X132: -0.86992659 | Y132: -0.9922900113 | Z132: -0.7218966272 | AA132: -0.1657704334 | AB132: 0.4559691044 | AC132: 0.8972322022 | AD132: 0.9833631819 | AE132: 0.6802706712 | AF132: 0.1079212573 | AG132: -0.5071443059 | AH132: -0.9214778501 | AI132: -0.9710826432 | AJ132: -0.6363246872 | AK132: -0.04970402129 | AL132: 0.556589918 | AM132: 0.9425808454 | AN132: 0.9554902772 | AO132: 0.5902085507 | AP132: -0.008682727691 | AQ132: -0.6041373088 | AR132: -0.9604692174 | AS132: -0.9366392609 | AT132: -0.5420795383 | AU132: 0.06703986467 | AV132: 0.6496243205 | AW132: 0.9750819587 | AX132: 0.9145938848 | AY132: 0.4921017917 | AZ132: -0.1251683657 | BA132: -0.6928958219 | BB132: =SUM(D132:BA132) -> -0.6523679139
C133: 12.9 | D133: -0.9999841643 | E133: -0.7957037428 | F133: -0.2717091865 | G133: 0.3614582476 | H133: 0.8493915893 | I133: 0.9960389945 | J133: 0.7424774675 | K133: 0.1905881479 | L133: -0.4378795783 | M133: -0.8904070858 | N133: -0.9851686113 | O133: -0.6840889295 | P133: -0.108141997 | Q133: 0.5112564403 | R133: 0.9252318016 | S133: 0.9674485937 | T133: 0.62094409 | U133: 0.02494396143 | V133: -0.5810786624 | W133: -0.9536236089 | X133: -0.9430021448 | Y133: -0.5534819794 | Z133: 0.05842750335 | AA133: 0.646860788 | AB133: 0.9753851065 | AC133: 0.9119992346 | AD133: 0.4821716451 | AE133: -0.1413927361 | AF133: -0.7081454501 | AG133: -0.9903649921 | AH133: -0.8746554187 | AI133: -0.4075088904 | AJ133: 0.2233749001 | AK133: 0.7645065515 | AL133: 0.9984591142 | AM133: 0.8312303395 | AN133: 0.3300128268 | AO133: -0.3038039934 | AP133: -0.8155522275 | AQ133: -0.9996111965 | AR133: -0.7820259207 | AS133: -0.2502222655 | AT133: 0.3821208126 | AU133: 0.8609275701 | AV133: 0.9938132287 | AW133: 0.7273842687 | AX133: 0.1686919705 | AY133: -0.45778084 | AZ133: -0.9003170957 | BA133: -0.9811055226 | BB133: -1.271611046
C134: 13 | D134: =COS((ω+D$3*δω)*t-(ω+D$3*δω)/(c_*(1-D$3*δc))*$C134) -> -0.7244034053 | E134: -0.1594846391 | F134: 0.4704771307 | G134: 0.9085630817 | H134: 0.976107568 | I134: 0.6455637593 | J134: 0.05173813142 | K134: -0.5631879829 | L134: -0.9484277889 | M134: -0.9468680108 | N134: =COS((ω+N$3*δω)*t-(ω+N$3*δω)/(c_*(1-N$3*δc))*$C134) -> -0.5591447765 | O134: 0.05661581544 | P134: 0.6492866434 | Q134: 0.9771573394 | R134: 0.9065116096 | S134: 0.4661610719 | T134: -0.164305056 | U134: -0.727762258 | V134: -0.9944144297 | W134: -0.855512175 | X134: =COS((ω+X$3*δω)*t-(ω+X$3*δω)/(c_*(1-X$3*δc))*$C134) -> -0.3677043342 | Y134: 0.2700652487 | Z134: 0.7976934723 | AA134: 0.9999964503 | AB134: 0.7944684731 | AC134: 0.2649305095 | AD134: -0.3726547004 | AE134: -0.8582592484 | AF134: -0.9938378648 | AG134: -0.7240971967 | AH134: =COS((ω+AH$3*δω)*t-(ω+AH$3*δω)/(c_*(1-AH$3*δc))*$C134) -> -0.1590462289 | AI134: 0.4708689445 | AJ134: 0.9087485049 | AK134: 0.9760109789 | AL134: 0.6452245501 | AM134: 0.05129464263 | AN134: -0.5635548822 | AO134: -0.9485684653 | AP134: -0.9467250918 | AQ134: -0.5587765493 | AR134: =COS((ω+AR$3*δω)*t-(ω+AR$3*δω)/(c_*(1-AR$3*δc))*$C134) -> 0.05705917602 | AS134: 0.6496243205 | AT134: 0.9772516173 | AU134: 0.9063240388 | AV134: 0.4657681498 | AW134: -0.164743083 | AX134: -0.7280667484 | AY134: -0.9944612023 | AZ134: -0.8552821545 | BA134: -0.3672913305 | BB134: -0.9030683745
C135: 13.1 | D135: -0.0551406074 | E135: 0.5645033236 | F135: 0.9504969898 | G135: 0.9430760133 | H135: 0.5453119669 | I135: -0.07815896223 | J135: -0.669279573 | K135: -0.9833825952 | L135: -0.8904594862 | M135: -0.4289715061 | N135: 0.210069558 | O135: 0.7621619616 | P135: 0.998792371 | Q135: 0.8220184792 | R135: 0.3050077327 | S135: -0.3382469783 | T135: -0.8414998634 | U135: -0.996452468 | V135: -0.738969267 | W135: -0.1756236242 | X135: 0.4604133643 | Y135: 0.9058833535 | Z135: 0.9764044689 | AA135: 0.6427877286 | AB135: 0.04311848383 | AC135: -0.5743976801 | AD135: -0.954168264 | AE135: -0.9390046496 | AF135: -0.5351831197 | AG135: 0.09015292118 | AH135: 0.6781742944 | AI135: 0.9854965169 | AJ135: 0.8849176474 | AK135: 0.4180676967 | AL135: -0.221822206 | AM135: -0.7698989785 | AN135: -0.9993113735 | AO135: -0.81510465 | AP135: -0.2935227343 | AQ135: 0.3495494575 | AR135: 0.8479416803 | AS135: 0.995367328 | AT135: 0.730806314 | AU135: 0.1637615383 | AV135: -0.4710648166 | AW135: -0.910915492 | AX135: -0.9737344706 | AY135: -0.6335207168 | AZ135: -0.0310901132 | BA135: 0.5842088171 | BB135: 0.5395658111
C136: 13.2 | D136: 0.6440887348 | E136: 0.9778293134 | F136: 0.9008663878 | G136: 0.4455255826 | H136: -0.1969428895 | I136: -0.756692288 | J136: -0.9986191689 | K136: -0.8211104833 | L136: -0.2987226371 | M136: 0.3491333579 | N136: 0.8503479181 | O136: 0.9944031409 | P136: 0.7207935944 | Q136: 0.1444395393 | R136: -0.4925813665 | S136: -0.9227104451 | T136: -0.9652868006 | U136: -0.6024277022 | V136: 0.01346039107 | W136: 0.6236949109 | X136: 0.9719678778 | Y136: 0.9119992346 | Z136: 0.4689767431 | AA136: -0.171023267 | AB136: -0.7391908478 | AC136: -0.9968867877 | AD136: -0.8358747881 | AE136: -0.3237823905 | AF136: 0.3243036417 | AG136: 0.8361771057 | AH136: 0.9968431936 | AI136: 0.7388196522 | AJ136: 0.1704803779 | AK136: -0.4694633039 | AL136: -0.912225104 | AM136: -0.9718381872 | AN136: -0.6232641323 | AO136: -0.0129094582 | AP136: 0.6028673889 | AQ136: 0.965430566 | AR136: 0.9224979054 | AS136: 0.4921017917 | AT136: -0.1449847203 | AU136: -0.7211753971 | AV136: -0.9944612023 | AW136: -0.8500578515 | AX136: -0.3486169957 | AY136: 0.2992484147 | AZ136: 0.8214248415 | BA136: 0.9985900724 | BB136: 2.015463464
C137: 13.3 | D137: 0.9932836011 | E137: 0.8530284738 | F137: 0.3492412473 | G137: -0.3033808746 | H137: -0.8267122524 | I137: -0.9977266211 | J137: -0.7435433979 | K137: -0.1724869394 | L137: 0.4720776622 | M137: 0.915458612 | N137: 0.9687018335 | O137: 0.6091168531 | P137: -0.0100532818 | Q137: -0.6249390455 | R137: -0.9734967674 | S137: -0.9071828476 | T137: -0.4542580524 | U137: 0.1922562751 | V137: 0.7568374322 | W137: 0.998879883 | X137: 0.8152332603 | Y137: 0.2841615896 | Z137: -0.3680102111 | AA137: -0.8633484141 | AB137: -0.9907565059 | AC137: -0.6959374347 | AD137: -0.1045331917 | AE137: 0.5314195884 | AF137: 0.9408991798 | AG137: 0.949399127 | AH137: 0.5532970379 | AI137: -0.07860167449 | AJ137: -0.6770029919 | AK137: -0.9868883613 | AL137: -0.8761950412 | AM137: -0.3920968087 | AN137: 0.2590999209 | AO137: 0.7998769623 | AP137: 0.9997732944 | AQ137: 0.7735998111 | AR137: 0.2177440582 | AS137: -0.4309069025 | AT137: -0.8959198071 | AU137: -0.9791217661 | AV137: -0.6450548978 | AW137: -0.03608728668 | AX137: 0.5882595145 | AY137: 0.9619098587 | AZ137: 0.9256265126 | BA137: 0.4948722204 | BB137: 2.169812434
C138: 13.4 | D138: 0.8026716272 | E138: 0.2587821986 | F138: -0.3969934392 | G138: -0.8811263163 | H138: -0.9842983549 | I138: -0.6619024363 | J138: -0.05332858566 | K138: 0.5783022346 | L138: 0.9599002275 | M138: 0.9264789562 | N138: 0.4924883302 | O138: -0.1544329094 | P138: -0.7345840508 | Q138: -0.9971328795 | R138: -0.8285646586 | S138: -0.3017609825 | T138: 0.3555110666 | U138: 0.8590755355 | V138: 0.991212968 | W138: 0.6947928642 | X138: 0.09797443249 | Y138: -0.5412038984 | Z138: -0.9463891149 | AA138: -0.9423966869 | AB138: -0.5309527671 | AC138: 0.110052122 | AD138: 0.7034752424 | AE138: 0.9927461507 | AF138: 0.852796641 | AG138: 0.3441348168 | AH138: -0.3133159901 | AI138: -0.8353025395 | AJ138: -0.9961404659 | AK138: -0.7262904194 | AL138: -0.142423867 | AM138: 0.5030205941 | AN138: 0.930980747 | AO138: 0.9564251659 | AP138: 0.5683527867 | AQ138: -0.06545070973 | AR138: -0.6709561554 | AS138: -0.9863692332 | AT138: -0.8753189957 | AU138: -0.3858187535 | AV138: 0.2704927994 | AW138: 0.8098549868 | AX138: 0.9990709704 | AY138: 0.7563319578 | AZ138: 0.1865877799 | BA138: -0.4638288689 | BB138: 0.5852301232
C139: 13.5 | D139: 0.1758422081 | E139: -0.4778791608 | F139: -0.9220093734 | G139: -0.9617590928 | H139: -0.5796946448 | I139: 0.05661581544 | J139: 0.6680953661 | K139: 0.9865575772 | L139: 0.8723293503 | M139: 0.3755095978 | N139: -0.2860034439 | O139: -0.8220793512 | P139: -0.9976026838 | Q139: -0.7355913482 | R139: -0.1509598737 | S139: 0.4998805028 | T139: 0.9314802402 | U139: 0.9545456939 | V139: 0.5589606767 | W139: -0.08177672254 | X139: -0.6866479881 | Y139: -0.9903649921 | Z139: -0.8597216789 | AA139: -0.3520163893 | AB139: 0.3100783947 | AC139: 0.8361771057 | AD139: 0.9955401628 | AE139: 0.7182731448 | AF139: 0.1259815111 | AG139: -0.5215638619 | AH139: -0.940358576 | AI139: -0.9467250918 | AJ139: -0.5378711439 | AK139: 0.10688561 | AL139: 0.7047638214 | AM139: 0.9935424185 | AN139: 0.8465671234 | AO139: 0.3282992571 | AP139: -0.3339560992 | AQ139: -0.8497429532 | AR139: -0.9928443612 | AS139: -0.7004980352 | AT139: -0.1009230095 | AU139: 0.5429154451 | AV139: 0.9486387333 | AW139: 0.9383022612 | AX139: 0.5164394619 | AY139: -0.1319265057 | AZ139: -0.722431342 | BA139: -0.9960878351 | BB139: -1.686814079
C140: 13.6 | D140: -0.5465498747 | E140: -0.9515502477 | F140: -0.9332491516 | G140: -0.4997879124 | H140: 0.1560062599 | I140: 0.7424003357 | J140: 0.9985342349 | K140: 0.810465624 | L140: 0.2618576825 | M140: -0.4032388438 | N140: -0.8889527307 | O140: -0.9792119394 | P140: -0.6338642493 | Q140: -0.006539155834 | R140: 0.6236949109 | S140: 0.976475451 | T140: 0.8948664315 | U140: 0.4151719971 | V140: -0.2492135944 | W140: -0.8027353814 | X140: -0.9991566715 | Y140: -0.7510985576 | Z140: -0.1689108235 | AA140: 0.4884176611 | AB140: 0.9284713207 | AC140: 0.9554902772 | AD140: 0.5574550245 | AE140: -0.08856663932 | AF140: -0.6951890295 | AG140: -0.9925534081 | AH140: -0.8483758746 | AI140: -0.3267944626 | AJ140: 0.3401629572 | AK140: 0.8557973334 | AL140: 0.9907263613 | AM140: 0.6849262472 | AN140: 0.07443356705 | AO140: -0.569171225 | AP140: -0.9595776008 | AQ140: -0.9231115028 | AR140: -0.4759950411 | AS140: 0.1828699864 | AT140: 0.760384466 | AU140: 0.9996384467 | AV140: 0.7941987035 | AW140: 0.2354560435 | AX140: -0.4280303117 | AY140: -0.9011054299 | AZ140: -0.9733196863 | BA140: -0.6125482395 | BB140: -2.880496262
C141: 13.7 | D141: -0.9719156494 | E141: -0.9015566103 | F141: -0.4244495727 | G141: 0.2441529431 | H141: 0.8026029517 | I141: 0.9989490831 | J141: 0.7446074423 | K141: 0.1543272887 | L141: -0.5055794585 | M141: -0.9373880137 | N141: -0.9462828061 | O141: -0.5282508443 | P141: 0.1281077752 | Q141: 0.7266690467 | R141: 0.9973849262 | S141: 0.8181187215 | T141: 0.2697485153 | U141: -0.4003219452 | V141: -0.8897823939 | W141: -0.9778069221 | X141: -0.6246822158 | Y141: 0.01027530956 | Z141: 0.6405970066 | AA141: 0.9819057373 | AB141: 0.8802160043 | AC141: 0.3814063412 | AD141: -0.2894793337 | AE141: -0.8297629607 | AF141: -0.9956891489 | AG141: -0.7123983232 | AH141: -0.1077005122 | AI141: 0.5455876671 | AJ141: 0.9527274747 | AK141: 0.9300329391 | AL141: 0.4877429702 | AM141: -0.1745980466 | AN141: -0.758167076 | AO141: -0.9996800025 | AP141: -0.7901753938 | AQ141: -0.2241737485 | AR141: 0.4429665524 | AS141: 0.9102572193 | AT141: 0.9668745044 | AU141: 0.5872748454 | AV141: -0.0572808521 | AW141: -0.6759936112 | AX141: -0.9897238043 | AY141: -0.8569283197 | AZ141: -0.3375194212 | BA141: 0.3341653826 | BB141: -1.970588339
C142: 13.8 | D142: -0.869087145 | E142: -0.355411146 | F142: 0.3208682849 | G142: 0.8503479181 | H142: 0.9907866016 | I142: 0.6779325182 | J142: 0.05491890462 | K142: -0.5932205455 | L142: -0.9699568681 | M142: -0.902930193 | N142: -0.4228057582 | O142: 0.2507556807 | P142: 0.8095943972 | Q142: 0.9980372245 | R142: 0.7298700672 | S142: 0.1277815371 | T142: -0.5327680646 | U142: -0.9495720306 | V142: -0.9319392245 | W142: -0.4879367956 | X142: 0.1793006061 | Y142: 0.7645065515 | Z142: 0.9999446565 | AA142: 0.7779001116 | AB142: 0.1999600657 | AC142: -0.4694633039 | AD142: -0.9241034703 | AE142: -0.955958934 | AF142: -0.5504555664 | AG142: 0.10688561 | AH142: 0.7153257679 | AI142: 0.9964986859 | AJ142: 0.8217655129 | AK142: 0.2710680683 | AL142: -0.4036451779 | AM142: -0.8936875382 | AN142: -0.9748607271 | AO142: -0.6100273637 | AP142: 0.03389838056 | AQ142: 0.6623153455 | AR142: 0.9877177612 | AS142: 0.8612314291 | AT142: 0.3407248541 | AU142: -0.3356660572 | AV142: -0.8584870721 | AW142: -0.9885434093 | AX142: -0.6663332581 | AY142: -0.03927033063 | AZ142: 0.6057590861 | BA142: 0.973648893 | BB142: 0.4232145401
C143: 13.9 | D143: -0.2939472231 | E143: 0.3863270158 | F143: 0.8873870122 | G143: 0.9767947435 | H143: 0.6130746251 | I143: -0.03504627297 | J143: -0.6669094645 | K143: -0.9893982929 | L143: -0.8529125784 | M143: -0.3207670333 | N143: 0.3601799636 | O143: 0.8740421421 | P143: 0.9824426419 | Q143: 0.6350952737 | R143: -0.006868089976 | S143: -0.6456453976 | T143: -0.9849125853 | U143: -0.8672861166 | V143: -0.3473320395 | W143: 0.3337467993 | X143: 0.8600029688 | Y143: 0.9873101282 | Z143: 0.6566114287 | AA143: 0.02131554875 | AB143: -0.6238684565 | AC143: -0.9796445036 | AD143: -0.8809707184 | AE143: -0.3736211393 | AF143: 0.3070485202 | AG143: 0.8452806445 | AH143: 0.9913933358 | AI143: 0.6776059986 | AJ143: 0.04948225527 | AK143: -0.6015959399 | AL143: -0.9735982325 | AM143: -0.8939555132 | AN143: -0.3996134498 | AO143: 0.2801063344 | AP143: 0.8298868639 | AQ143: 0.9946890213 | AR143: 0.698062306 | AS143: 0.07760965513 | AT143: -0.5788455402 | AU143: -0.9667785749 | AV143: -0.9062301864 | AW143: -0.4252883237 | AX143: 0.2529416436 | AY143: 0.8138338552 | AZ143: 0.9971945666 | BA143: 0.7179641014 | BB143: 2.492393721
C144: 14 | D144: =COS((ω+D$3*δω)*t-(ω+D$3*δω)/(c_*(1-D$3*δc))*$C144) -> 0.4409403495 | E144: 0.915458612 | F144: 0.9594223848 | G144: 0.5521548187 | H144: -0.1147997863 | I144: -0.727762258 | J144: -0.9984467682 | K144: -0.7995461621 | L144: -0.2246065027 | M144: 0.4559691044 | N144: =COS((ω+N$3*δω)*t-(ω+N$3*δω)/(c_*(1-N$3*δc))*$C144) -> 0.9220953171 | O144: 0.9545456939 | P144: 0.5380583158 | Q144: -0.1314862957 | R144: -0.7391908478 | S144: -0.999242394 | T144: -0.7893346287 | U144: -0.2081904538 | V144: 0.4708689445 | W144: 0.9284713207 | X144: =COS((ω+X$3*δω)*t-(ω+X$3*δω)/(c_*(1-X$3*δc))*$C144) -> 0.949399127 | Y144: 0.5238096891 | Z144: -0.1481356303 | AA144: -0.7504104482 | AB144: -0.9997555067 | AC144: -0.7788999289 | AD144: -0.1917155438 | AE144: 0.4856356571 | AF144: 0.9345848203 | AG144: 0.9439841392 | AH144: =COS((ω+AH$3*δω)*t-(ω+AH$3*δω)/(c_*(1-AH$3*δc))*$C144) -> 0.5094129672 | AI144: -0.164743083 | AJ144: -0.7614178871 | AK144: -0.9999859614 | AL144: -0.7682450129 | AM144: -0.1751864306 | AN144: 0.5002650673 | AO144: 0.9404340872 | AP144: 0.9383022612 | AQ144: 0.4948722204 | AR144: =COS((ω+AR$3*δω)*t-(ω+AR$3*δω)/(c_*(1-AR$3*δc))*$C144) -> -0.1813039583 | AS144: -0.7722100524 | AT144: -0.9999336928 | AU144: -0.7573728931 | AV144: -0.1586077874 | AW144: 0.5147530389 | AX144: 0.9460174679 | AY144: 0.9323550997 | AZ144: 0.4801915597 | BA144: -0.197813574 | BB144: 2.693658576
C145: 14.1 | D145: 0.9361958406 | E145: 0.9407877208 | F145: 0.4968337512 | G145: -0.1839990723 | H145: -0.7771053892 | I145: -0.9997058104 | J145: -0.7456695979 | K145: -0.1361153487 | L145: 0.538335554 | M145: 0.956120502 | N145: 0.9180492844 | O145: 0.4422733782 | P145: -0.2443682567 | Q145: -0.8145007525 | R145: -0.9962981074 | S145: -0.7030835427 | T145: -0.0746549885 | U145: 0.5893673394 | V145: 0.9723929363 | W145: 0.8918040469 | X145: 0.3860235918 | Y145: -0.3038039934 | Z145: -0.8487848535 | AA145: -0.9890847054 | AB145: -0.657811821 | AC145: -0.0129094582 | AD145: 0.638147836 | AE145: 0.9849509855 | AF145: 0.8621522609 | AG145: 0.3282992571 | AH145: -0.3620792477 | AI145: -0.8798267324 | AJ145: -0.9780931583 | AK145: -0.6100273637 | AL145: 0.04888538416 | AM145: 0.6844907103 | AN145: 0.9937466798 | AO145: 0.8292071915 | AP145: 0.2693208719 | AQ145: -0.4189714172 | AR145: -0.9075078143 | AS145: -0.9633654522 | AT145: -0.5599126996 | AU145: 0.1104934922 | AV145: 0.7282189397 | AW145: 0.9987464212 | AX145: 0.7930946836 | AY145: 0.2093137242 | AZ145: -0.4742631831 | BA145: -0.9317223617 | BB145: 0.9735872557
C146: 14.2 | D146: 0.9226692296 | E146: 0.448375025 | F146: -0.2426081794 | G146: -0.8163446131 | H146: -0.9955610851 | I146: -0.6936465312 | J146: -0.05650908428 | K146: 0.6079378609 | L146: 0.9785828777 | M146: 0.8763020329 | N146: 0.3505252296 | O146: -0.3446520916 | P146: -0.873267243 | Q146: -0.9798530777 | R146: -0.6128991934 | S146: 0.05025431346 | T146: 0.6891211043 | U146: 0.9949520334 | V146: 0.8199462769 | W146: 0.2486799601 | X146: -0.4427674748 | Y146: -0.9202359057 | Z146: -0.9529761808 | AA146: -0.5251657028 | AB146: 0.1564448857 | AC146: 0.7624493768 | AD146: 0.9999801938 | AE146: 0.7542443346 | AF146: 0.1440001034 | AG146: -0.5358359576 | AH146: -0.9567152274 | AI146: -0.9152367517 | AJ146: -0.4314460926 | AK146: 0.2608522154 | AL146: 0.8270868434 | AM146: 0.9936100449 | AN146: 0.679945112 | AO146: 0.03767885644 | AP146: -0.6227966955 | AQ146: -0.9822893971 | AR146: -0.8670649644 | AS146: -0.332808629 | AT146: 0.362286212 | AU146: 0.8822967317 | AV146: 0.9759141973 | AW146: 0.5978955112 | AX146: -0.06907187423 | AY146: -0.7026584635 | AZ146: -0.9966669068 | BA146: -0.809009907 | BB146: -1.256056667
C147: 14.3 | D147: 0.4077116468 | E147: -0.2907909919 | F147: -0.846860272 | G147: -0.9881259434 | H147: -0.6453941706 | I147: 0.01346039107 | J147: 0.6657218712 | K147: 0.9919037799 | L147: 0.8322378091 | M147: 0.2649305095 | N147: -0.4321433349 | O147: -0.9175475323 | P147: -0.9535245454 | Q147: -0.5224523468 | R147: 0.1645240735 | S147: 0.7709143787 | T147: 0.9997004002 | U147: 0.7388196522 | V147: 0.1160550515 | W147: -0.5635548822 | X147: -0.9671280167 | Y147: -0.8969887755 | Z147: -0.3874923068 | AA147: 0.3118031316 | AB147: 0.8583731814 | AC147: 0.9845004438 | AD147: 0.6284060808 | AE147: -0.03549007516 | AF147: -0.6820027125 | AG147: -0.9944612023 | AH147: -0.8198191524 | AI147: -0.2436185998 | AJ147: 0.4519096362 | AK147: 0.9260864236 | AL147: 0.9466535623 | AM147: 0.5035369897 | AN147: -0.186218807 | AO147: -0.7847621149 | AP147: -0.9989183308 | AQ147: -0.7237908453 | AR147: -0.09414081991 | AS147: 0.5816206516 | AT147: 0.9724964659 | AU147: 0.8870303654 | AV147: 0.3670848014 | AW147: -0.3326638604 | AX147: -0.8694692666 | AY147: -0.9803968729 | AZ147: -0.6111128382 | BA147: 0.05750252535 | BB147: -2.325884793
C148: 14.4 | D148: -0.3288196492 | E148: -0.86992659 | F148: -0.9792119394 | G148: -0.6024277022 | H148: 0.07339474366 | I148: 0.7127848797 | J148: 0.9983567688 | K148: 0.7883557973 | L148: 0.1870240412 | M148: -0.5071443059 | N148: -0.9495720306 | O148: -0.9206430798 | P148: -0.4347174531 | Q148: 0.2669969362 | R148: 0.8361771057 | S148: 0.990288541 | T148: 0.6528320917 | U148: -0.008682727691 | V148: -0.6658875405 | W148: -0.9925534081 | X148: -0.8265271369 | Y148: -0.2502222655 | Z148: 0.4502900714 | AA148: 0.9272835764 | AB148: 0.9439841392 | AC148: 0.4921017917 | AD148: -0.2040542465 | AE148: -0.7989200949 | AF148: -0.9972111624 | AG148: -0.7004980352 | AH148: -0.05606570986 | AI148: 0.6161969914 | AJ148: 0.9825865668 | AK148: 0.8612314291 | AL148: 0.3123708782 | AM148: -0.3915469973 | AN148: -0.9011054299 | AO148: -0.9633654522 | AP148: -0.5474219025 | AQ148: 0.140255607 | AR148: 0.7583118403 | AS148: 0.999950765 | AT148: 0.7452255877 | AU148: 0.1205789676 | AV148: -0.5639216703 | AW148: -0.9684980527 | AX148: -0.8923230991 | AY148: -0.3732091835 | AZ148: 0.3311614944 | BA148: 0.871147401 | BB148: -1.635588853
C149: 14.5 | D149: -0.8866516336 | E149: -0.9703172464 | F149: -0.5659121626 | G149: 0.1231473932 | H149: 0.7502636679 | I149: 0.9999964503 | J149: 0.7467298621 | K149: 0.11785729 | L149: -0.5702976352 | M149: -0.9715921906 | N149: -0.8841747509 | O149: -0.3520163893 | P149: 0.357206623 | Q149: 0.8867542911 | R149: 0.9702635255 | S149: 0.565729085 | T149: -0.1233677394 | U149: -0.7504104482 | V149: -0.999995834 | W149: -0.7465821593 | X149: -0.1176367954 | Y149: 0.5704800127 | Z149: 0.9716447148 | AA149: 0.8840710021 | AB149: 0.3518085533 | AC149: -0.3574140045 | AD149: -0.8868569049 | AE149: -0.9702097568 | AF149: -0.5655459794 | AG149: 0.1235880794 | AH149: 0.7505571914 | AI149: 0.9999951685 | AJ149: 0.7464344197 | AK149: 0.1174162949 | AL149: -0.570662362 | AM149: -0.9716971911 | AN149: -0.8839672097 | AO149: -0.3516006999 | AP149: 0.3576213684 | AQ149: 0.8869594749 | AR149: 0.9701559402 | AS149: 0.565362846 | AT149: -0.1238084133 | AU149: -0.7507038977 | AV149: -0.9999944536 | AW149: -0.7462866433 | AX149: -0.1171957887 | AY149: 0.5708446831 | AZ149: 0.9717496194 | BA149: 0.8838633737 | BB149: 0.005602640954
C150: 14.6 | D150: -0.9626266577 | E150: -0.5367151741 | F150: 0.1627338395 | G150: 0.7792453572 | H150: 0.9986135473 | I150: 0.7090371492 | J150: 0.05809912061 | K150: -0.6224491943 | L150: -0.9857655333 | M150: -0.84668529 | N150: -0.2760908765 | O150: 0.4352135821 | P150: 0.9247109184 | Q150: 0.9429282299 | R150: 0.4805810418 | S150: -0.2266948486 | T150: -0.8184354385 | U150: -0.9930594289 | V150: -0.6615694943 | W150: 0.007090123799 | X150: 0.6721362518 | Y150: 0.9946273357 | Z150: 0.8102054091 | AA150: 0.2128613272 | AB150: -0.4929677845 | AC150: -0.9475552755 | AD150: -0.9192200878 | AE150: -0.4224032836 | AF150: 0.289691859 | AG150: 0.8541451994 | AH150: 0.983282418 | AI150: 0.6112885769 | AJ150: -0.07224921811 | AK150: -0.7189651127 | AL150: -0.9992595782 | AM150: -0.7702802053 | AN150: -0.148726605 | AO150: 0.5486256873 | AP150: 0.9663702423 | AQ150: 0.8916030482 | AR150: 0.3624292948 | AS150: -0.3514569819 | AT150: -0.8862227877 | AU150: -0.9693240904 | AV150: -0.5584082118 | AW150: 0.1371010794 | AX150: 0.7627366416 | AY150: 0.9996425627 | AZ150: 0.7270794569 | BA150: 0.08395943674 | BB150: 1.218907578
C151: 14.7 | D151: -0.5154555694 | E151: 0.1922562751 | F151: 0.8006988041 | G151: 0.9957097192 | H151: 0.6765973782 | I151: 0.008131766405 | J151: -0.6645325894 | K151: -0.9940731893 | L151: -0.8103355365 | M151: -0.2081904538 | N151: 0.5014513741 | O151: 0.9521745551 | P151: 0.9112533611 | Q151: 0.3998169797 | R151: -0.3180602986 | S151: -0.8717108015 | T151: -0.9752634627 | U151: -0.5752500571 | V151: 0.1217870962 | W151: 0.7559408837 | X151: 0.9997732944 | Y151: 0.7273842687 | Z151: 0.07941874573 | AA151: -0.6095537327 | AB151: -0.9837901553 | AC151: -0.8500578515 | AD151: -0.2774079575 | AE151: 0.4384783433 | AF151: 0.927961397 | AG151: 0.9383022612 | AH151: 0.4641615497 | AI151: -0.2496436369 | AJ151: -0.8345482043 | AK151: -0.9885434093 | AL151: -0.6321156 | AM151: 0.05069782584 | AN151: 0.7073340126 | AO151: 0.9987464212 | AP151: 0.7744676075 | AQ151: 0.1503013564 | AR151: -0.5514712707 | AS151: -0.9684980527 | AT151: -0.8854520096 | AU151: -0.34521301 | AV151: 0.373272755 | AW151: 0.8990234281 | AX151: 0.960573699 | AY151: 0.5261427936 | AZ151: -0.1799558891 | BA151: -0.7931364192 | BB151: 1.249598795
C152: 14.8 | D152: 0.2118434117 | E152: 0.815423717 | F152: 0.9924861424 | G152: 0.6504159052 | H152: -0.03186275015 | I152: -0.6974751836 | J152: -0.998264237 | K152: -0.7768983211 | L152: -0.1491657299 | M152: 0.556589918 | N152: 0.9712140389 | O152: 0.8778321451 | P152: 0.3252888391 | Q152: -0.3974009848 | R152: -0.912225104 | S152: -0.9498981308 | T152: -0.4907147032 | U152: 0.2251433716 | V152: 0.8232373054 | W152: 0.9907263613 | X152: 0.6400032308 | Y152: -0.0454818344 | Z152: -0.7071770402 | AA152: -0.9989741849 | AB152: -0.7682450129 | AC152: -0.1356753899 | AD152: 0.5678609936 | AE152: 0.9743703689 | AF152: 0.8712227704 | AG152: 0.3123708782 | AH152: -0.4098706259 | AI152: -0.917724019 | AJ152: -0.9455500413 | AK152: -0.4787939335 | AL152: 0.2384015094 | AM152: 0.8308979715 | AN152: 0.9887825456 | AO152: 0.6294716712 | AP152: -0.05909247007 | AQ152: -0.7167475336 | AR152: -0.9994985661 | AS152: -0.7594489976 | AT152: -0.1221598472 | AU152: 0.579026585 | AV152: 0.9773457025 | AW152: 0.8644515597 | AX152: 0.2993948922 | AY152: -0.4222641306 | AZ152: -0.92305246 | BA152: -0.941026309 | BB152: 0.4591142941
C153: 14.9 | D153: 0.8240146261 | E153: 0.9898406731 | F153: 0.6312251821 | G153: -0.06182868308 | H153: -0.722124216 | I153: -0.9998208673 | J153: -0.7477882322 | K153: -0.09955929878 | L153: 0.60141856 | M153: 0.9837503142 | N153: 0.8448673499 | O153: 0.2583532218 | P153: -0.4650426941 | Q153: -0.9420477389 | R153: -0.9199330985 | S153: -0.4104156446 | T153: 0.3165499479 | U153: 0.8757997191 | V153: 0.9710296088 | W153: 0.5517845176 | X153: -0.1598093617 | Y153: -0.7867323745 | Z153: -0.9968255401 | AA153: -0.6787764161 | AB153: -0.001095123758 | AC153: 0.6771663917 | AD153: 0.9966487686 | AE153: 0.7880825138 | AF153: 0.1619710753 | AG153: -0.5499565578 | AH153: -0.9705039002 | AI153: -0.8768547948 | AJ153: -0.3186268033 | AK153: 0.4084173778 | AL153: 0.9190721504 | AM153: 0.9427802605 | AN153: 0.4669805779 | AO153: -0.2562367137 | AP153: -0.8436935946 | AQ153: -0.9841411957 | AR153: -0.6031669798 | AS153: 0.09737969573 | AT153: 0.7463322524 | AU153: 0.999859924 | AV153: 0.7236376161 | AW153: 0.06401459055 | AX153: -0.6295249139 | AY153: -0.9895268875 | AZ153: -0.8252535742 | BA153: -0.2237409501 | BB153: -0.2220492398
C154: 15 | D154: =COS((ω+D$3*δω)*t-(ω+D$3*δω)/(c_*(1-D$3*δc))*$C154) -> 0.988369395 | E154: 0.6195206126 | F154: -0.08177672254 | G154: -0.7391908478 | H154: -0.9999387081 | I154: -0.7240971967 | J154: -0.05968900956 | K154: 0.6367496289 | L154: 0.991494241 | M154: 0.8141809705 | N154: =COS((ω+N$3*δω)*t-(ω+N$3*δω)/(c_*(1-N$3*δc))*$C154) -> 0.1999600657 | O154: -0.5215638619 | P154: -0.9632050101 | Q154: -0.8879689067 | R154: -0.3362289198 | S154: 0.3959389907 | T154: 0.9156372242 | U154: 0.9439841392 | V154: 0.4657681498 | W154: -0.2623893978 | X154: =COS((ω+X$3*δω)*t-(ω+X$3*δω)/(c_*(1-X$3*δc))*$C154) -> -0.8497429532 | Y154: -0.9811055226 | Z154: -0.5859850271 | AA154: 0.1235880794 | AB154: 0.7668410711 | AC154: 0.9985900724 | AD154: 0.6944734101 | AE154: 0.01768685529 | AF154: -0.6685908598 | AG154: -0.9960878351 | AH154: =COS((ω+AH$3*δω)*t-(ω+AH$3*δω)/(c_*(1-AH$3*δc))*$C154) -> -0.789061903 | AI154: -0.1586077874 | AJ154: 0.5569587978 | AK154: 0.973648893 | AL154: 0.8678573166 | AM154: 0.2963541836 | AN154: -0.4341792018 | AO154: -0.9317223617 | AP154: -0.9292825601 | AQ154: -0.4281690488 | AR154: =COS((ω+AR$3*δω)*t-(ω+AR$3*δω)/(c_*(1-AR$3*δc))*$C154) -> 0.3027095061 | AS154: 0.871147401 | AT154: 0.9721082069 | AU154: 0.5514141076 | AV154: -0.1651810775 | AW154: -0.7931364192 | AX154: -0.9954771013 | AY154: -0.6636226093 | AZ154: 0.02434654859 | BA154: 0.6992508065 | BB154: -0.2574221752
C155: 15.1 | D155: 0.615587983 | E155: -0.09173897437 | F155: -0.7492097519 | G155: -0.9995173099 | H155: -0.7066302756 | I155: -0.02972013265 | J155: 0.6633416219 | K155: 0.9959057859 | L155: 0.7872380652 | M155: 0.1507403753 | N155: -0.5676782137 | O155: -0.9775881528 | P155: -0.8562210516 | Q155: -0.2695347003 | R155: 0.4636321474 | S155: 0.9448348991 | T155: 0.9125605927 | U155: 0.3843489231 | V155: -0.352739826 | W155: -0.898129678 | X155: -0.9554247471 | Y155: -0.4934876319 | Z155: 0.2366387486 | AA155: 0.8381621652 | AB155: 0.9841805583 | AC155: 0.5953392228 | AD155: -0.1170433293 | AE155: -0.7658178749 | AF155: -0.9984034018 | AG155: -0.6883996974 | AH155: -0.004280418085 | AI155: 0.682165084 | AJ155: 0.997883255 | AK155: 0.771294872 | AL155: 0.1255409584 | AM155: -0.588439057 | AN155: -0.9826277986 | AO155: -0.8428006696 | AP155: -0.2449476898 | AQ155: 0.4860238054 | AR155: 0.9528623034 | AS155: 0.9018611949 | AT155: 0.3607373848 | AU155: -0.376431651 | AV155: -0.9090263036 | AW155: -0.9476043268 | AX155: -0.4712002272 | AY155: 0.2612808935 | AZ155: 0.8517671063 | BA155: 0.9793545964 | BB155: 0.05863965183
C156: 15.2 | D156: -0.09173897437 | E156: -0.752512037 | F156: -0.9991566715 | G156: -0.6959374347 | H156: -0.00972435635 | I156: 0.6818403074 | J156: 0.9981691731 | K156: 0.7651776156 | L156: 0.1110874076 | M156: -0.6041373088 | N156: -0.9868883613 | O156: -0.8265271369 | P156: -0.2113049041 | Q156: 0.5202043295 | R156: 0.965430566 | S156: 0.8793533507 | T156: 0.3093433835 | U156: -0.4309069025 | V156: -0.934017064 | W156: -0.9231115028 | X156: -0.4041918542 | Y156: 0.3371658804 | Z156: 0.8929717976 | AA156: 0.9573503506 | AB156: 0.4948722204 | AC156: -0.2399479385 | AD156: -0.8427180334 | AE156: -0.9817168166 | AF156: -0.5804493686 | AG156: 0.140255607 | AH156: 0.783773998 | AI156: 0.995959629 | AJ156: 0.6600408107 | AK156: -0.03911693268 | AL156: -0.7167475336 | AM156: -0.9999319132 | AN156: -0.7328257844 | AO156: -0.06242512304 | AP156: 0.6423298301 | AQ156: 0.9935927063 | AR156: 0.7980537169 | AS156: 0.1633234388 | AT156: -0.5612882972 | AU156: -0.9770073793 | AV156: -0.8550519653 | AW156: -0.2625375317 | AX156: 0.474458651 | AY156: 0.9503469634 | AZ156: 0.9032327526 | BA156: 0.3590442869 | BB156: 0.05545964685
C157: 15.3 | D157: -0.7492097519 | E157: -0.9991566715 | F157: -0.6923382384 | G157: 0.0002754903793 | H157: 0.6927357062 | I157: 0.9991791432 | J157: 0.7488447055 | K157: 0.0812275748 | L157: -0.6316524267 | M157: -0.9925534081 | N157: -0.8003686082 | O157: -0.1621901786 | P157: 0.5663663414 | Q157: 0.9793235516 | R157: 0.8465671234 | S157: 0.2420736227 | T157: -0.4973118421 | U157: -0.9595776008 | V157: -0.8871328615 | W157: -0.3203463892 | X157: 0.4249483946 | Y157: 0.9334469386 | Z157: 0.9217959116 | AA157: 0.396487677 | AB157: -0.3497574814 | AC157: -0.9011054299 | AD157: -0.9503256372 | AE157: -0.4699908672 | AF157: 0.2722393978 | AG157: 0.8627682643 | AH157: 0.972532211 | AI157: 0.5403668939 | AJ157: -0.1929099235 | AK157: -0.8186905246 | AL157: -0.9882678778 | AM157: -0.6071474984 | AN157: 0.1122968905 | AO157: 0.7691654895 | AP157: 0.9974279377 | AQ157: 0.6698883446 | AR157: -0.03093667115 | AS157: -0.7145226822 | AT157: -0.9999514427 | AU157: -0.7281719759 | AV157: -0.05062939051 | AW157: 0.6551256777 | AX157: 0.9958216021 | AY157: 0.7816105921 | AZ157: 0.131858581 | BA157: -0.5913696841 | BB157: -0.4912410001
C158: 15.4 | D158: -0.9995173099 | E158: -0.6959374347 | F158: 0.0002754903793 | G158: 0.6963329897 | H158: 0.9995342754 | I158: 0.7388196522 | J158: 0.06127874711 | K158: -0.6508343195 | L158: -0.9957605514 | M158: -0.7788999289 | N158: -0.1226005877 | O158: 0.6028673889 | P158: 0.9882104494 | Q158: 0.816026262 | R158: 0.1834574709 | S158: -0.5526141104 | T158: -0.976912603 | U158: -0.8500578515 | V158: -0.2436185998 | W158: 0.5002650673 | X158: 0.9619098587 | Y158: 0.8808656342 | Z158: 0.3028558159 | AA158: -0.4460187911 | AB158: -0.9432591138 | AC158: -0.9083327729 | AD158: -0.3609444647 | AE158: 0.3900810082 | AF158: 0.9210311003 | AG158: 0.9323550997 | AH158: 0.4176642476 | AI158: -0.3326638604 | AJ158: -0.8953101172 | AK158: -0.952841511 | AL158: -0.4728000573 | AM158: 0.2739850996 | AN158: 0.8661937099 | AO158: 0.969714313 | AP158: 0.5261427936 | AQ158: -0.2142672624 | AR158: -0.8337923013 | AS158: -0.9829095163 | AT158: -0.5774901567 | AU158: 0.1537368261 | AV158: 0.7982287723 | AW158: 0.9923770787 | AX158: 0.6266474138 | AY158: -0.09262334972 | AZ158: -0.7596379959 | BA158: -0.9980810948 | BB158: -1.036869097
C159: 15.5 | D159: -0.7066302756 | E159: -0.00972435635 | F159: 0.6927357062 | G159: 0.9995342754 | H159: 0.7354409151 | I159: 0.05129464263 | J159: -0.6621489718 | K159: -0.9974009489 | L159: -0.7629794628 | M159: -0.0927762046 | N159: 0.6304169187 | O159: 0.9935424185 | P159: 0.7891982853 | Q159: 0.1340972916 | R159: -0.5975944338 | S159: -0.9879653583 | T159: -0.814052032 | U159: -0.1751864306 | V159: 0.5637382902 | W159: 0.980679415 | X159: 0.8374977133 | Y159: 0.2159725497 | Z159: -0.5289070487 | AA159: -0.9716971911 | AB159: -0.8594947753 | AC159: -0.2563851013 | AD159: 0.493160957 | AE159: 0.961034223 | AF159: 0.8800051697 | AG159: 0.2963541836 | AH159: -0.4565618451 | AI159: -0.9487089546 | AJ159: -0.8989934196 | AK159: -0.3358106623 | AL159: 0.4191730183 | AM159: 0.9347427048 | AN159: 0.9164266811 | AO159: 0.3746862895 | AP159: -0.3810591483 | AQ159: -0.919159631 | AR159: -0.9322747998 | AS159: -0.412913822 | AT159: 0.3422861604 | AU159: 0.9019866874 | AV159: 0.9465103633 | AW159: 0.4504271377 | AX159: -0.3029211204 | AY159: -0.8832535778 | AZ159: -0.9591087484 | BA159: -0.4871613498 | BB159: -0.7999276727
C160: 15.6 | D160: -0.02972013265 | E160: 0.6818403074 | F160: 0.9991791432 | G160: 0.7388196522 | H160: 0.05129464263 | I160: -0.6658875405 | J160: -0.9980715773 | K160: -0.7531976519 | L160: -0.07284523779 | M160: 0.6496243205 | N160: 0.9964986859 | O160: 0.7672244923 | P160: 0.09436187072 | Q160: -0.6330582296 | R160: -0.9944612023 | S160: -0.7808936338 | T160: -0.1158345098 | U160: 0.6161969914 | V160: 0.9919600764 | W160: 0.7941987035 | X160: 0.137253144 | Y160: -0.5990484671 | Z160: -0.9889964744 | AA160: -0.8071334983 | AB160: -0.1586077874 | AC160: 0.5816206516 | AD160: 0.9855717779 | AE160: 0.8196919876 | AF160: 0.179888484 | AG160: -0.5639216703 | AH160: -0.9816875837 | AI160: -0.8318683163 | AJ160: -0.2010853121 | AK160: 0.5459597749 | AL160: 0.9773457025 | AM160: 0.8436568076 | AN160: 0.2221883894 | AO160: -0.5277433396 | AP160: -0.9725481588 | AQ160: -0.8550519653 | AR160: -0.2431878769 | AS160: 0.5092808574 | AT160: 0.9672971892 | AU160: 0.8660484768 | AV160: 0.2640739843 | AW160: -0.4905809359 | AX160: -0.9615952419 | AY160: -0.8766412152 | AZ160: -0.2848369739 | BA160: 0.4716522936 | BB160: 0.3642238742
C161: 15.7 | D161: 0.6633416219 | E161: 0.9981691731 | F161: 0.7488447055 | G161: 0.06127874711 | H161: -0.6621489718 | I161: -0.9980715773 | J161: -0.7498992793 | K161: -0.06286832922 | L161: 0.6609546422 | M161: 0.9979714498 | N161: 0.750951951 | O161: 0.06445775186 | P161: -0.659758636 | Q161: -0.997868791 | R161: -0.7520027179 | S161: -0.06604701101 | T161: 0.6585609563 | U161: 0.997763601 | V161: 0.7530515772 | W161: 0.06763610262 | X161: -0.6573616061 | Y161: -0.9976558801 | Z161: -0.7540985264 | AA161: -0.06922502267 | AB161: 0.6561605885 | AC161: 0.9975456286 | AD161: 0.7551435628 | AE161: 0.07081376713 | AF161: -0.6549579065 | AG161: -0.9974328469 | AH161: -0.7561866838 | AI161: -0.07240233197 | AJ161: 0.6537535632 | AK161: 0.997317535 | AL161: 0.7572278866 | AM161: 0.07399071315 | AN161: -0.6525475616 | AO161: -0.9971996935 | AP161: -0.7582671687 | AQ161: -0.07557890665 | AR161: 0.6513399048 | AS161: 0.9970793225 | AT161: 0.7593045275 | AU161: 0.07716690845 | AV161: -0.6501305959 | AW161: -0.9969564223 | AX161: -0.7603399602 | AY161: -0.07875471451 | AZ161: 0.6489196378 | BA161: 0.9968309934 | BB161: 1.637815678
C162: 15.8 | D162: 0.9959057859 | E162: 0.7651776156 | F162: 0.0812275748 | G162: -0.6508343195 | H162: -0.9974009489 | I162: -0.7531976519 | J162: -0.06286832922 | K162: 0.6646984939 | L162: 0.9985581717 | M162: 0.7409624892 | N162: 0.04448778254 | O162: -0.6783374545 | P162: -0.9993770621 | Q162: -0.728476273 | R162: -0.02609216247 | S162: 0.6917465803 | T162: 0.9998573428 | U162: 0.7157432338 | V162: 0.007687701839 | W162: -0.704921328 | X162: -0.999998851 | Y162: -0.7027676859 | Z162: 0.01071936355 | AA162: 0.7178572336 | AB162: 0.9998015388 | AC162: 0.6895540257 | AD162: -0.02912279699 | AE162: -0.7305499142 | AF162: -0.9992654729 | AG162: -0.6761067302 | AH162: 0.04751636303 | AI162: 0.7429950693 | AJ162: 0.9983908351 | AK162: 0.6624303557 | AL162: -0.06589382953 | AM162: -0.7551884822 | AN162: -0.9971779217 | AO162: -0.6485295359 | AP162: 0.08424896983 | AQ162: 0.7671260215 | AR162: 0.9956271436 | AS162: 0.6344089809 | AT162: -0.1025755648 | AU162: -0.7788036425 | AV162: -0.9937390263 | AW162: -0.6200734748 | AX162: 0.1208674051 | AY162: 0.7902173886 | AZ162: 0.9915142095 | BA162: 0.605527875 | BB162: 1.863557092
C163: 15.9 | D163: 0.7872380652 | E163: 0.1110874076 | F163: -0.6316524267 | G163: -0.9957605514 | H163: -0.7629794628 | I163: -0.07284523779 | J163: 0.6609546422 | K163: 0.9985581717 | L163: 0.7375955091 | M163: 0.03449562539 | N163: -0.6892819872 | O163: -0.9998829757 | P163: -0.7111236442 | Q163: 0.0039048661 | R163: 0.7165926807 | S163: 0.9997330094 | T163: 0.6836029125 | U163: -0.04229959813 | V163: -0.7428464408 | W163: -0.9981084939 | X163: -0.6550739054 | Y163: 0.08063194067 | Z163: 0.7680045449 | AA163: 0.9950118254 | AB163: 0.6255787018 | AC163: -0.1188453557 | AD163: -0.792029886 | AE163: -0.9904475712 | AF163: -0.5951608053 | AG163: 0.1568834806 | AH163: 0.8148870283 | AI163: 0.9844224633 | AJ163: 0.5638650805 | AK163: -0.1946902113 | AL163: -0.8365422587 | AM163: -0.9769453885 | AN163: -0.5317376869 | AO163: 0.2322097851 | AP163: 0.856963637 | AQ163: 0.968027375 | AR163: 0.4988260106 | AS163: -0.2693868627 | AT163: -0.8761210429 | AU163: -0.9576815764 | AV163: -0.4651785944 | AW163: 0.30616661 | AX163: 0.8939862202 | AY163: 0.9459232521 | AZ163: 0.4308450663 | BA163: -0.3424947791 | BB163: 0.6068791685
C164: 16 | D164: =COS((ω+D$3*δω)*t-(ω+D$3*δω)/(c_*(1-D$3*δc))*$C164) -> 0.1507403753 | E164: -0.6041373088 | F164: -0.9925534081 | G164: -0.7788999289 | H164: -0.0927762046 | I164: 0.6496243205 | J164: 0.9979714498 | K164: 0.7409624892 | L164: 0.03449562539 | M164: -0.6928958219 | N164: =COS((ω+N$3*δω)*t-(ω+N$3*δω)/(c_*(1-N$3*δc))*$C164) -> -0.9999859614 | O164: -0.7004980352 | P164: 0.02390259938 | Q164: 0.7338042379 | R164: 0.9985900724 | S164: 0.6576445688 | T164: -0.08221930556 | U164: -0.7722100524 | V164: -0.9937885435 | W164: -0.6125482395 | X164: =COS((ω+X$3*δω)*t-(ω+X$3*δω)/(c_*(1-X$3*δc))*$C164) -> 0.140255607 | Y164: 0.8079822844 | Z164: 0.9855977501 | AA164: 0.565362846 | AB164: -0.197813574 | AC164: -0.8409989344 | AD164: -0.9740456264 | AE164: -0.5162493117 | AF164: 0.254696908 | AG164: 0.871147401 | AH164: =COS((ω+AH$3*δω)*t-(ω+AH$3*δω)/(c_*(1-AH$3*δc))*$C164) -> 0.9591715703 | AI164: 0.4653751358 | AJ164: -0.3107116113 | AK164: -0.8983248643 | AL164: -0.941026309 | AM164: -0.412913822 | AN164: 0.3656666487 | AO164: 0.9224386371 | AP164: 0.9196717261 | AQ164: 0.3590442869 | AR164: =COS((ω+AR$3*δω)*t-(ω+AR$3*δω)/(c_*(1-AR$3*δc))*$C164) -> -0.4193745988 | AS164: -0.9434064804 | AT164: -0.8951806502 | AU164: -0.3039502498 | AV164: 0.4716522936 | AW164: 0.9611568846 | AX164: 0.8676366069 | AY164: 0.247819606 | AZ164: -0.5223214425 | BA164: -0.9756293128 | BB164: -1.322047666
C165: 16.1 | D165: -0.5676782137 | E165: -0.9868883613 | F165: -0.8003686082 | G165: -0.1226005877 | H165: 0.6304169187 | I165: 0.9964986859 | J165: 0.750951951 | K165: 0.04448778254 | L165: -0.6892819872 | M165: -0.9999859614 | N165: -0.6969210222 | O165: 0.03389838056 | P165: 0.743911719 | Q165: 0.9973287601 | R165: 0.6386078182 | S165: -0.1120762529 | T165: -0.7939704384 | U165: -0.9885434093 | V165: -0.5763706482 | W165: 0.1895654657 | X165: 0.8391505563 | Y165: 0.9736838912 | Z165: 0.5105919324 | AA165: -0.2658898815 | AB165: -0.8791744607 | AC165: -0.952841511 | AD165: -0.4416758523 | AE165: 0.3405805201 | AF165: 0.9137962221 | AG165: 0.926144336 | AH165: 0.370045867 | AI165: -0.4131784403 | AJ165: -0.942803105 | AK165: -0.8937564087 | AL165: -0.2961421115 | AM165: 0.4832375594 | AN165: 0.9660168748 | AO165: 0.8558767388 | AP165: 0.2204186922 | AQ165: -0.5503273949 | AR165: -0.9832948929 | AS165: -0.8127380803 | AT165: -0.1433408963 | AU165: 0.614035709 | AV165: 0.9945309935 | AW165: 0.7646055013 | AX165: 0.06538233317 | AY165: -0.6739710419 | AZ165: -0.9996561357 | BA165: -0.7117747556 | BB165: -2.43148525
C166: 16.2 | D166: -0.9775881528 | E166: -0.8265271369 | F166: -0.1621901786 | G166: 0.6028673889 | H166: 0.9935424185 | I166: 0.7672244923 | J166: 0.06445775186 | K166: -0.6783374545 | L166: -0.9998829757 | M166: -0.7004980352 | N166: 0.03389838056 | O166: 0.7472437958 | P166: 0.9965484719 | Q166: 0.6269934237 | R166: -0.1319265057 | S166: -0.8089196615 | T166: -0.9835711723 | U166: -0.5474219025 | V166: 0.2286780845 | W166: 0.8627682643 | X166: 0.961076648 | Y166: 0.4625534212 | Z166: -0.3232169299 | AA166: -0.9082685545 | AB166: -0.9292825601 | AC166: -0.3732091835 | AD166: 0.4146282657 | AE166: 0.9449802625 | AF166: 0.8884965546 | AG166: 0.2802537016 | AH166: -0.5020275784 | AI166: -0.9725481588 | AJ166: -0.8391132846 | AK166: -0.1845864307 | AL166: 0.5845691751 | AM166: 0.9907054911 | AN166: 0.7816105921 | AO166: 0.08713306585 | AP166: -0.6614543674 | AQ166: -0.9992765655 | AR166: -0.7165448845 | AS166: 0.01116341542 | AT166: 0.7319391994 | AU166: 0.9981784466 | AV166: 0.64454575 | AW166: -0.1093518773 | AX166: -0.7953416462 | AY166: -0.9874217601 | AZ166: -0.5663098663 | BA166: 0.2064822293 | BB166: -1.772278133
C167: 16.3 | D167: -0.8562210516 | E167: -0.2113049041 | F167: 0.5663663414 | G167: 0.9882104494 | H167: 0.7891982853 | I167: 0.09436187072 | J167: -0.659758636 | K167: -0.9993770621 | L167: -0.7111236442 | M167: 0.02390259938 | N167: 0.743911719 | O167: 0.9965484719 | P167: 0.6230904797 | Q167: -0.1418323392 | R167: -0.817647117 | S167: -0.9797642899 | T167: -0.526331602 | U167: 0.2577758694 | V167: 0.8799322448 | W167: 0.9492595608 | X167: 0.4222020151 | Y167: -0.3701095252 | Z167: -0.929894866 | AA167: -0.9054614704 | AB167: -0.3121599421 | AC167: 0.4772601944 | AD167: 0.9668353077 | AE167: 0.8489833641 | AF167: 0.1977464043 | AG167: -0.5777273469 | AH167: -0.9902362588 | AI167: -0.780616157 | AJ167: -0.08056364027 | AK167: 0.670104048 | AL167: 0.9997700139 | AM167: 0.7013172586 | AN167: -0.03774733103 | AO167: -0.7530966612 | AP167: -0.9953030632 | AQ167: -0.6121971647 | AR167: 0.1555296915 | AS167: 0.825542964 | AT167: 0.9768979614 | AU167: 0.5145039067 | AV167: -0.2711340255 | AW167: -0.8864284237 | AX167: -0.9448124523 | AY167: -0.4096055738 | AZ167: 0.3829414186 | BA167: 0.9349004049 | BB167: 0.2266382967
C168: 16.4 | D168: -0.2695347003 | E168: 0.5202043295 | F168: 0.9793235516 | G168: 0.816026262 | H168: 0.1340972916 | I168: -0.6330582296 | J168: -0.997868791 | K168: -0.728476273 | L168: 0.0039048661 | M168: 0.7338042379 | N168: 0.9973287601 | O168: 0.6269934237 | P168: -0.1418323392 | Q168: -0.820515483 | R168: -0.9777137877 | S168: -0.5135186782 | T168: 0.2770471225 | U168: 0.8915335229 | V168: 0.9393990302 | W168: 0.3902223581 | X168: -0.4069630937 | Y168: -0.9455000643 | Z168: -0.883117297 | AA168: -0.2594626328 | AB168: 0.5290954759 | AC168: 0.9813829414 | AD168: 0.8099450343 | AE168: 0.1237404169 | AF168: -0.6411083611 | AG168: -0.9984958571 | AH168: -0.7212817372 | AI168: 0.0143484621 | AJ168: 0.7408593874 | AK168: 0.9965115094 | AL168: 0.6188231825 | AM168: -0.152162912 | AN168: -0.8264407136 | AO168: -0.9754678507 | AP168: -0.504528996 | AQ168: 0.2870670892 | AR168: 0.8962155083 | AS168: 0.935767363 | AT168: 0.3805851719 | AU168: -0.4164808121 | AV168: -0.9488492568 | AW168: -0.8781693589 | AX168: -0.2493622637 | AY168: 0.5379289097 | AZ168: 0.9833352841 | BA168: 0.8037754597 | BB168: 2.059356463
C169: 16.5 | D169: 0.4636321474 | E169: 0.965430566 | F169: 0.8465671234 | G169: 0.1834574709 | H169: -0.5975944338 | I169: -0.9944612023 | J169: -0.7520027179 | K169: -0.02609216247 | L169: 0.7165926807 | M169: 0.9985900724 | N169: 0.6386078182 | O169: -0.1319265057 | P169: -0.817647117 | Q169: -0.9777137877 | R169: -0.509221885 | S169: 0.2866416735 | T169: 0.8982272933 | U169: 0.9323550997 | V169: 0.3670848014 | W169: -0.4341792018 | X169: -0.9563154448 | Y169: -0.863649811 | Z169: -0.2157557454 | AA169: 0.5708446831 | AB169: 0.9904570175 | AC169: 0.7733183336 | AD169: 0.05902406635 | AE169: -0.6932159509 | AF169: -0.9997970907 | AG169: -0.6636226093 | AH169: 0.09918560254 | AI169: 0.7982287723 | AJ169: 0.9841017846 | AK169: 0.5373094694 | AL169: -0.2549116183 | AM169: -0.8832535778 | AN169: -0.943764117 | AO169: -0.3975418532 | AP169: 0.4042545298 | AQ169: 0.9461613074 | AR169: 0.8797941616 | AS169: 0.247819606 | AT169: -0.5434747219 | AU169: -0.9853767223 | AV169: -0.7937937555 | AW169: -0.09189184183 | AX169: 0.6690860568 | AY169: 0.9999178507 | AZ169: 0.6879163885 | BA169: -0.06633693634 | BB169: 2.351065567
C170: 16.6 | D170: 0.9448348991 | E170: 0.8793533507 | F170: 0.2420736227 | G170: -0.5526141104 | H170: -0.9879653583 | I170: -0.7808936338 | J170: -0.06604701101 | K170: 0.6917465803 | L170: 0.9997330094 | M170: 0.6576445688 | N170: -0.1120762529 | O170: -0.8089196615 | P170: -0.9797642899 | Q170: -0.5135186782 | R170: 0.2866416735 | S170: 0.9004137126 | T170: 0.9286931039 | U170: 0.3530912161 | V170: -0.4521076982 | W170: -0.9633242691 | X170: -0.8481406983 | Y170: -0.1814549278 | Z170: 0.6032216337 | AA170: 0.9956542449 | AB170: 0.7406641969 | AC170: 0.004058380785 | AD170: -0.7351863912 | AE170: -0.9963773299 | AF170: -0.6096754245 | AG170: 0.1734669989 | AH170: 0.84381277 | AI170: 0.9654705701 | AJ170: 0.4593325996 | AK170: -0.3454856955 | AL170: -0.9256524423 | AM170: -0.9039150956 | AN170: -0.2944083321 | AO170: 0.5065370018 | AP170: 0.9781074203 | AQ170: 0.8136649756 | AR170: 0.1201381174 | AS170: -0.651508369 | AT170: -0.9995125289 | AU170: -0.6975851862 | AV170: 0.05794586334 | AW170: 0.7757977034 | AX170: 0.9891882661 | AY170: 0.5593606625 | AZ170: -0.2341903616 | BA170: -0.875459459 | BB170: 0.954863937
C171: 16.7 | D171: 0.9125605927 | E171: 0.3093433835 | F171: -0.4973118421 | G171: -0.976912603 | H171: -0.814052032 | I171: -0.1158345098 | J171: 0.6585609563 | K171: 0.9998573428 | L171: 0.6836029125 | M171: -0.08221930556 | N171: -0.7939704384 | O171: -0.9835711723 | P171: -0.526331602 | Q171: 0.2770471225 | R171: 0.8982272933 | S171: 0.9286931039 | T171: 0.3484088775 | U171: -0.4610045779 | V171: -0.9672408461 | W171: -0.8373763614 | X171: -0.1568158054 | Y171: 0.6268738236 | Z171: 0.9983032459 | AA171: 0.7132038948 | AB171: -0.04093017121 | AC171: -0.7681467297 | AD171: -0.9901957128 | AE171: -0.561047798 | AF171: 0.2370701909 | AG171: 0.8792802407 | AH171: 0.9432363579 | AI171: 0.386878145 | AJ171: -0.4239084041 | AK171: -0.9559138657 | AL171: -0.8592677023 | AM171: -0.1975287447 | AN171: 0.5941139321 | AO171: 0.995040769 | AP171: 0.7415843829 | AQ171: 0.0004290062714 | AR171: -0.7410085041 | AS171: -0.9951257475 | AT171: -0.5948038822 | AU171: 0.1966875649 | AV171: 0.8588284902 | AW171: 0.9561654668 | AX171: 0.4246853543 | AY171: -0.3860868029 | AZ171: -0.9429510457 | BA171: -0.8796885925 | BB171: -0.9805623489
C172: 16.8 | D172: 0.3843489231 | E172: -0.4309069025 | F172: -0.9595776008 | G172: -0.8500578515 | H172: -0.1751864306 | I172: 0.6161969914 | J172: 0.997763601 | K172: 0.7157432338 | L172: -0.04229959813 | M172: -0.7722100524 | N172: -0.9885434093 | O172: -0.5474219025 | P172: 0.2577758694 | Q172: 0.8915335229 | R172: 0.9323550997 | S172: 0.3530912161 | T172: -0.4610045779 | U172: -0.9684980527 | V172: -0.8318683163 | W172: -0.1419843015 | X172: 0.6423298301 | Y172: 0.9994468685 | Z172: 0.6918574322 | AA172: -0.07586863496 | AB172: -0.7931364192 | AC172: -0.9829095163 | AD172: -0.5189747074 | AE172: 0.2901168668 | AF172: 0.9062591549 | AG172: 0.9196717261 | AH172: 0.3214342234 | AI172: -0.4905809359 | AJ172: -0.976323299 | AK172: -0.8127380803 | AL172: -0.1086216124 | AM172: 0.6677363035 | AN172: 0.9999999325 | AO172: 0.6671892581 | AP172: -0.1093518773 | AQ172: -0.8131658842 | AR172: -0.9761641206 | AS172: -0.4899406406 | AT172: 0.3221297917 | AU172: 0.9199599627 | AV172: 0.905948361 | AW172: 0.2894137436 | AX172: -0.5196025308 | AY172: -0.9830444906 | AZ172: -0.7926887765 | BA172: -0.0751360909 | BB172: -1.995504701
C173: 16.9 | D173: -0.352739826 | E173: -0.934017064 | F173: -0.8871328615 | G173: -0.2436185998 | H173: 0.5637382902 | I173: 0.9919600764 | J173: 0.7530515772 | K173: 0.007687701839 | L173: -0.7428464408 | M173: -0.9937885435 | N173: -0.5763706482 | O173: 0.2286780845 | P173: 0.8799322448 | Q173: 0.9393990302 | R173: 0.3670848014 | S173: -0.4521076982 | T173: -0.9672408461 | U173: -0.8318683163 | V173: -0.1370332028 | W173: 0.6499618694 | X173: 0.9998332531 | Y173: 0.6772793453 | Z173: -0.1007702762 | AA173: -0.8110481146 | AB173: -0.9758657344 | AC173: -0.4843771162 | AD173: 0.3328732453 | AE173: 0.9262538882 | AF173: 0.8966941169 | AG173: 0.2640739843 | AH173: -0.5461457884 | AI173: -0.9890620734 | AJ173: -0.7667970885 | AK173: -0.02883235645 | AL173: 0.7285232146 | AM173: 0.9959196516 | AN173: 0.5935228406 | AO173: -0.2080402993 | AP173: -0.8696885499 | AQ173: -0.9464386939 | AR173: -0.3866733863 | AS173: 0.4331442487 | AT173: 0.9616561617 | AU173: 0.8434183063 | AV173: 0.1579500665 | AW173: -0.6337455058 | AX173: -0.9992235012 | AY173: -0.6926862861 | AZ173: 0.07970838715 | BA173: 0.7984961862 | BB173: -1.487318246
C174: 17 | D174: =COS((ω+D$3*δω)*t-(ω+D$3*δω)/(c_*(1-D$3*δc))*$C174) -> -0.898129678 | E174: -0.9231115028 | F174: -0.3203463892 | G174: 0.5002650673 | H174: 0.980679415 | I174: 0.7941987035 | J174: 0.06763610262 | K174: -0.704921328 | L174: -0.9981084939 | M174: -0.6125482395 | N174: =COS((ω+N$3*δω)*t-(ω+N$3*δω)/(c_*(1-N$3*δc))*$C174) -> 0.1895654657 | O174: 0.8627682643 | P174: 0.9492595608 | Q174: 0.3902223581 | R174: -0.4341792018 | S174: -0.9633242691 | T174: -0.8373763614 | U174: -0.1419843015 | V174: 0.6499618694 | W174: 0.9999120601 | X174: =COS((ω+X$3*δω)*t-(ω+X$3*δω)/(c_*(1-X$3*δc))*$C174) -> 0.6698883446 | Y174: -0.1156820259 | Z174: -0.8225847194 | AA174: -0.9701020758 | AB174: -0.4579173203 | AC174: 0.3656666487 | AD174: 0.9405849705 | AE174: 0.875873807 | AF174: 0.2155389305 | AG174: -0.5913696841 | AH174: =COS((ω+AH$3*δω)*t-(ω+AH$3*δω)/(c_*(1-AH$3*δc))*$C174) -> -0.9961269796 | AI174: -0.7234843512 | AJ174: 0.04115202336 | AK174: 0.7778036349 | AL174: 0.9855225563 | AM174: 0.5230529192 | AN174: -0.2951103341 | AO174: -0.9125886126 | AP174: -0.9094758728 | AQ174: -0.2878888826 | AR174: =COS((ω+AR$3*δω)*t-(ω+AR$3*δω)/(c_*(1-AR$3*δc))*$C174) -> 0.5294722519 | AS174: 0.9867744076 | AT174: 0.7730367037 | AU174: 0.03360798356 | AV174: -0.7286752982 | AW174: -0.9954348149 | AX174: -0.5852651031 | AY174: 0.2229046071 | AZ174: 0.8794916707 | BA174: 0.9379947521 | BB174: -0.08290076113
C175: 17.1 | D175: -0.9554247471 | E175: -0.4041918542 | F175: 0.4249483946 | G175: 0.9619098587 | H175: 0.8374977133 | I175: 0.137253144 | J175: -0.6573616061 | K175: -0.999998851 | L175: -0.6550739054 | M175: 0.140255607 | N175: 0.8391505563 | O175: 0.961076648 | P175: 0.4222020151 | Q175: -0.4069630937 | R175: -0.9563154448 | S175: -0.8481406983 | T175: -0.1568158054 | U175: 0.6423298301 | V175: 0.9998332531 | W175: 0.6698883446 | X175: -0.1206469907 | Y175: -0.8282299215 | Z175: -0.9663526189 | AA175: -0.4400470294 | AB175: 0.3888186072 | AC175: 0.9503469634 | AD175: 0.8584519289 | AE175: 0.1763171275 | AF175: -0.6270468035 | AG175: -0.9992765655 | AH175: -0.6844407537 | AI175: 0.1009911827 | AJ175: 0.8169853205 | AK175: 0.9712505963 | AL175: 0.4577199172 | AM175: -0.3705220323 | AN175: -0.944006749 | AO175: -0.8684273717 | AP175: -0.1957494823 | AQ175: 0.6115185045 | AR175: 0.9983290058 | AS175: 0.6987254403 | AT175: -0.08129587151 | AU175: -0.8054211516 | AV175: -0.9757686641 | AW175: -0.4752137656 | AX175: 0.3520805259 | AY175: 0.9372972817 | AZ175: 0.8780631248 | BA175: 0.2151052688 | BB175: 1.025614383
C176: 17.2 | D176: -0.4934876319 | E176: 0.3371658804 | F176: 0.9334469386 | G176: 0.8808656342 | H176: 0.2159725497 | I176: -0.5990484671 | J176: -0.9976558801 | K176: -0.7027676859 | L176: 0.08063194067 | M176: 0.8079822844 | N176: 0.9736838912 | O176: 0.4625534212 | P176: -0.3701095252 | Q176: -0.9455000643 | R176: -0.863649811 | S176: -0.1814549278 | T176: 0.6268738236 | U176: 0.9994468685 | V176: 0.6772793453 | W176: -0.1156820259 | X176: -0.8282299215 | Y176: -0.9650544402 | Z176: -0.4310454297 | AA176: 0.4025940626 | AB176: 0.9563803315 | AC176: 0.8453626615 | AD176: 0.1467122177 | AE176: -0.6539215658 | AF176: -0.9999980793 | AG176: -0.6509508642 | AH176: 0.1505886118 | AI176: 0.8474501694 | AJ176: 0.955227874 | AK176: 0.3990027419 | AL176: -0.4345791966 | AM176: -0.9660742434 | AN176: -0.8260268702 | AO176: -0.1117875163 | AP176: 0.680158142 | AQ176: 0.9993088286 | AR176: 0.623814902 | AS176: -0.185308398 | AT176: -0.8656191861 | AU176: -0.9442163823 | AV176: -0.3664651057 | AW176: 0.4660252509 | AX176: 0.9745697753 | AY176: 0.8056664225 | AZ176: 0.07672414655 | BA176: -0.7055510067 | BB176: 1.121304491
C177: 17.3 | D177: 0.2366387486 | E177: 0.8929717976 | F177: 0.9217959116 | G177: 0.3028558159 | H177: -0.5289070487 | I177: -0.9889964744 | J177: -0.7540985264 | K177: 0.01071936355 | L177: 0.7680045449 | M177: 0.9855977501 | N177: 0.5105919324 | O177: -0.3232169299 | P177: -0.929894866 | Q177: -0.883117297 | R177: -0.2157557454 | S177: 0.6032216337 | T177: 0.9983032459 | U177: 0.6918574322 | V177: -0.1007702762 | W177: -0.8225847194 | X177: -0.9663526189 | Y177: -0.4310454297 | Z177: 0.4071659042 | AA177: 0.9592537081 | AB177: 0.8372549682 | AC177: 0.1269006107 | AD177: -0.6726293145 | AE177: -0.9994893235 | AF177: -0.6239884263 | AG177: 0.1900014734 | AH177: 0.8704735817 | AI177: 0.9392466961 | AJ177: 0.3479925895 | AK177: -0.4878027891 | AL177: -0.9808095046 | AM177: -0.7845819919 | AN177: -0.03701320345 | AO177: 0.7365654948 | AP177: 0.992545059 | AQ177: 0.5510435889 | AR177: -0.2776871044 | AS177: -0.91128158 | AT177: -0.9045004745 | AU177: -0.2621090049 | AV177: 0.564471644 | AW177: 0.9943869099 | AX177: 0.7255268365 | AY177: -0.05317528758 | AZ177: -0.7945100858 | BA177: -0.9775269404 | BB177: 0.4535422783
C178: 17.4 | D178: 0.8381621652 | E178: 0.9573503506 | F178: 0.396487677 | G178: -0.4460187911 | H178: -0.9716971911 | I178: -0.8071334983 | J178: -0.06922502267 | K178: 0.7178572336 | L178: 0.9950118254 | M178: 0.565362846 | N178: -0.2658898815 | O178: -0.9082685545 | P178: -0.9054614704 | Q178: -0.2594626328 | R178: 0.5708446831 | S178: 0.9956542449 | T178: 0.7132038948 | U178: -0.07586863496 | V178: -0.8110481146 | W178: -0.9701020758 | X178: -0.4400470294 | Y178: 0.4025940626 | Z178: 0.9592537081 | AA178: 0.8345104504 | AB178: 0.1169752767 | AC178: -0.6836529229 | AD178: -0.9986503842 | AE178: -0.6042596354 | AF178: 0.2193650755 | AG178: 0.8871644839 | AH178: 0.9247693465 | AI178: 0.3054671654 | AJ178: -0.5308226713 | AK178: -0.9900442661 | AL178: -0.7459909801 | AM178: 0.02797469009 | AN178: 0.7820686258 | AO178: 0.9806225333 | AP178: 0.4825942587 | AQ178: -0.3582433541 | AR178: -0.9446039089 | AS178: -0.8599680001 | AT178: -0.1644564836 | AU178: 0.6478761872 | AV178: 0.9999920132 | AW178: 0.6417666071 | AX178: -0.1723357224 | AY178: -0.8640199048 | AZ178: -0.9419502215 | BA178: -0.3507691132 | BB178: -0.1770610608
C179: 17.5 | D179: 0.9841805583 | E179: 0.4948722204 | F179: -0.3497574814 | G179: -0.9432591138 | H179: -0.8594947753 | I179: -0.1586077874 | J179: 0.6561605885 | K179: 0.9998015388 | L179: 0.6255787018 | M179: -0.197813574 | N179: -0.8791744607 | O179: -0.9292825601 | P179: -0.3121599421 | Q179: 0.5290954759 | R179: 0.9904570175 | S179: 0.7406641969 | T179: -0.04093017121 | U179: -0.7931364192 | V179: -0.9758657344 | W179: -0.4579173203 | X179: 0.3888186072 | Y179: 0.9563803315 | Z179: 0.8372549682 | AA179: 0.1169752767 | AB179: -0.6872933985 | AC179: -0.9980810948 | AD179: -0.5922402935 | AE179: 0.2388327601 | AF179: 0.8984223911 | AG179: 0.9129390999 | AH179: 0.2719597984 | AI179: -0.5642883473 | AJ179: -0.9953739138 | AK179: -0.7117747556 | AL179: 0.08288314966 | AM179: 0.8180304327 | AN179: 0.9658267248 | AO179: 0.4201533596 | AP179: -0.4271927579 | AQ179: -0.9678117909 | AR179: -0.8135358766 | AS179: -0.0751360909 | AT179: 0.7172118802 | AU179: 0.9945972146 | AV179: 0.5578554992 | AW179: -0.27942997 | AX179: -0.9160829649 | AY179: -0.8949826346 | AZ179: -0.2312791489 | BA179: 0.598484219 | BB179: -0.2544663674
C180: 17.6 | D180: 0.5953392228 | E180: -0.2399479385 | F180: -0.9011054299 | G180: -0.9083327729 | H180: -0.2563851013 | I180: 0.5816206516 | J180: 0.9975456286 | K180: 0.6895540257 | L180: -0.1188453557 | M180: -0.8409989344 | N180: -0.952841511 | O180: -0.3732091835 | P180: 0.4772601944 | Q180: 0.9813829414 | R180: 0.7733183336 | S180: 0.004058380785 | T180: -0.7681467297 | U180: -0.9829095163 | V180: -0.4843771162 | W180: 0.3656666487 | X180: 0.9503469634 | Y180: 0.8453626615 | Z180: 0.1269006107 | AA180: -0.6836529229 | AB180: -0.9980810948 | AC180: -0.5882041002 | AD180: 0.2485312638 | AE180: 0.9049080585 | AF180: 0.9045951459 | AG180: 0.247819606 | AH180: -0.5887980549 | AI180: -0.9981263147 | AJ180: -0.6831165921 | AK180: 0.1276292782 | AL180: 0.8457548733 | AM180: 0.9501180923 | AN180: 0.364982786 | AO180: -0.4850196929 | AP180: -0.9830444906 | AQ180: -0.767676151 | AR180: 0.004793014594 | AS180: 0.7737839005 | AT180: 0.9812415805 | AU180: 0.476614491 | AV180: -0.3738906439 | AW180: -0.9530641942 | AX180: -0.8406012397 | AY180: -0.1181158892 | AZ180: 0.6900858918 | BA180: 0.9974939203 | BB180: 0.01821719556
C181: 17.7 | D181: -0.1170433293 | E181: -0.8427180334 | F181: -0.9503256372 | G181: -0.3609444647 | H181: 0.493160957 | I181: 0.9855717779 | J181: 0.7551435628 | K181: -0.02912279699 | L181: -0.792029886 | M181: -0.9740456264 | N181: -0.4416758523 | O181: 0.4146282657 | P181: 0.9668353077 | Q181: 0.8099450343 | R181: 0.05902406635 | S181: -0.7351863912 | T181: -0.9901957128 | U181: -0.5189747074 | V181: 0.3328732453 | W181: 0.9405849705 | X181: 0.8584519289 | Y181: 0.1467122177 | Z181: -0.6726293145 | AA181: -0.9986503842 | AB181: -0.5922402935 | AC181: 0.2485312638 | AD181: 0.9070247738 | AE181: 0.9002872698 | AF181: 0.2332601788 | AG181: -0.6048448251 | AH181: -0.9993439344 | AI181: -0.6609032189 | AJ181: 0.1622577943 | AK181: 0.8664155342 | AL181: 0.9351259292 | AM181: 0.3179953329 | AN181: -0.5323597176 | AO181: -0.9922709732 | AP181: -0.7244298623 | AQ181: 0.07472332044 | AR181: 0.819072851 | AS181: 0.9626971546 | AT181: 0.4002591512 | AU181: -0.4557373179 | AV181: -0.9774864689 | AW181: -0.7823265193 | AX181: -0.01339187391 | AY181: 0.765364653 | AZ181: 0.9827866731 | BA181: 0.4794123115 | BB181: 0.05926838454
C182: 17.8 | D182: -0.7658178749 | E182: -0.9817168166 | F182: -0.4699908672 | G182: 0.3900810082 | H182: 0.961034223 | I182: 0.8196919876 | J182: 0.07081376713 | K182: -0.7305499142 | L182: -0.9904475712 | M182: -0.5162493117 | N182: 0.3405805201 | O182: 0.9449802625 | P182: 0.8489833641 | Q182: 0.1237404169 | R182: -0.6932159509 | S182: -0.9963773299 | T182: -0.561047798 | U182: 0.2901168668 | V182: 0.9262538882 | W182: 0.875873807 | X182: 0.1763171275 | Y182: -0.6539215658 | Z182: -0.9994893235 | AA182: -0.6042596354 | AB182: 0.2388327601 | AC182: 0.9049080585 | AD182: 0.9002872698 | AE182: 0.2283952115 | AF182: -0.6127778839 | AG182: -0.9997747511 | AH182: -0.6457626205 | AI182: 0.1868732318 | AJ182: 0.8810031396 | AK182: 0.9221547112 | AL182: 0.2798273916 | AM182: -0.5699012599 | AN182: -0.9972328055 | AO182: -0.6854393822 | AP182: 0.1343852242 | AQ182: 0.8546067348 | AR182: 0.9414142896 | AS182: 0.3304682169 | AT182: -0.5254129494 | AU182: -0.9918706754 | AV182: -0.7231777144 | AW182: 0.08151717379 | AX182: 0.8257934935 | AY182: 0.9580115388 | AZ182: 0.3801744747 | BA182: -0.4794387656 | BB182: -0.376752608
C183: 17.9 | D183: -0.9984034018 | E183: -0.5804493686 | F183: 0.2722393978 | G183: 0.9210311003 | H183: 0.8800051697 | I183: 0.179888484 | J183: -0.6549579065 | K183: -0.9992654729 | L183: -0.5951608053 | M183: 0.254696908 | N183: 0.9137962221 | O183: 0.8884965546 | P183: 0.1977464043 | Q183: -0.6411083611 | R183: -0.9997970907 | S183: -0.6096754245 | T183: 0.2370701909 | U183: 0.9062591549 | V183: 0.8966941169 | W183: 0.2155389305 | X183: -0.6270468035 | Y183: -0.9999980793 | Z183: -0.6239884263 | AA183: 0.2193650755 | AB183: 0.8984223911 | AC183: 0.9045951459 | AD183: 0.2332601788 | AE183: -0.6127778839 | AF183: -0.9998683722 | AG183: -0.6380950775 | AH183: 0.2015874169 | AI183: 0.8902885224 | AJ183: 0.9121970286 | AK183: 0.2509042889 | AL183: -0.598306321 | AM183: -0.9994080123 | AN183: -0.651990713 | AO183: 0.1837430942 | AP183: 0.8818602386 | AQ183: 0.9194972511 | AR183: 0.2684654258 | AS183: -0.5836369003 | AT183: -0.998617152 | AU183: -0.6656707376 | AV183: 0.1658380082 | AW183: 0.8731403268 | AX183: 0.9264933993 | AY183: 0.2859377823 | AZ183: -0.5687744731 | BA183: -0.9974960527 | BB183: -0.8654346276
C184: 18 | D184: =COS((ω+D$3*δω)*t-(ω+D$3*δω)/(c_*(1-D$3*δc))*$C184) -> -0.6883996974 | E184: 0.140255607 | F184: 0.8627682643 | G184: 0.9323550997 | H184: 0.2963541836 | I184: -0.5639216703 | J184: -0.9974328469 | K184: -0.6761067302 | L184: 0.1568834806 | M184: 0.871147401 | N184: =COS((ω+N$3*δω)*t-(ω+N$3*δω)/(c_*(1-N$3*δc))*$C184) -> 0.926144336 | O184: 0.2802537016 | P184: -0.5777273469 | Q184: -0.9984958571 | R184: -0.6636226093 | S184: 0.1734669989 | T184: 0.8792802407 | U184: 0.9196717261 | V184: 0.2640739843 | W184: -0.5913696841 | X184: =COS((ω+X$3*δω)*t-(ω+X$3*δω)/(c_*(1-X$3*δc))*$C184) -> -0.9992765655 | Y184: -0.6509508642 | Z184: 0.1900014734 | AA184: 0.8871644839 | AB184: 0.9129390999 | AC184: 0.247819606 | AD184: -0.6048448251 | AE184: -0.9997747511 | AF184: -0.6380950775 | AG184: 0.2064822293 | AH184: =COS((ω+AH$3*δω)*t-(ω+AH$3*δω)/(c_*(1-AH$3*δc))*$C184) -> 0.8947979015 | AI184: 0.905948361 | AJ184: 0.2314951624 | AK184: -0.61814896 | AL184: -0.9999902731 | AM184: -0.625058884 | AN184: 0.2229046071 | AO184: 0.9021783354 | AP184: 0.8987014858 | AQ184: 0.2151052688 | AR184: =COS((ω+AR$3*δω)*t-(ω+AR$3*δω)/(c_*(1-AR$3*δc))*$C184) -> -0.6312783273 | AS184: -0.9999230707 | AT184: -0.6118459693 | AU184: 0.2392639636 | AV184: 0.909303699 | AW184: 0.8912005233 | AX184: 0.198654559 | AY184: -0.644229215 | AZ184: -0.9995731628 | BA184: -0.5984600691 | BB184: -0.7219106732
C185: 18.1 | D185: -0.004280418085 | E185: 0.783773998 | F185: 0.972532211 | G185: 0.4176642476 | H185: -0.4565618451 | I185: -0.9816875837 | J185: -0.7561866838 | K185: 0.04751636303 | L185: 0.8148870283 | M185: 0.9591715703 | N185: 0.370045867 | O185: -0.5020275784 | P185: -0.9902362588 | Q185: -0.7212817372 | R185: 0.09918560254 | S185: 0.84381277 | T185: 0.9432363579 | U185: 0.3214342234 | V185: -0.5461457884 | W185: -0.9961269796 | X185: -0.6844407537 | Y185: 0.1505886118 | Z185: 0.8704735817 | AA185: 0.9247693465 | AB185: 0.2719597984 | AC185: -0.5887980549 | AD185: -0.9993439344 | AE185: -0.6457626205 | AF185: 0.2015874169 | AG185: 0.8947979015 | AH185: 0.9038201045 | AI185: 0.2217553893 | AJ185: -0.629869892 | AK185: -0.9998784884 | AL185: -0.6053511559 | AM185: 0.2520451288 | AN185: 0.916720439 | AO185: 0.8804448632 | AP185: 0.1709557528 | AQ185: -0.6692510565 | AR185: -0.9977292068 | AS185: -0.5633148309 | AT185: 0.3018263108 | AU185: 0.9361823505 | AV185: 0.8547063654 | AW185: 0.1196972435 | AX185: -0.7068358429 | AY185: -0.9929018586 | AZ185: -0.5197664778 | BA185: 0.3507973421 | BB185: 0.2386091399
C186: 18.2 | D186: 0.682165084 | E186: 0.995959629 | F186: 0.5403668939 | G186: -0.3326638604 | H186: -0.9487089546 | I186: -0.8318683163 | J186: -0.07240233197 | K186: 0.7429950693 | L186: 0.9844224633 | M186: 0.4653751358 | N186: -0.4131784403 | O186: -0.9725481588 | P186: -0.780616157 | Q186: 0.0143484621 | R186: 0.7982287723 | S186: 0.9654705701 | T186: 0.386878145 | U186: -0.4905809359 | V186: -0.9890620734 | W186: -0.7234843512 | X186: 0.1009911827 | Y186: 0.8474501694 | Z186: 0.9392466961 | AA186: 0.3054671654 | AB186: -0.5642883473 | AC186: -0.9981263147 | AD186: -0.6609032189 | AE186: 0.1868732318 | AF186: 0.8902885224 | AG186: 0.905948361 | AH186: 0.2217553893 | AI186: -0.6337455058 | AJ186: -0.9996726102 | AK186: -0.593344125 | AL186: 0.2713477408 | AM186: 0.9264211701 | AN186: 0.8658263699 | AO186: 0.1363733386 | AP186: -0.6984292561 | AQ186: -0.9936893131 | AR186: -0.5213159284 | AS186: 0.3537784428 | AT186: 0.9555759594 | AU186: 0.819182924 | AV186: 0.04996411592 | AW186: -0.7578523965 | AX186: -0.9802214901 | AY186: -0.4453611497 | AZ186: 0.4335444648 | BA186: 0.9775332947 | BB186: 1.361715529
C187: 18.3 | D187: 0.997883255 | E187: 0.6600408107 | F187: -0.1929099235 | G187: -0.8953101172 | H187: -0.8989934196 | I187: -0.2010853121 | J187: 0.6537535632 | K187: 0.9983908351 | L187: 0.5638650805 | M187: -0.3107116113 | N187: -0.942803105 | O187: -0.8391132846 | P187: -0.08056364027 | Q187: 0.7408593874 | R187: 0.9841017846 | S187: 0.4593325996 | T187: -0.4239084041 | U187: -0.976323299 | V187: -0.7667970885 | W187: 0.04115202336 | X187: 0.8169853205 | Y187: 0.955227874 | Z187: 0.3479925895 | AA187: -0.5308226713 | AB187: -0.9953739138 | AC187: -0.6831165921 | AD187: 0.1622577943 | AE187: 0.8810031396 | AF187: 0.9121970286 | AG187: 0.2314951624 | AH187: -0.629869892 | AI187: -0.9996726102 | AJ187: -0.5893119804 | AK187: 0.2809588269 | AL187: 0.9319640699 | AM187: 0.855646986 | AN187: 0.111566866 | AO187: -0.7195821391 | AP187: -0.9891556794 | AQ187: -0.4867734827 | AR187: 0.3954959151 | AS187: 0.9691128461 | AT187: 0.786415845 | AU187: -0.01001490476 | AV187: -0.7986298341 | AW187: -0.9639789874 | AX187: -0.3770207688 | AY187: 0.5041715643 | AZ187: 0.9918989054 | BA187: 0.7055296443 | BB187: 1.637457056
C188: 18.4 | D188: 0.771294872 | E188: -0.03911693268 | F188: -0.8186905246 | G188: -0.952841511 | H188: -0.3358106623 | I188: 0.5459597749 | J188: 0.997317535 | K188: 0.6624303557 | L188: -0.1946902113 | M188: -0.8983248643 | N188: -0.8937564087 | O188: -0.1845864307 | P188: 0.670104048 | Q188: 0.9965115094 | R188: 0.5373094694 | S188: -0.3454856955 | T188: -0.9559138657 | U188: -0.8127380803 | V188: -0.02883235645 | W188: 0.7778036349 | X188: 0.9712505963 | Y188: 0.3990027419 | Z188: -0.4878027891 | AA188: -0.9900442661 | AB188: -0.7117747556 | AC188: 0.1276292782 | AD188: 0.8664155342 | AE188: 0.9221547112 | AF188: 0.2509042889 | AG188: -0.61814896 | AH188: -0.9998784884 | AI188: -0.593344125 | AJ188: 0.2809588269 | AK188: 0.933765166 | AL188: 0.8504286914 | AM188: 0.09664852002 | AN188: -0.7333254483 | AO188: -0.985175196 | AP188: -0.4603525348 | AQ188: 0.4273935065 | AR188: 0.9781997369 | AS188: 0.7578327292 | AT188: -0.05997905153 | AU188: -0.8305057659 | AV188: -0.9462952149 | AW188: -0.3160636647 | AX188: 0.5633397372 | AY188: 0.9986288003 | AZ188: 0.6466391753 | BA188: -0.2151347074 | BB188: 0.6213107284
C189: 18.5 | D189: 0.1255409584 | E189: -0.7167475336 | F189: -0.9882678778 | G189: -0.4728000573 | H189: 0.4191730183 | I189: 0.9773457025 | J189: 0.7572278866 | K189: -0.06589382953 | L189: -0.8365422587 | M189: -0.941026309 | N189: -0.2961421115 | O189: 0.5845691751 | P189: 0.9997700139 | Q189: 0.6188231825 | R189: -0.2549116183 | S189: -0.9256524423 | T189: -0.8592677023 | U189: -0.1086216124 | V189: 0.7285232146 | W189: 0.9855225563 | X189: 0.4577199172 | Y189: -0.4345791966 | Z189: -0.9808095046 | AA189: -0.7459909801 | AB189: 0.08288314966 | AC189: 0.8457548733 | AD189: 0.9351259292 | AE189: 0.2798273916 | AF189: -0.598306321 | AG189: -0.9999902731 | AH189: -0.6053511559 | AI189: 0.2713477408 | AJ189: 0.9319640699 | AK189: 0.8504286914 | AL189: 0.09167073979 | AM189: -0.7400874468 | AN189: -0.9824911935 | AO189: -0.4425069271 | AP189: 0.4498592413 | AQ189: 0.9839886333 | AR189: 0.7345375548 | AS189: -0.09984841351 | AT189: -0.8547220133 | AU189: -0.9289541355 | AV189: -0.2634314536 | AW189: 0.6118698125 | AX189: 0.999920292 | AY189: 0.5917034302 | AZ189: -0.2877051065 | BA189: -0.9380052012 | BB189: -1.0535555
C190: 18.6 | D190: -0.588439057 | E190: -0.9999319132 | F190: -0.6071474984 | G190: 0.2739850996 | H190: 0.9347427048 | I190: 0.8436568076 | J190: 0.07399071315 | K190: -0.7551884822 | L190: -0.9769453885 | M190: -0.412913822 | N190: 0.4832375594 | O190: 0.9907054911 | P190: 0.7013172586 | Q190: -0.152162912 | R190: -0.8832535778 | S190: -0.9039150956 | T190: -0.1975287447 | U190: 0.6677363035 | V190: 0.9959196516 | W190: 0.5230529192 | X190: -0.3705220323 | Y190: -0.9660742434 | Z190: -0.7845819919 | AA190: 0.02797469009 | AB190: 0.8180304327 | AC190: 0.9501180923 | AD190: 0.3179953329 | AE190: -0.5699012599 | AF190: -0.9994080123 | AG190: -0.625058884 | AH190: 0.2520451288 | AI190: 0.9264211701 | AJ190: 0.855646986 | AK190: 0.09664852002 | AL190: -0.7400874468 | AM190: -0.9815473711 | AN190: -0.4335173006 | AO190: 0.4632046227 | AP190: 0.987356229 | AQ190: 0.7173455899 | AR190: -0.1296490876 | AS190: -0.8723628506 | AT190: -0.9134072264 | AU190: -0.2197689086 | AV190: 0.6506365828 | AW190: 0.9977142272 | AX190: 0.5422983564 | AY190: -0.3493054551 | AZ190: -0.959951699 | BA190: -0.7984780389 | BB190: -2.09926783
C191: 18.7 | D191: -0.9826277986 | E191: -0.7328257844 | F191: 0.1122968905 | G191: 0.8661937099 | H191: 0.9164266811 | I191: 0.2221883894 | J191: -0.6525475616 | K191: -0.9971779217 | L191: -0.5317376869 | M191: 0.3656666487 | N191: 0.9660168748 | O191: 0.7816105921 | P191: -0.03774733103 | Q191: -0.8264407136 | R191: -0.943764117 | S191: -0.2944083321 | T191: 0.5941139321 | U191: 0.9999999325 | V191: 0.5935228406 | W191: -0.2951103341 | X191: -0.944006749 | Y191: -0.8260268702 | Z191: -0.03701320345 | AA191: 0.7820686258 | AB191: 0.9658267248 | AC191: 0.364982786 | AD191: -0.5323597176 | AE191: -0.9972328055 | AF191: -0.651990713 | AG191: 0.2229046071 | AH191: 0.916720439 | AI191: 0.8658263699 | AJ191: 0.111566866 | AK191: -0.7333254483 | AL191: -0.9824911935 | AM191: -0.4335173006 | AN191: 0.467630071 | AO191: 0.9888920064 | AP191: 0.7068145191 | AQ191: -0.1494530354 | AR191: -0.8843104517 | AS191: -0.9007866464 | AT191: -0.1854969659 | AU191: 0.6804836135 | AV191: 0.9936643831 | AW191: 0.4996288271 | AX191: -0.4002867753 | AY191: -0.9750241531 | AZ191: -0.7576878412 | BA191: 0.07516615001 | BB191: -1.625184971
C192: 18.8 | D192: -0.8428006696 | E192: -0.06242512304 | F192: 0.7691654895 | G192: 0.969714313 | H192: 0.3746862895 | I192: -0.5277433396 | J192: -0.9971996935 | K192: -0.6485295359 | L192: 0.2322097851 | M192: 0.9224386371 | N192: 0.8558767388 | O192: 0.08713306585 | P192: -0.7530966612 | Q192: -0.9754678507 | R192: -0.3975418532 | S192: 0.5065370018 | T192: 0.995040769 | U192: 0.6671892581 | V192: -0.2080402993 | W192: -0.9125886126 | X192: -0.8684273717 | Y192: -0.1117875163 | Z192: 0.7365654948 | AA192: 0.9806225333 | AB192: 0.4201533596 | AC192: -0.4850196929 | AD192: -0.9922709732 | AE192: -0.6854393822 | AF192: 0.1837430942 | AG192: 0.9021783354 | AH192: 0.8804448632 | AI192: 0.1363733386 | AJ192: -0.7195821391 | AK192: -0.985175196 | AL192: -0.4425069271 | AM192: 0.4632046227 | AN192: 0.9888920064 | AO192: 0.7032687041 | AP192: -0.1593330863 | AQ192: -0.8912141966 | AR192: -0.8919218356 | AS192: -0.1608754391 | AT192: 0.7021570205 | AU192: 0.9891230439 | AV192: 0.4645888327 | AW192: -0.4411051838 | AX192: -0.984905943 | AY192: -0.7206662782 | AZ192: 0.1348252612 | BA192: 0.8797029272 | BB192: 0.08016998592
C193: 18.9 | D193: -0.2449476898 | E193: 0.6423298301 | F193: 0.9974279377 | G193: 0.5261427936 | H193: -0.3810591483 | I193: -0.9725481588 | J193: -0.7582671687 | K193: 0.08424896983 | L193: 0.856963637 | M193: 0.9196717261 | N193: 0.2204186922 | O193: -0.6614543674 | P193: -0.9953030632 | Q193: -0.504528996 | R193: 0.4042545298 | S193: 0.9781074203 | T193: 0.7415843829 | U193: -0.1093518773 | V193: -0.8696885499 | W193: -0.9094758728 | X193: -0.1957494823 | Y193: 0.680158142 | Z193: 0.992545059 | AA193: 0.4825942587 | AB193: -0.4271927579 | AC193: -0.9830444906 | AD193: -0.7244298623 | AE193: 0.1343852242 | AF193: 0.8818602386 | AG193: 0.8987014858 | AH193: 0.1709557528 | AI193: -0.6984292561 | AJ193: -0.9891556794 | AK193: -0.4603525348 | AL193: 0.4498592413 | AM193: 0.987356229 | AN193: 0.7068145191 | AO193: -0.1593330863 | AP193: -0.8934709605 | AQ193: -0.8873554192 | AR193: -0.1460532754 | AS193: 0.7162560871 | AT193: 0.9851370806 | AU193: 0.4378179725 | AV193: -0.4722395612 | AW193: -0.9910398928 | AX193: -0.6887495589 | AY193: 0.1841795938 | AZ193: 0.9045133299 | BA193: 0.8754448901 | BB193: 1.736508314
C194: 19 | D194: =COS((ω+D$3*δω)*t-(ω+D$3*δω)/(c_*(1-D$3*δc))*$C194) -> 0.4860238054 | E194: 0.9935927063 | F194: 0.6698883446 | G194: -0.2142672624 | H194: -0.919159631 | I194: -0.8550519653 | J194: -0.07557890665 | K194: 0.7671260215 | L194: 0.968027375 | M194: 0.3590442869 | N194: =COS((ω+N$3*δω)*t-(ω+N$3*δω)/(c_*(1-N$3*δc))*$C194) -> -0.5503273949 | O194: -0.9992765655 | P194: -0.6121971647 | Q194: 0.2870670892 | R194: 0.9461613074 | S194: 0.8136649756 | T194: 0.0004290062714 | U194: -0.8131658842 | V194: -0.9464386939 | W194: -0.2878888826 | X194: =COS((ω+X$3*δω)*t-(ω+X$3*δω)/(c_*(1-X$3*δc))*$C194) -> 0.6115185045 | Y194: 0.9993088286 | Z194: 0.5510435889 | AA194: -0.3582433541 | AB194: -0.9678117909 | AC194: -0.767676151 | AD194: 0.07472332044 | AE194: 0.8546067348 | AF194: 0.9194972511 | AG194: 0.2151052688 | AH194: =COS((ω+AH$3*δω)*t-(ω+AH$3*δω)/(c_*(1-AH$3*δc))*$C194) -> -0.6692510565 | AI194: -0.9936893131 | AJ194: -0.4867734827 | AK194: 0.4273935065 | AL194: 0.9839886333 | AM194: 0.7173455899 | AN194: -0.1494530354 | AO194: -0.8912141966 | AP194: -0.8873554192 | AQ194: -0.1411050867 | AR194: =COS((ω+AR$3*δω)*t-(ω+AR$3*δω)/(c_*(1-AR$3*δc))*$C194) -> 0.7231985336 | AS194: 0.9824498014 | AT194: 0.4197503378 | AU194: -0.4941264548 | AV194: -0.9946003434 | AW194: -0.6629579463 | AX194: 0.2233374907 | AY194: 0.9227812294 | AZ194: 0.8501949822 | BA194: 0.06630685835 | BB194: 2.095965396
C195: 19.1 | D195: 0.9528623034 | E195: 0.7980537169 | F195: -0.03093667115 | G195: -0.8337923013 | H195: -0.9322747998 | I195: -0.2431878769 | J195: 0.6513399048 | K195: 0.9956271436 | L195: 0.4988260106 | M195: -0.4193745988 | N195: -0.9832948929 | O195: -0.7165448845 | P195: 0.1555296915 | Q195: 0.8962155083 | R195: 0.8797941616 | S195: 0.1201381174 | T195: -0.7410085041 | U195: -0.9761641206 | V195: -0.3866733863 | W195: 0.5294722519 | X195: 0.9983290058 | Y195: 0.623814902 | Z195: -0.2776871044 | AA195: -0.9446039089 | AB195: -0.8135358766 | AC195: 0.004793014595 | AD195: 0.819072851 | AE195: 0.9414142896 | AF195: 0.2684654258 | AG195: -0.6312783273 | AH195: -0.9977292068 | AI195: -0.5213159284 | AJ195: 0.3954959151 | AK195: 0.9781997369 | AL195: 0.7345375548 | AM195: -0.1296490876 | AN195: -0.8843104517 | AO195: -0.8919218356 | AP195: -0.1460532754 | AQ195: 0.7231985336 | AR195: 0.9815048888 | AS195: 0.4106531057 | AT195: -0.5071112282 | AU195: -0.9964768789 | AV195: -0.6440363163 | AW195: 0.2524748455 | AX195: 0.9356996802 | AY195: 0.8284618145 | AZ195: 0.02135391899 | BA195: -0.8037933932 | BB195: 0.9425734373
C196: 19.2 | D196: 0.9018611949 | E196: 0.1633234388 | F196: -0.7145226822 | G196: -0.9829095163 | H196: -0.412913822 | I196: 0.5092808574 | J196: 0.9970793225 | K196: 0.6344089809 | L196: -0.2693868627 | M196: -0.9434064804 | N196: -0.8127380803 | O196: 0.01116341542 | P196: 0.825542964 | Q196: 0.935767363 | R196: 0.247819606 | S196: -0.651508369 | T196: -0.9951257475 | U196: -0.4899406406 | V196: 0.4331442487 | W196: 0.9867744076 | X196: 0.6987254403 | Y196: -0.185308398 | Z196: -0.91128158 | AA196: -0.8599680001 | AB196: -0.0751360909 | AC196: 0.7737839005 | AD196: 0.9626971546 | AE196: 0.3304682169 | AF196: -0.5836369003 | AG196: -0.9999230707 | AH196: -0.5633148309 | AI196: 0.3537784428 | AJ196: 0.9691128461 | AK196: 0.7578327292 | AL196: -0.09984841351 | AM196: -0.8723628506 | AN196: -0.9007866464 | AO196: -0.1608754391 | AP196: 0.7162560871 | AQ196: 0.9824498014 | AR196: 0.4106531057 | AS196: -0.5114142745 | AT196: -0.9972657208 | AU196: -0.6324893701 | AV196: 0.2717751313 | AW196: 0.9442263092 | AX196: 0.8112901881 | AY196: -0.01364403445 | AZ196: -0.826940441 | BA196: -0.9348897059 | BB196: =SUM(D196:BA196) -> -0.7723228162
C197: 19.3 | D197: 0.3607373848 | E197: -0.5612882972 | F197: -0.9999514427 | G197: -0.5774901567 | H197: 0.3422861604 | I197: 0.9672971892 | J197: 0.7593045275 | K197: -0.1025755648 | L197: -0.8761210429 | M197: -0.8951806502 | N197: -0.1433408963 | O197: 0.7319391994 | P197: 0.9768979614 | Q197: 0.3805851719 | R197: -0.5434747219 | S197: -0.9995125289 | T197: -0.5948038822 | U197: 0.3221297917 | V197: 0.9616561617 | W197: 0.7730367037 | X197: -0.08129587151 | Y197: -0.8656191861 | Z197: -0.9045004745 | AA197: -0.1644564836 | AB197: 0.7172118802 | AC197: 0.9812415805 | AD197: 0.4002591512 | AE197: -0.5254129494 | AF197: -0.998617152 | AG197: -0.6118459693 | AH197: 0.3018263108 | AI197: 0.9555759594 | AJ197: 0.786415845 | AK197: -0.05997905153 | AL197: -0.8547220133 | AM197: -0.9134072264 | AN197: -0.1854969659 | AO197: 0.7021570205 | AP197: 0.9851370806 | AQ197: 0.4197503378 | AR197: -0.5071112282 | AS197: -0.9972657208 | AT197: -0.628608635 | AU197: 0.2813849901 | AV197: 0.9490593592 | AW197: 0.7994358414 | AX197: -0.03863483997 | AY197: -0.8434345012 | AZ197: -0.9218968381 | BA197: -0.2064527345 | BB197: -1.747171417
C198: 19.4 | D198: -0.376431651 | E198: -0.9770073793 | F198: -0.7281719759 | G198: 0.1537368261 | H198: 0.9019866874 | I198: 0.8660484768 | J198: 0.07716690845 | K198: -0.7788036425 | L198: -0.9576815764 | M198: -0.3039502498 | N198: 0.614035709 | O198: 0.9981784466 | P198: 0.5145039067 | Q198: -0.4164808121 | R198: -0.9853767223 | S198: -0.6975851862 | T198: 0.1966875649 | U198: 0.9199599627 | V198: 0.8434183063 | W198: 0.03360798356 | X198: -0.8054211516 | Y198: -0.9442163823 | Z198: -0.2621090049 | AA198: 0.6478761872 | AB198: 0.9945972146 | AC198: 0.476614491 | AD198: -0.4557373179 | AE198: -0.9918706754 | AF198: -0.6656707376 | AG198: 0.2392639636 | AH198: 0.9361823505 | AI198: 0.819182924 | AJ198: -0.01001490476 | AK198: -0.8305057659 | AL198: -0.9289541355 | AM198: -0.2197689086 | AN198: 0.6804836135 | AO198: 0.9891230439 | AP198: 0.4378179725 | AQ198: -0.4941264548 | AR198: -0.9964768789 | AS198: -0.6324893701 | AT198: 0.2813849901 | AU198: 0.9506229761 | AV198: 0.7933884553 | AW198: -0.05361873249 | AX198: -0.854009744 | AY198: -0.9119238833 | AZ198: -0.1770105433 | BA198: 0.7117959289 | BB198: -1.377748897
C199: 19.5 | D199: -0.9090263036 | E199: -0.8550519653 | F199: -0.05062939051 | G199: 0.7982287723 | H199: 0.9465103633 | I199: 0.2640739843 | J199: -0.6501305959 | K199: -0.9937390263 | L199: -0.4651785944 | M199: 0.4716522936 | N199: 0.9945309935 | O199: 0.64454575 | P199: -0.2711340255 | Q199: -0.9488492568 | R199: -0.7937937555 | S199: 0.05794586334 | T199: 0.8588284902 | U199: 0.905948361 | V199: 0.1579500665 | W199: -0.7286752982 | X199: -0.9757686641 | Y199: -0.3664651057 | Z199: 0.564471644 | AA199: 0.9999920132 | AB199: 0.5578554992 | AC199: -0.3738906439 | AD199: -0.9774864689 | AE199: -0.7231777144 | AF199: 0.1658380082 | AG199: 0.909303699 | AH199: 0.8547063654 | AI199: 0.04996411592 | AJ199: -0.7986298341 | AK199: -0.9462952149 | AL199: -0.2634314536 | AM199: 0.6506365828 | AN199: 0.9936643831 | AO199: 0.4645888327 | AP199: -0.4722395612 | AQ199: -0.9946003434 | AR199: -0.6440363163 | AS199: 0.2717751313 | AT199: 0.9490593592 | AU199: 0.7933884553 | AV199: -0.05861084886 | AW199: -0.8591695273 | AX199: -0.9056661337 | AY199: -0.1572922756 | AZ199: 0.7291313335 | BA199: 0.9756226979 | BB199: -0.1527552592
C200: 19.6 | D200: -0.9476043268 | E200: -0.2625375317 | F200: 0.6551256777 | G200: 0.9923770787 | H200: 0.4504271377 | I200: -0.4905809359 | J200: -0.9969564223 | K200: -0.6200734748 | L200: 0.3061666101 | M200: 0.9611568846 | N200: 0.7646055013 | O200: -0.1093518773 | P200: -0.8864284237 | Q200: -0.8781693589 | R200: -0.09189184183 | S200: 0.7757977034 | T200: 0.9561654668 | U200: 0.2894137436 | V200: -0.6337455058 | W200: -0.9954348149 | X200: -0.4752137656 | Y200: 0.4660252509 | Z200: 0.9943869099 | AA200: 0.6417666071 | AB200: -0.27942997 | AC200: -0.9530641942 | AD200: -0.7823265193 | AE200: 0.08151717379 | AF200: 0.8731403268 | AG200: 0.8912005233 | AH200: 0.1196972435 | AI200: -0.7578523965 | AJ200: -0.9639789874 | AK200: -0.3160636647 | AL200: 0.6118698125 | AM200: 0.9977142272 | AN200: 0.4996288271 | AO200: -0.4411051838 | AP200: -0.9910398928 | AQ200: -0.6629579463 | AR200: 0.2524748455 | AS200: 0.9442263092 | AT200: 0.7994358414 | AU200: -0.0536187325 | AV200: -0.8591695273 | AW200: -0.9035348639 | AX200: -0.1474090547 | AY200: 0.7393145298 | AZ200: 0.9710387791 | BA200: 0.3424664577 | BB200: 0.8776002555
C201: 19.7 | D201: -0.4712002272 | E201: 0.474458651 | F201: 0.9958216021 | G201: 0.6266474138 | H201: -0.3029211204 | I201: -0.9615952419 | J201: -0.7603399602 | K201: 0.1208674051 | L201: 0.8939862202 | M201: 0.8676366069 | N201: 0.06538233317 | O201: -0.7953416462 | P201: -0.9448124523 | Q201: -0.2493622637 | R201: 0.6690860568 | S201: 0.9891882661 | T201: 0.4246853543 | U201: -0.5196025308 | V201: -0.9992235012 | W201: -0.5852651031 | X201: 0.3520805259 | Y201: 0.9745697753 | Z201: 0.7255268365 | AA201: -0.1723357224 | AB201: -0.9160829649 | AC201: -0.8406012397 | AD201: -0.01339187391 | AE201: 0.8257934935 | AF201: 0.9264933993 | AG201: 0.198654559 | AH201: -0.7068358429 | AI201: -0.9802214901 | AJ201: -0.3770207688 | AK201: 0.5633397372 | AL201: 0.999920292 | AM201: 0.5422983564 | AN201: -0.4002867753 | AO201: -0.984905943 | AP201: -0.6887495589 | AQ201: 0.2233374907 | AR201: 0.9356996802 | AS201: 0.8112901881 | AT201: -0.03863483997 | AU201: -0.854009744 | AV201: -0.9056661337 | AW201: -0.1474090547 | AX201: 0.7426720756 | AY201: 0.9686010481 | AZ201: 0.3283355086 | BA201: -0.6055518643 | BB201: 1.025005012
C202: 19.8 | D202: 0.2612808935 | E202: 0.9503469634 | F202: 0.7816105921 | G202: -0.09262334972 | H202: -0.8832535778 | I202: -0.8766412152 | J202: -0.07875471451 | K202: 0.7902173886 | L202: 0.9459232521 | M202: 0.247819606 | N202: -0.6739710419 | O202: -0.9874217601 | P202: -0.4096055738 | Q202: 0.5379289097 | R202: 0.9999178507 | S202: 0.5593606625 | T202: -0.3860868029 | U202: -0.9830444906 | V202: -0.6926862861 | W202: 0.2229046071 | X202: 0.9372972817 | Y202: 0.8056664225 | Z202: -0.05317528758 | AA202: -0.8640199048 | AB202: -0.8949826346 | AC202: -0.1181158892 | AD202: 0.765364653 | AE202: 0.9580115388 | AF202: 0.2859377823 | AG202: -0.644229215 | AH202: -0.9929018586 | AI202: -0.4453611497 | AJ202: 0.5041715643 | AK202: 0.9986288003 | AL202: 0.5917034302 | AM202: -0.3493054551 | AN202: -0.9750241531 | AO202: -0.7206662782 | AP202: 0.1841795938 | AQ202: 0.9227812294 | AR202: 0.8284618145 | AS202: -0.01364403445 | AT202: -0.8434345012 | AU202: -0.9119238833 | AV202: -0.1572922756 | AW202: 0.7393145298 | AX202: 0.9686010481 | AY202: 0.3236086183 | AZ202: -0.6134795128 | BA202: -0.996828595 | BB202: 0.4525655918
... 856 more rows

Sheet Φύλλο3
